Workbook

Sheet Start
D2: SoLei-B | K2: Angemessene Wohnungsmiete
D4: =Einstellungen!E3 -> 2024 - 02 | S4: nach Produktmethode
D6: S t a r t s e i t e
G8: Entwicklungsstand: | H8: =Einstellungen!C2 -> 2024-02-01 | AA8: mit nachprüfbarer Ermittlung der angemessenen Kosten
D10: Berechnung der angemessenen | AB10: =Grundeinstellungen!S14 -> AV-Wohnen ab 01.10.2023
D12: Wohnungsmiete (bei Neuanmietung)
AB13: =IF(Checkliste!E4>0,1,"") -> 
A14: i
AD32: Wartemeldung | AF32: Bitte gedulden Sie sich einen Augenblick ... ...
M36: =IF(AE32=1,AF32,IF(AE32=2,AJ32,"")) -> 
D40: =" "&Grundeinstellungen!D42 -> © by SoLei-B GbR 2001 - 2024
Q44: =IF(Werte!BG3=0,"",Werte!CCB3) -> 
D53: Ausschneiden und Einfügen mit Stg + X, Strg +V in geöffnetem Modul deaktiviert!
B56: Hyperlinks für SoLei-B-Module oben
B58: D58 | D58: Bürgergeld-Berechnung
B60: D60 | D60: SH-Berechnung
B62: D62 | D62: SoLei-Ergänzungen
B64: D64 | D64: Wohngeld
B66: D66 | D66: Angemessene Miete
B68: D68 | D68: Elterngeld
B70: D70 | D70: AsylbLG
B72: D72 | D72: BAfoeG-Berechnung
B74: D74 | D74: BAB-Berechnung
B76: D76 | D76: Pfändungsgrenzen
B78: D78 | D78: Datenbank
B80: D80 | D80: Rechengrößen BAföG/BAB
B82: D82 | D82: Web-Verzeichnis
B84: D84 | D84: Handbuch
B86: D86 | D86: Struktur

Sheet Checkliste (hidden)
A1: Start | B1: Checkliste (CHL) | D1: Start | F1: Prüfung: Angemessene Wohnungsmiete
B3: Einzelbeträge | E3: Werte | H3: Werte
B4: Prüfsumme angem. Wohnungkosten | E4: =SUM(E49,H49) -> 0
B6: EF 1 | F6: Werte
A7: aWoK | B7: berücksichtigte Personenzahl | D7: =IF(SUM(E7:E22)>0,1,0) -> 0 | E7: =IF('EF1'!K8>0,1,0) -> 0 | F7: Heizspiegel geändert | H7: =IF(Werte!A3=Werte!B3,0,1) -> 0
A8: aWoK | B8: weiterer Raumbedarf | E8: =IF('EF1'!V10>0,1,0) -> 0
A9: aWoK | B9: Nettokaltmiete | E9: =IF('EF1'!K14>0,1,0) -> 0
A10: aWoK | B10: Betriebskosten | E10: =IF('EF1'!K16>0,1,0) -> 0
A11: aWoK | B11: Heizmaterialauswahl | E11: ='EF1'!F65 -> 0
A12: aWoK | B12: Gebäudeflächenauswahl | D12: inaktiv | E12: ='EF1'!F67 -> 0
A13: aWoK | B13: tatsächliche Bruttokaltmiete | E13: =IF('EF1'!K10>0,1,0) -> 0
B14: Heizkosten | D14: gelöscht
B15: Option Abzug Warmwasser | E15: ='EF1'!AE6 -> 0
B16: Option Zuschlag 10% sozialer Wohnungsbau | E16: ='EF1'!AE8 -> 0
B17: Option Zuschlag 10% Härtefall | E17: ='EF1'!AE10 -> 0
B18: Option Zuschlag 10% bei Wohnungslosigkeit | E18: ='EF1'!AE12 -> 0
B19: Option Zuschlag 20% bei Wohnungslosigkeit | E19: ='EF1'!AE14 -> 0
B20: Option Änderung m²-Preise zulassen | E20: ='EF1'!AE54 -> 0
B21: Option Heizkostenüberschreitung zulassen | E21: ='EF1'!AE16 -> 0
B22: Option alleinerziehend mit 1 Kind | E22: ='EF1'!AE18 -> 0
B23: Option Bestandsschutz 20% wohnungslos | E23: ='EF1'!AE50 -> 0
B24: Option Wirtschaftlichkeitsbetrachtung | E24: ='EF1'!AE52 -> 0
B25: Option Klimabonus | E25: ='EF1'!AE40 -> 0
B27: EF 2 | F27: EF2-Hnk
B28: Gesamtverbrauch in kWh | D28: =IF(SUM(E28:E35)>0,1,0) -> 0 | E28: =IF('EF2'!S16>0,1,0) -> 0 | F28: tatsächl. Mengenwert des Brennstoffs | H28: =IF('EF2-Hnk'!F8>0,'EF2-Hnk'!F8,0) -> 0
B29: Gesamtheizkosten | E29: =IF('EF2'!S18>0,1,0) -> 0 | F29: Umrechnungswert in kWh | H29: =IF('EF2-Hnk'!F12>0,'EF2-Hnk'!F12,0) -> 0
B30: Nachtspeicherheizung € / kWh | E30: =IF('EF2'!J24>0,1,0) -> 0 | F30: Kosten des gesamten Brennstoffs | H30: =IF('EF2-Hnk'!F18>0,'EF2-Hnk'!F18,0) -> 0
B31: Nachtspeicherheizung Grundpreis | E31: =IF('EF2'!O24>0,1,0) -> 0 | F31: Gesamt- Heiznebenkosten | H31: =IF('EF2-Hnk'!F22>0,'EF2-Hnk'!F22,0) -> 0
B32: Monate | E32: ='EF2'!X24 -> 0
B33: jährliche tatsächliche Heizkosten | E33: =IF('EF2'!S28>0,1,0) -> 0
B34: tatsächliche monatliche Heizkostenvorauszahlung: | E34: =IF('EF2'!T30>0,1,0) -> 0
B36: EF 3
D37: =IF(SUM(E37:E48)>0,1,0) -> 0
B38: tatsächliche Heizkosten (wird aus EF1 übernommen)
B39: tatsächliche WW-Kosten | E39: =IF('EF3'!P14>0,1,0) -> 0
B40: Betrachtungseitraum | E40: ='EF3'!AE20 -> 0
B41: Doppelmieten | E41: ='EF3'!P26 -> 0
B42: Kaution | E42: ='EF3'!P28 -> 0
B43: Genossenschaftsanteile | E43: =IF('EF3'!P30>0,1,0) -> 0
B44: Umzugskosten 1 | E44: =IF('EF3'!P32>0,1,0) -> 0
B45: Umzugskosten 2 | E45: =IF('EF3'!P34>0,1,0) -> 0
B46: Anzahl Umzugshelfer | E46: =IF('EF3'!U32>0,1,0) -> 0
B47: Umzugskosten 3 | E47: =IF('EF3'!P36>0,1,0) -> 0
C49: Prüfwert 1: | E49: =SUM(E5:E48) -> 0 | G49: Prüfwert 2 | H49: =SUM(H5:H48) -> 0
C50: wenn Summe der Prüfwerte = 0,00 - dann alles ok. für neue Berechnung

Sheet Bestellung
A2: Start | C2: Bestellung
O4: Bestellung
AB5: Bestellung per E-Mail:
AB6: bestellung@solei-b.de
C8: SoLei-B GbR
C9: Jürgen Kroggel
C10: Hakenfelder Str. 9
C12: 13587 Berlin
Y14: =NOW() -> 2024-01-30T18:52:30.260
B20: Hiermit bestelle ich Solei-B | P20: Einzelpreis | T20: Anzahl | AA20: Summe
B24: Einzelplatzversion | O24: 49 | T24: =IF(T22>0,1,"") ->  | AA24: =IF(SUM(T24)>0,O24*T24,"") -> 
X26: Rabatt zu Einzel- | AB26: Bei Bestellung weiterer
B27: weitere Lizenzen (Mehrplatzlizenz): | X27: platzversion ca. | AB27: Lizenzen werden die
AB28: schon gekauften
B29: Arbeitsplatz 2 - 5 | O29: 34 | T29: =IF(T22>1,IF(T22>5,4,T22-1),"") ->  | W29: 0.3 | AA29: =IF(SUM(T29)>0,O29*T29,"") ->  | AB29: berücksichtigt, so dass
B30: Arbeitsplatz 6 - 10 | O30: 29 | T30: =IF(T22>5,IF(T22>10,5,T22-5),"") ->  | W30: 0.4 | AA30: =IF(SUM(T30)>0,O30*T30,"") ->  | AB30: sich ein entsprechend
B31: ab 11. Arbeitsplatz | O31: 25 | T31: =IF(T22>10,T22-10,"") ->  | W31: 0.5 | Z31: =IF(SUM(T31)>0,O31*T31,"") ->  | AB31: geringerer Gesamtpreis
AB32: ergibt!
B34: Studentenversion | L34: je | O34: 35 | AA34: =IF(SUM(T34)>0,O34*T34,"") -> 
B35: (bitte Nachweis per Post oder Fax führen)
B38: =IF(SUM(T22,T34)>=0,"Versandkosten","") -> Versandkosten | O38: 5 | P38: =IF(SUM(T22,T34)>=0,"2,50 €","") -> 2,50 € | AA38: =IF(SUM(T22,T34)>0,O38,"") -> 
B40: Gesamtkosten: | Z40: =IF(SUM(AA23:AA30,Z31,AA32:AA39)>0,SUM(AA23:AA30,Z31,AA32:AA39),"") -> 
B41: (als Kleinunternehmer erheben wir keine Mehrwertsteuer)
C45: rechtsverbindliche Unterschrift
B49: Besteller | I49: (zugleich Liefer- und Rechnungsanschrift)
C50: Name:
C51: Strasse/Nr.:
C52: PLZ/Ort:
C53: E-Mail:
C54: Telefon:

Sheet Produktinfo
A1: <--
A2: Start | D2: SoLei-B Produktinformation
A4: >I | D4: (Information zu Programminhalten und -funktionen der SoLei-B Vollversion)
C6: SoLei-B ist ein Berechnungsprogramm für soziale Leistungsansprüche auf der Basis von MS Excel. | AD6: "Angemessene Wohnungsmiete"
C7: Sie benötigen also zunächst dieses MS Office Programm, um SoLei-B nutzen zu können. | AD7: stellt Ihnen die SoLei-B GbR
C8: Wir garantieren die Lauffähigkeit von SoLei-B ab MS Excel 2010. | AD8: kostenlos zur Verfügung.
C10: Als Betriebssystem benötigen Sie ein Microsoft Betriebssystem ab Windows 7, also auch | AD10: Die Vollversion von SoLei-B
C11: Win 8, Win 10 und 11 | AD11: können Sie käuflich erwerben.
C13: Unser Programm setzt fachliche Kenntnisse, insbesondere des SGB II voraus. | AD13: Ein Bestellformular finden Sie
C14: Zielgruppe sind sozial rechtsberatende Berufe. | AD14: unter "SoLei-B Bestellung".
C16: Sie können folgende soziale Leistungsansprüche berechnen:
C18: Bürgergeld
D19: mit folgenden Funktionen nach der Geburtstagseingabe:
C20: ● | D20: automatische Mehrbedarfsberechnung (der allermeisten Fallgestaltungen), auch bei Änderung eines Mehr-
D21: bedarfes im Berechnungsmonat durch Geburtstag
C22: ● | D22: Wechselmöglichkeit des/der Antragstellers/in ohne Änderung der Eingaben
C23: ● | D23: Berechnung der Hauslasten eines Eigenheimes (Rentabilitätsberechnung)
C24: ● | D24: Berechnen des Erwerbstätigenfreibetrages bei unselbständiger und bei selbstständiger Arbeit unter
D25: Berücksichtigung der "weiteren Absetzbeträge"
C26: ● | D26: Errechnen des "Überschreitungskindergeldes" bei Kindern, die dieses zur eigenen Bedarfsdeckung
D27: nicht mehr benötigen
C28: ● | D28: Vergleichsberechnung bei vorliegenden Aufhebungs- und Erstattungsbescheiden
C30: Kinderzuschlag
D31: Aufgrund Ihrer Bürgergeldberechnung und Ihren weiteren Eingaben berechnet SoLei-B den
D32: Kinderzuschlag (autom. Wechsel der Berechnungsgrundlagen zur Miete gem. Existenzminimumbericht)
C34: Wohngeld
C35: ● | D35: Berechnung normaler Fallgestaltungen von Wohngeld
E36: dabei Berücksichtigung von bürgergeldberechtigten Personen (Mischhaushalte)
C37: ● | D37: Funktion zur Datenübertragung aus der Bürgergeldberechnung
C39: Pfändungsfreigrenzen
D40: Berechnung des Freibetrages ab 7-2022 unter Berücksichtigung von
D41: o | E41: Unterhaltspflichten
D42: o | E42: Urlaubsgeld
D43: o | E43: Weihnachtsgeld
D44: Pfändungstabelle
D45: Berechnung von Verzugszinsen
D46: Haushaltsplan
D47: Gläubigerverzeichnis
C49: BAföG
C51: Ausdrucke für Klienten/innen:
C53: Bürgergeld
D54: Minimal:
E55: Kurzer Ausdruck der notwendigen Berechnungsdaten
D56: nach Auswahl:
E57: Hier wählen Sie aus, was zusätzlich mit gedruckt werden soll:
E58: ● | F58: Vermögensfreigrenzen
E59: ● | F59: Alle Einkommensarten (zur Information)
E60: ● | F60: Bereinigung Erwerbseinkommen
E61: ● | F61: Haushaltsangehörige ohne Leistungsanspruch
E62: ● | F62: Aufteilung der Regelleistung (nach Regelsatzverordnung)
D63: Querberechnung
E64: Kurzansicht aller einzelnen eingetragenen Beträge/Personen auf einem DIN A4 Blatt
D65: Rentabilitätsberechnung (Hauslasten) eines Eigenheimes
D66: Tabelle zur Vergleichsberechnung Rückforderung
C68: Kinderzuschlag
D69: Auf einer DIN A4 Seite werden alle Ergebnisse und einzuhaltende Bedingungen angezeigt
D70: weitere Kontrollausdrucke zur Dateneingabe möglich
C72: Wohngeld
D73: Auf einer DIN A4 Seite werden das Ergebnis und die eingetragenen Ausgangsdaten angezeigt
C75: Pfändungsgrenzen
D76: Das Ergebnis
C78: BAföG
D79: Ergebnis und die eingetragenen Ausgangsdaten
C81: Speichermöglichkeit
D83: Ergebnis Bürgergeld (minimal nach gewähltem Umfang und Querberechnung)
E84: Rentabilitätsberechnung des Eigenheimes
D85: Ergebnis Kinderzuschlag
D86: Ergebnis Wohngeld
D87: Ergebnis BAföG
D88: Ergebnis Pfändungsgrenze, Haushaltsplan, Forderungsaufstellung
C90: Werte ändern:
D91: Sie können selber, Ihrer Region gemäß, die Rechenwerte von SoLei-B verändern und einstellen
C93: Hilfen durch
C94: ● | D94: Übersicht über die Strukturprinzipien von SoLei-B
C95: ● | D95: Handbuch
C96: ● | D96: readme Datei
C97: ● | D97: aktuelle Kommentare
C98: ● | D98: Informations- (Unter-)Seiten
C99: ● | D99: Arbeitshilfen (Schulungsunterlagen)
C100: ● | D100: Mustereingaben (automatisch auszulösen)
C101: ● | D101: Web-Verzeichnis (Verknüpfung zu vielen hilfreichen Internetseiten schon auf HTML- Ebene)
C102: ● | D102: SoLei-Ergänzungen zu folgenden Themen (teilweise Berlin - orientiert, teilweise nicht):
D103: o | E103: Regelsätze nach SGB XII (analog für SGB II)
D104: o | E104: Pauschalen, einmalige Leistungen
D105: o | E105: Kosten der Unterkunft (Grenzen für angemessenen Wohnraum)
D106: o | E106: Kohlengeld
D107: o | E107: Bedarf der Grundsicherung
D108: o | E108: Asylbewerberleistungsgesetz (Grundleistungen)
D109: o | E109: häusliche Ersparnis
D110: o | E110: Einkommensgrenzen nach § 85 SGB XII
D111: o | E111: Vermögensfreigrenzen (nach SGB II und SGB XII)
D112: o | E112: Taschengeld/ Barbetrag im SGB XII
D113: o | E113: BAföG / BAB
D114: o | E114: Zuverdienstgrenzen für Rentner
D115: o | E115: Selbstbehalte Unterhaltspflichtiger nach BGB
D116: o | E116: Rangfolge der Unterhaltsverpflichteten

Sheet Einstellungen (hidden)
A1: Start | B1: Einstellungen
B2: Bearbeitungsstand | C2: 2024-02-01 | F2: Jahr: | G2: =YEAR(C2) -> 2024
C3: =TODAY() -> 2024-01-30 | D3: SoLei-B | E3: 2024 - 02 | K3: Auflösung | L3: 2 | M3: =IF(L3=2,"1024 x 768",IF(L3=3,"1280 x 1024","800 x 600")) -> 1024 x 768
K4: Zoomwert | L4: =IF(L3=2,100,IF(L3=3,109,IF(L3=4,135,78))) -> 100 | M4: für Speichertabelle Ergebnis angem. Miete
K5: Zoomwert | L5: =IF(L3=2,150,IF(L3=3,150,IF(L3=4,180,113))) -> 150 | M5: für Speichertabelle Wirtschaftlichkeitsvergleich
B7: 1. Angemessene Wohnungsgrößen zur Mietbegrenzung | F7: Daten aus "Mietspiegel"
B8: Personen | C8: Zimmer | D8: Wohnfläche in m²
B9: 1 | C9: 1 - 2 Zimmer | D9: =Mietspiegel!E24 -> 50
B10: 2 | C10: 2 Zimmer | D10: =Mietspiegel!E25 -> 65
B11: 3 | C11: 3 Zimmer | D11: =Mietspiegel!E27 -> 80
B12: 4 | C12: 4 Zimmer | D12: =Mietspiegel!E28 -> 90
B13: 5 | C13: 5 Zimmer | D13: =Mietspiegel!E29 -> 102
B14: je weitere Person | D14: =Mietspiegel!E30 -> 12
C15: für | D15: Berlin
B17: 2. Kaltmiete | F17: Daten aus "schlüssiges Konzept"
B18: für Wohnungsgrößen | D18: durchnittliche Kaltmiete / m²
B19: 40 m² - einschließlich 60 m² | D19: =ROUND(SUM('schlüssiges Konzept SG'!I63:K64),2) -> 7
B20: über 60 m² - unter 90 m² | D20: =ROUND(SUM('schlüssiges Konzept SG'!L63:N64),2) -> 6.56
B21: über 90 m² | D21: =ROUND(SUM('schlüssiges Konzept SG'!O63:Q64),2) -> 7.03
B23: 3. Betriebskosten | F23: Daten aus "Betriebskosten"
B24: kalte Betriebskosten pro m² | D24: =ROUND(SUM('BK Kosten'!D26),2) -> 1.66
C25: BBU
B27: 4. Heizkosten
B28: Heizenergieträger | C28: Gebäudefläche | D28: monatliche Kosten je m² | F28: Daten aus "Heizkosten" | J28: =Grundberechnung!E95 -> 0 | K28: gewählte Gebäudefläche
C29: 100 - 250 m² | D29: =Heizkosten!G13 -> 2025
B30: 1 Heizöl | C30: 251 - 500 m² | D30: =Heizkosten!G14 -> 241.6666667
C31: 501 - 1000 m² | D31: =Heizkosten!G15 -> 0
C32: > 1000 m² | D32: =Heizkosten!G16 -> 391.6666667
C33: 100 - 250 m² | D33: =Heizkosten!G18 -> 625
B34: 2 Erdgas | C34: 251 - 500 m² | D34: =Heizkosten!G19 -> 708.3333333
C35: 501 - 1000 m² | D35: =Heizkosten!G20 -> 800
C36: > 1000 m² | D36: =Heizkosten!G21 -> 91.66666667
C37: 100 - 250 m² | D37: =Heizkosten!G23 -> 0
B38: 3 Fernwärme | C38: 251 - 500 m² | D38: =Heizkosten!G24 -> 0
C39: 501 - 1000 m² | D39: =Heizkosten!G25 -> 100
C40: > 1000 m² | D40: =Heizkosten!G26 -> 130
C41: 100 - 250 m² | D41: =Heizkosten!G28 -> 180
B42: 4 Wärmepumpe | C42: 251 - 500 m² | D42: =Heizkosten!G29 -> 204
C43: 501 - 1000 m² | D43: =Heizkosten!G30 -> 24
C44: > 1000 m² | D44: =Heizkosten!G31 -> 0
C45: 100 - 250 m² | D45: =MAX(D29,D33,D37,D41) -> 2025 | J45: =IF(J$28=1,D45,0) -> 0
B46: 6 Andere Heizart | C46: 251 - 500 m² | D46: =MAX(D30,D34,D38,D42) -> 708.3333333 | J46: =IF(J$28=2,D46,0) -> 0
B47: maxwert | C47: 501 - 1000 m² | D47: 800 | J47: =IF(J$28=3,D47,0) -> 0
C48: > 1000 m² | D48: 391.6666667 | J48: =IF(J$28=4,D48,0) -> 0
C49: maxwert nach ausgewählter Gebäudefläche: | D49: =J49 -> 0 | E49: maxwert | J49: =SUM(J45:J48) -> 0
B51: 5. Nachtspeicher-Heizkosten | D51: Grenzbeträge | E51: ='EF1'!F65 -> 0 | J51: Nachtspeicherheizung | L51: für Druckdarstellung zur Info
B52: Personen | D52: monatlich | J52: =IF(E51=5,ErgebnisDruck!G19,0) -> 0 | K52: =K63 -> 0 | L52: =ErgebnisDruck!G19 -> 0
B53: 1 | D53: =Werte!AT3 -> 105 | J53: =IF(J$52=B53,D53,0) -> 0 | L53: =IF(L$52=B53,D53,0) -> 0
B54: 2 | C54: mit 1 Kind | D54: =Werte!AV3 -> 130 | J54: =IF(AND(K$52=1,J$52=B54),D54,0) -> 0 | K54: alleinerziehend | L54: =IF(AND(K$52=1,L$52=B54),D54,0) -> 0 | M54: alleinerziehend
B55: 2 | D55: =Werte!AU3 -> 130 | J55: =IF(AND(K$52=0,J$52=B55),D55,0) -> 0 | L55: =IF(AND(K$52=0,L$52=B55),D55,0) -> 0
B56: 3 | D56: =Werte!AW3 -> 160 | J56: =IF(J$52=B56,D56,0) -> 0 | L56: =IF(L$52=B56,D56,0) -> 0
B57: 4 | D57: =Werte!AX3 -> 180 | J57: =IF(J$52=B57,D57,0) -> 0 | L57: =IF(L$52=B57,D57,0) -> 0
B58: 5 | D58: =Werte!AY3 -> 204 | J58: =IF(J$52>=B58,D58,0) -> 0 | L58: =IF(L$52>=B58,D58,0) -> 0
B59: je weitere Person | D59: =Werte!AZ3 -> 24 | J59: =IF(J$52>5,(J$52-5)*D59,0) -> 0 | L59: =IF(L$52>5,(L$52-5)*D59,0) -> 0
B62: 6. Abschlag für dezentr. Warmwasser | D62: ='EF1'!AE20 -> Heizmaterial? | E62: ='EF1'!F65 -> 0 | J62: Zuschlag WW | K62: alleinerziehend
B63: Personen | C63: Zuschlag | D63: monatlich | J63: =IF('EF1'!AE6=1,ErgebnisDruck!G19,0) -> 0 | K63: ='EF1'!AE18 -> 0
B64: 1 | D64: =IF(E62=4,Zuschlag!G12,Zuschlag!E12) -> 7 | J64: =IF(J$63=B64,D64,0) -> 0
B65: 2 | D65: =IF(E62=4,Zuschlag!G13,Zuschlag!E13) -> 9 | J65: =IF(AND(K$63=0,J$63=B65),D65,0) -> 0
B66: 2 | C66: mit 1 Kind | D66: =IF(E62=4,Zuschlag!G14,Zuschlag!E14) -> 9 | J66: =IF(AND(K$63=1,J$63=B66),D66,0) -> 0 | K66: alleinerziehend
B67: 3 | D67: =IF(E62=4,Zuschlag!G15,Zuschlag!E15) -> 11 | J67: =IF(J$63=B67,D67,0) -> 0
B68: 4 | D68: =IF(E62=4,Zuschlag!G16,Zuschlag!E16) -> 12 | J68: =IF(J$63=B68,D68,0) -> 0
B69: 5 | D69: =IF(E62=4,Zuschlag!G17,Zuschlag!E17) -> 14 | J69: =IF(J$63>=B69,D69,0) -> 0
B70: je weitere Person | D70: =IF(E62=4,Zuschlag!G18,Zuschlag!E18) -> 2 | J70: =IF(J63>5,(J63-5)*D70,0) -> 0
J71: =SUM(J64:J70) -> 0
B73: 7. Klimabonus | D73: für Personen: | E73: =Grundberechnung!D6 -> 0 | J73: Klimabonus | K73: alleinerziehend
B74: Personen | D74: monatlich | J74: =E73 -> 0 | K74: =K52 -> 0
B75: 1 | D75: =Werte!S3 -> 25 | J75: =IF(J$74=B75,D75,0) -> 0
B76: 2 | D76: =Werte!T3 -> 32.5 | J76: =IF(AND(K$74=0,J$74=B76),D76,0) -> 0
B77: 2 | C77: mit 1 Kind | D77: =Werte!U3 -> 32.5 | J77: =IF(AND(K$74=1,J$74=B77),D77,0) -> 0 | K77: alleinerziehend
B78: 3 | D78: =Werte!V3 -> 40 | J78: =IF(J$74=B78,D78,0) -> 0
B79: 4 | D79: =Werte!W3 -> 45 | J79: =IF(J$74=B79,D79,0) -> 0
B80: 5 | D80: =Werte!X3 -> 51 | J80: =IF(J$74>=B80,D80,0) -> 0
B81: je weitere Person | D81: =Werte!Y3 -> 6 | J81: =IF(J$74>5,(J$74-5)*D81,0) -> 0
J82: =SUM(J75:J81) -> 0
B84: 8. Mietgrenzen nach WoGG | C84: Sonderregelung
B85: Mietniveaustufe für Berlin | D85: =Werte!GW3 -> 4
J94: =SUM(J53:J59) -> 0 | L94: =SUM(L53:L59) -> 0

Sheet Werte (hidden)
A1: Start | B1: Werte | C1: nach: Mietspiegel | EB1: bei Angemessenheit | GC1: https://www.berlin.de/sen/soziales/service/berliner-sozialrecht/kategorie/sonstige/brennstoffe-601787.php
B2: Standard | I2: =IF(SUM(AC3:BD3)=0,"kein gültiger Heizkostenspiegel ausgewählt !","") ->  | EB2: nach Wohngeldtabelle | ED2: aktuell für angemessene Mietberechnung nicht relevant | EK2: aktuell für angemessene Mietberechnung nicht relevant | EY2: jährlich/ m² | FF2: jährlich/ m² | FN2: jährlich/ m² | FU2: jährlich/ m² | GC2: jährlich/ m²
A3: 10 | B3: 10 | C3: =IF(G10>0,"< ggf. Standard anpassen","") -> < ggf. Standard anpassen | E3: =INDEX(E8:E21,$A3) -> 2022-12-13 | F3: =INDEX(F8:F21,$A3) -> 2023-09-04 | G3: 2023-10-01 | I3: =INDEX(I8:I21,$A3) -> 0 | J3: 7.21 | K3: 7.21 | L3: 6.59 | M3: 7.09 | N3: 2023 | P3: =INDEX(P8:P21,$A3) -> 1.77 | Q3: 0 | S3: =INDEX(S8:S21,$A3) -> 25 | T3: 32.5 | U3: 32.5 | V3: 40 | W3: 45 | X3: 51 | Y3: 6 | AC3: =INDEX(AC8:AC21,$A3) -> 18.1 | AD3: 17.6 | AE3: 17.1 | AF3: 16.7 | AG3: 17 | AH3: 15.8 | AI3: 14.7 | AJ3: 14 | AK3: 22.6 | AL3: 21 | AM3: 19.7 | AN3: 18.8 | AO3: 22.5 | AP3: 21.6 | AQ3: 20.8 | AR3: 20.3 | AT3: =INDEX(AT8:AT21,$A3) -> 105 | AU3: =INDEX(AU8:AU21,$A3) -> 130 | AV3: =INDEX(AV8:AV21,$A3) -> 130 | AW3: 160 | AX3: 180 | AY3: 204 | AZ3: 24 | BB3: =INDEX(BB8:BB21,$A3) -> 0 | BC3: 0 | BD3: 1.6 | BE3: 2.1 | BG3: =INDEX(BG8:BG21,$A3) -> 0 | BN3: =INDEX(BN8:BN21,$A3) -> 7 | BO3: 9 | BP3: 9 | BQ3: 11 | BR3: 12 | BS3: 14 | BT3: =INDEX(BT8:BT21,$A3) -> 2 | BU3: 9 | BV3: 11 | BW3: 11 | BX3: 14 | BY3: 16 | BZ3: 18 | CA3: 2 | CC3: =INDEX(CC8:CC21,$A3) -> 50 | CD3: 65 | CE3: 65 | CF3: 80 | CG3: 90 | CH3: 102 | CI3: 12 | CK3: =INDEX(CK8:CK21,$A3) -> 338 | CL3: 381 | CM3: 426 | CN3: 478 | CO3: 525 | CP3: 575 | CQ3: 633 | CR3: 409 | CS3: 461 | CT3: 516 | CU3: 579 | CV3: 636 | CW3: 697 | CX3: 767 | CY3: 487 | CZ3: 549 | DA3: 614 | DB3: 689 | DC3: 757 | DD3: 830 | DE3: 912 | DF3: 568 | DG3: 641 | DH3: 716 | DI3: 803 | DJ3: 884 | DK3: 968 | DL3: 1065 | DM3: 649 | DN3: 732 | DO3: 818 | DP3: 918 | DQ3: 1010 | DR3: 1106 | DS3: 1217 | DT3: 77 | DU3: 88 | DV3: 99 | DW3: 111 | DX3: 121 | DY3: 139 | DZ3: 153 | EB3: =INDEX(EB8:EB21,$A3) -> 10 | ED3: =INDEX(ED8:ED21,$A3) -> 14.4 | EE3: 18.6 | EF3: 22.2 | EG3: 25.8 | EH3: 29.4 | EI3: 3.6 | EK3: 96 | EL3: 124 | EM3: 148 | EN3: 172 | EO3: 196 | EP3: 24 | ER3: 19.2 | ES3: 24.8 | ET3: 29.6 | EU3: 34.4 | EV3: 39.2 | EW3: 4.8 | EY3: =INDEX(EY8:EY21,$A3) -> 238 | EZ3: 11900 | FA3: 15500 | FB3: 19000 | FC3: 21400 | FD3: 24300 | FE3: 2900 | FF3: 24 | FG3: 1200 | FH3: 1560 | FI3: 1920 | FJ3: 2160 | FK3: 2448 | FL3: 288 | FN3: =INDEX(FN8:FN21,$A3) -> 94 | FO3: 4700 | FP3: 6100 | FQ3: 7500 | FR3: 8500 | FS3: 9600 | FT3: 1100 | FU3: 9.6 | FV3: 480 | FW3: 624 | FX3: 768 | FY3: 864 | FZ3: 979 | GA3: 115 | GC3: =INDEX(GC8:GC21,$A3) -> 120 | GD3: 6000 | GE3: 7800 | GF3: 9600 | GG3: 10800 | GH3: 12240 | GI3: 1440 | GK3: =INDEX(GK8:GK21,$A3) -> 0.33 | GL3: 0.33 | GM3: 0.33 | GN3: 0.33 | GO3: 0.33 | GP3: 0.33 | GR3: =INDEX(GR8:GR21,$A3) -> 10 | GS3: =INDEX(GS8:GS21,$A3) -> 20 | GT3: =INDEX(GT8:GT21,$A3) -> 10 | GU3: =INDEX(GU8:GU21,$A3) -> 15 | GW3: =INDEX(GW8:GW21,$A3) -> 4
I4: € | J4: € | K4: € | L4: € | M4: € | N4: € | P4: € | Q4: € | S4: € | T4: € | U4: € | V4: € | W4: € | X4: € | Y4: € | AA4: Jahr | AC4: € | AD4: € | AE4: € | AF4: € | AG4: € | AH4: € | AI4: € | AJ4: € | AK4: € | AL4: € | AM4: € | AN4: € | AO4: € | AP4: € | AQ4: € | AR4: € | AT4: € | AU4: € | AV4: € | AW4: € | AX4: € | AY4: € | AZ4: € | BB4: Jahr | BC4: Jahr | BD4: € | BE4: € | BN4: € | BO4: € | BP4: € | BQ4: € | BR4: € | BS4: € | BT4: € | BU4: € | BV4: € | BW4: € | BX4: € | BY4: € | BZ4: € | CA4: € | CC4: m² | CD4: m² | CE4: m² | CF4: m² | CG4: m² | CH4: m² | CI4: m² | CK4: € | CL4: € | CM4: € | CN4: € | CO4: € | CP4: € | CQ4: € | CR4: € | CS4: € | CT4: € | CU4: € | CV4: € | CW4: € | CX4: € | CY4: € | CZ4: € | DA4: € | DB4: € | DC4: € | DD4: € | DE4: € | DF4: € | DG4: € | DH4: € | DI4: € | DJ4: € | DK4: € | DL4: € | DM4: € | DN4: € | DO4: € | DP4: € | DQ4: € | DR4: € | DS4: € | DT4: € | DU4: € | DV4: € | DW4: € | DX4: € | DY4: € | DZ4: € | EB4: % | ED4: € | EE4: € | EF4: € | EG4: € | EH4: € | EI4: € | EK4: € | EL4: € | EM4: € | EN4: € | EO4: € | EP4: € | ER4: € | ES4: € | ET4: € | EU4: € | EV4: € | EW4: € | EY4: kWh | EZ4: kWh | FA4: kWh | FB4: kWh | FC4: kWh | FD4: kWh | FE4: kWh | FF4: kWh | FG4: kWh | FH4: kWh | FI4: kWh | FJ4: kWh | FK4: kWh | FL4: kWh | FN4: kWh | FO4: kWh | FP4: kWh | FQ4: kWh | FR4: kWh | FS4: kWh | FT4: kWh | FU4: kWh | FV4: kWh | FW4: kWh | FX4: kWh | FY4: kWh | FZ4: kWh | GA4: kWh | GC4: kWh | GD4: kWh | GE4: kWh | GF4: kWh | GG4: kWh | GH4: kWh | GI4: kWh | GK4: € | GL4: € | GM4: € | GN4: € | GO4: € | GP4: € | GR4: % | GS4: % | GT4: % | GU4: % | GW4: %
A5: HzK | E5: 1. Änderungsdatum | I5: 2. Angemessene Netto-Kaltmiete zur Mietbegrenzung | P5: 3. Angemessene Betriebskosten | S5: Klimabonus | U5: AV-Wohnen 3.3.4 (Anlage 1) | AA5: 4. Angemessene Heizkosten zur Mietbegrenzung | AV5: bis 31.12.2021 | BD5: Pauschale | BE5: Wärmepumpe | BG5: Kommentar zum Heizspiegel auf Startseite | BN5: 5. Warmwasserpauschalen | BQ5: bis 31.12.2021 | BW5: bis 31.12.2021 | CC5: 6. Mietwohnungsgröße | CK5: 7. Mietobergrenzen | CM5: §12 Abs. 1 WoGG | EB5: Mietgrenze | ED5: 8a. Heizkostenenlastung § 12 (6) | EG5: gültig ab 1.1.2023 | EK5: 8b. Heizkostenkomponente § 12 (6) | EN5: gültig bis 31.12.2010 und ab 1.1.2021 | ER5: 8c. Heizkosten-Klimakomponente § 12 (7) | EW5: gültig ab 1.1.2023 | EY5: 9. Heizkostengrenzwerte nach kWh | GR5: 10. Zuschläge | GW5: 11. WoGG
E6: AV-Wohnen | I6: Netto-Kaltmiete je m² | N6: nach | P6: Bk / m² | Q6: BBU-Wert | S6: + Zuschlag auf Betriebskosten | AA6: Heizspiegel | AC6: Heizöl-Heizkosten für Produktmethode in m² | AG6: Erdgas-Heizkosten für Produktmethode in m² | AK6: Fernwärme-Heizkosten für Produktmethode in m² | AO6: Wärmepumpe-Heizkosten für Produktmethode in m² | AT6: Nachtspeicher-Heizkosten für Produktmethode | AY6: alle Räume Nachtspeicherheizung | BB6: Heizkostenspiegel | BD6: Warmwasser | BE6: Warmwasser | BN6: Pauschaler Abzug bei dezentraler Warmwasserversorgung | BU6: Pauschaler Abzug bei dezentraler Warmwasserversorgung Wärmepumpe | CE6: 2 Personen | CK6: 1 Person im Haushalt | CR6: 2 Personen im Haushalt | CY6: 3 Personen im Haushalt | DF6: 4 Personen im Haushalt | DM6: 5 Personen im Haushalt | DT6: je weitere Person im Haushalt | EB6: Zuschlag | ED6: 1 Pers. | EE6: 2 Pers. | EF6: 3 Pers. | EG6: 4 Pers. | EH6: 5 Pers. | EI6: je weitere P. | EK6: 1 Pers. | EL6: 2 Pers. | EM6: 3 Pers. | EN6: 4 Pers. | EO6: 5 Pers. | EP6: je weitere P. | ER6: 1 Pers. | ES6: 2 Pers. | ET6: 3 Pers. | EU6: 4 Pers. | EV6: 5 Pers. | EW6: je weitere P. | EY6: a) fossile Brennstoffe | FC6: Anlage 2 AV-Wohnen | FF6: Abschlag für dezentrale Warmwasserversorgung in kWh pro Jahr | FL6: Erdgas, Heizöl, Fernwärme | FN6: b) Wärmepumpe | FR6: Anlage 2 AV-Wohnen | FU6: Abschlag für dezentrale Warmwasserversorgung in kWh pro Jahr | GA6: Erdgas, Heizöl, Fernwärme | GC6: c) Nachtspeicherheizung | GE6: Verbrauch pro Jahr | GJ6: Kosten pro kWh | GR6: Sozialer WB | GS6: wohnungslos | GT6: Härtefall | GU6: Umzugs- | GW6: Mietniveau-
D7: =G7 -> gültig ab | E7: vom | F7: geändert | G7: gültig ab | I7: bis < 40 m² | J7: 40 bis < 60 m² | K7: 60 m² | L7: > 60 bis 90 m² | M7: > 90 m² | N7: Mietspiegel | S7: 1 Person BG | T7: 2 Personen BG | U7: 2 P. alleinerz. BG | V7: 3 Personen BG | W7: 4 Personen BG | X7: 5 Personen BG | Y7: je weitere Pers. | AA7: Jahr | AB7: Geb.-fläche: | AC7: 100 - 250 | AD7: 251 - 500 | AE7: 501 - 1000 | AF7: > 1000 | AG7: 100 - 250 | AH7: 251 - 500 | AI7: 501 - 1000 | AJ7: > 1000 | AK7: 100 - 250 | AL7: 251 - 500 | AM7: 501 - 1000 | AN7: > 1000 | AO7: 100 - 250 | AP7: 251 - 500 | AQ7: 501 - 1000 | AR7: > 1000 | AT7: 1 Person BG | AU7: 2 Personen BG | AV7: 2 P. alleinerz. BG | AW7: 3 Personen BG | AX7: 4 Personen BG | AY7: 5 Personen BG | AZ7: je weitere Pers. | BB7: Jahr | BC7: Werte aus | BD7: €/m²/Jahr | BE7: €/m²/Jahr | BN7: 1. Person | BO7: 2 Personen | BP7: alleinerz.,1 Kd. | BQ7: 3 Personen | BR7: 4 Personen | BS7: 5 Personen | BT7: je weitere P. | BU7: 1. Person | BV7: 2 Personen | BW7: alleinerz.,1 Kd. | BX7: 3 Personen | BY7: 4 Personen | BZ7: 5 Personen | CA7: je weitere P. | CC7: 1. Person | CD7: 2 Personen | CE7: alleinerz., 1 Kd. | CF7: 3 Personen | CG7: 4 Personen | CH7: 5 Personen | CI7: je weitere P. | CK7: Mietstufe 1 | CL7: Mietstufe 2 | CM7: Mietstufe 3 | CN7: Mietstufe 4 | CO7: Mietstufe 5 | CP7: Mietstufe 6 | CQ7: Mietstufe 7 | CR7: Mietstufe 1 | CS7: Mietstufe 2 | CT7: Mietstufe 3 | CU7: Mietstufe 4 | CV7: Mietstufe 5 | CW7: Mietstufe 6 | CX7: Mietstufe 7 | CY7: Mietstufe 1 | CZ7: Mietstufe 2 | DA7: Mietstufe 3 | DB7: Mietstufe 4 | DC7: Mietstufe 5 | DD7: Mietstufe 6 | DE7: Mietstufe 7 | DF7: Mietstufe 1 | DG7: Mietstufe 2 | DH7: Mietstufe 3 | DI7: Mietstufe 4 | DJ7: Mietstufe 5 | DK7: Mietstufe 6 | DL7: Mietstufe 7 | DM7: Mietstufe 1 | DN7: Mietstufe 2 | DO7: Mietstufe 3 | DP7: Mietstufe 4 | DQ7: Mietstufe 5 | DR7: Mietstufe 6 | DS7: Mietstufe 7 | DT7: Mietstufe 1 | DU7: Mietstufe 2 | DV7: Mietstufe 3 | DW7: Mietstufe 4 | DX7: Mietstufe 5 | DY7: Mietstufe 6 | DZ7: Mietstufe 7 | EB7: in % | EY7: max. Grenzwert | EZ7: 1. Person | FA7: 2 Personen | FB7: 3 Personen | FC7: 4 Personen | FD7: 5 Personen | FE7: je weitere P. | FF7: max. Grenzwert | FG7: 1. Person | FH7: 2 Personen | FI7: 3 Personen | FJ7: 4 Personen | FK7: 5 Personen | FL7: je weitere P. | FN7: max. Grenzwert | FO7: 1. Person | FP7: 2 Personen | FQ7: 3 Personen | FR7: 4 Personen | FS7: 5 Personen | FT7: je weitere P. | FU7: max. Grenzwert | FV7: 1. Person | FW7: 2 Personen | FX7: 3 Personen | FY7: 4 Personen | FZ7: 5 Personen | GA7: je weitere P. | GC7: max. Grenzwert | GD7: 1. Person | GE7: 2 Personen | GF7: 3 Personen | GG7: 4 Personen | GH7: 5 Personen | GI7: je weitere P. | GJ7: max. Grenzwert | GK7: 1. Person | GL7: 2 Personen | GM7: 3 Personen | GN7: 4 Personen | GO7: 5 Personen | GP7: je weitere P. | GS7: Bestandsschutz | GU7: vermeidung | GW7: stufe Berlin
B8: 1 | C8: =IF(B$3=B8,"Standard","") ->  | D8: =G8 -> 2015-12-01 | E8: 2015-11-24 | G8: 2015-12-01 | J8: 5.71 | L8: 5.33 | M8: 5.43 | N8: 2015 | P8: 1.58 | Q8: 1.67 | AA8: 2015 | AC8: 19.7 | AD8: 19 | AE8: 18.4 | AF8: 18 | AG8: 18.9 | AH8: 17.9 | AI8: 17.1 | AJ8: 16.6 | AK8: 22.3 | AL8: 21.4 | AM8: 20.7 | AN8: 20.1 | BB8: 2015 | BC8: 2014 | BD8: 1.9 | BN8: 8 | BO8: 11 | BQ8: 13 | BR8: 15 | BS8: 17 | BT8: 2 | CC8: 50 | CD8: 60 | CF8: 75 | CG8: 85 | CH8: 97 | CI8: 12
B9: 2 | D9: =IF(G9>G8,G9,"") -> 2017-01-01 | E9: 2015-11-24 | F9: 2016-12-06 | G9: 2017-01-01 | J9: 5.71 | L9: 5.33 | M9: 5.43 | N9: 2015 | P9: 1.58 | Q9: 1.67 | AA9: 2016 | AC9: 16.3 | AD9: 15.6 | AE9: 15 | AF9: 14.6 | AG9: 19.2 | AH9: 18.2 | AI9: 17.3 | AJ9: 16.8 | AK9: 23 | AL9: 21.8 | AM9: 20.8 | AN9: 20.1 | BB9: 2016 | BC9: 2015 | BD9: 1.75 | BN9: 7 | BO9: 9 | BQ9: 11 | BR9: 12 | BS9: 14 | BT9: 2 | CC9: 50 | CD9: 60 | CF9: 75 | CG9: 85 | CH9: 97 | CI9: 12
B10: 3 | D10: =IF(G10>G9,G10,"") -> 2018-01-01 | E10: 2017-12-27 | F10: 2017-12-06 | G10: 2018-01-01 | J10: 6.46 | K10: 6.25 | L10: 5.94 | M10: 6.18 | N10: 2017 | P10: 1.62 | AA10: 2017 | AC10: 16.3 | AD10: 13.7 | AE10: 13.2 | AF10: 12.9 | AG10: 18.8 | AH10: 17.7 | AI10: 16.8 | AJ10: 16.2 | AK10: 22.5 | AL10: 21.2 | AM10: 20.2 | AN10: 19.4 | BB10: 2017 | BC10: 2016 | BD10: 1.45 | BN10: 6 | BO10: 7 | BP10: 8 | BQ10: 10 | BR10: 11 | BS10: 12 | BT10: 1 | CC10: 50 | CD10: 60 | CE10: 65 | CF10: 80 | CG10: 90 | CH10: 102 | CI10: 12
B11: 4 | D11: =IF(G11>G10,G11,"") -> 2019-01-01 | E11: 2017-12-27 | F11: 2018-12-07 | G11: 2019-01-01 | J11: 6.77 | K11: 6.59 | L11: 6.18 | M11: 6.66 | N11: 2019 | P11: 1.66 | Q11: =Q10 -> 0 | AA11: 2018 | AC11: 16.2 | AD11: 15.5 | AE11: 14.9 | AF11: 14.5 | AG11: 17.9 | AH11: 16.8 | AI11: 15.9 | AJ11: 15.3 | AK11: 22 | AL11: 20.8 | AM11: 19.7 | AN11: 19 | BB11: 2018 | BC11: 2017 | BD11: 1.5 | BN11: =BN10 -> 6 | BO11: 8 | BP11: =BP10 -> 8 | BQ11: =BQ10 -> 10 | BR11: 11 | BS11: 13 | BT11: 2 | CC11: =CC10 -> 50 | CD11: 60 | CE11: 65 | CF11: 80 | CG11: 90 | CH11: 102 | CI11: =CI10 -> 12 | GR11: 10 | GS11: 20 | GT11: 10 | GU11: 10 | GW11: 4
B12: 5 | D12: 2019-12-01 | E12: 2019-09-27 | F12: 2019-11-29 | G12: 2019-12-01 | J12: 6.77 | K12: 6.59 | L12: 6.18 | M12: 6.66 | N12: 2019 | P12: 1.66 | Q12: 0 | S12: 31 | T12: 38 | U12: 41 | V12: 50 | W12: 56 | X12: 64 | Y12: 8 | AA12: 2019 | AC12: 18.2 | AD12: 17.4 | AE12: 16.8 | AF12: 16.3 | AG12: 16.4 | AH12: 15.1 | AI12: 14 | AJ12: 13.3 | AK12: 21.3 | AL12: 20.1 | AM12: 19.1 | AN12: 18.4 | AO12: 21.1 | AP12: 20.2 | AQ12: 19.4 | AR12: 18.9 | AT12: 105 | AU12: 120 | AV12: 130 | AW12: 160 | AX12: 180 | AY12: 204 | AZ12: 24 | BB12: 2019 | BC12: 2018 | BD12: 1.55 | BE12: 2.05 | BN12: 6 | BO12: 8 | BP12: 8 | BQ12: 10 | BR12: 12 | BS12: =BS11 -> 13 | BT12: =BT11 -> 2 | BU12: 9 | BV12: 10 | BW12: 11 | BX12: 14 | BY12: 15 | BZ12: 17 | CA12: 2 | CC12: =CC11 -> 50 | CD12: =CD11 -> 60 | CE12: =CE11 -> 65 | CF12: =CF11 -> 80 | CG12: =CG11 -> 90 | CH12: =CH11 -> 102 | CI12: 12 | GR12: =GR11 -> 10 | GS12: =GS11 -> 20 | GT12: 10 | GU12: 10 | GW12: =GW11 -> 4
B13: 6 | D13: 2021-03-01 | E13: 2019-09-27 | F13: 2019-11-29 | G13: 2021-03-01 | J13: 6.77 | K13: 6.59 | L13: 6.18 | M13: 6.66 | N13: 2019 | P13: 1.66 | Q13: 0 | S13: 31 | T13: 38 | U13: 41 | V13: 50 | W13: 56 | X13: 64 | Y13: 8 | AA13: 2020 | AC13: 18.1 | AD13: 17.6 | AE13: 17.1 | AF13: 16.7 | AG13: 17 | AH13: 15.8 | AI13: 14.7 | AJ13: 14 | AK13: 22.6 | AL13: 21 | AM13: 19.7 | AN13: 18.8 | AO13: 22.5 | AP13: 21.6 | AQ13: 20.8 | AR13: 20.3 | AT13: =AT12 -> 105 | AU13: =AU12 -> 120 | AV13: =AV12 -> 130 | AW13: =AW12 -> 160 | AX13: =AX12 -> 180 | AY13: =AY12 -> 204 | AZ13: =AZ12 -> 24 | BB13: 2020 | BC13: 2019 | BD13: 1.6 | BE13: 2.1 | BG13: Der Heizspiegel 2020 wurde erst ab 01.03.2021 in die AV-Wohnen übernommen. | BN13: 7 | BO13: 8 | BP13: 9 | BQ13: 11 | BR13: =BR12 -> 12 | BS13: 14 | BT13: 2 | BU13: =BU12 -> 9 | BV13: 11 | BW13: =BW12 -> 11 | BX13: 14 | BY13: 16 | BZ13: 18 | CA13: =CA12 -> 2 | CC13: 50 | CD13: 60 | CE13: 65 | CF13: 80 | CG13: 90 | CH13: 102 | CI13: 12 | GR13: 10 | GS13: 20 | GT13: 10 | GU13: 10 | GW13: 4
B14: 7 | D14: 2021-07-01 | E14: 2019-09-27 | F14: 2021-06-09 | G14: 2021-07-01 | J14: 6.84 | K14: 6.66 | L14: 6.25 | M14: 6.73 | N14: 2021 | P14: 1.68 | Q14: 0 | S14: 25 | T14: 30 | U14: 32.5 | V14: 40 | W14: 45 | X14: 51 | Y14: 6 | AA14: 2020 | AC14: 18.1 | AD14: 17.6 | AE14: 17.1 | AF14: 16.7 | AG14: 17 | AH14: 15.8 | AI14: 14.7 | AJ14: 14 | AK14: 22.6 | AL14: 21 | AM14: 19.7 | AN14: 18.8 | AO14: 22.5 | AP14: 21.6 | AQ14: 20.8 | AR14: 20.3 | AT14: 105 | AU14: 120 | AV14: 130 | AW14: 160 | AX14: 180 | AY14: 204 | AZ14: 24 | BB14: 2020 | BC14: 2019 | BD14: =BD13 -> 1.6 | BE14: =BE13 -> 2.1 | BN14: =BN13 -> 7 | BO14: 8 | BP14: =BP13 -> 9 | BQ14: =BQ13 -> 11 | BR14: 12 | BS14: =BS13 -> 14 | BT14: 2 | BU14: =BU13 -> 9 | BV14: =BV13 -> 11 | BW14: 11 | BX14: 14 | BY14: =BY13 -> 16 | BZ14: 18 | CA14: 2 | CC14: 50 | CD14: 60 | CE14: 65 | CF14: 80 | CG14: 90 | CH14: 102 | CI14: 12 | EJ14: ab 1.1.2021 | EK14: 14.4 | EL14: 18.6 | EM14: 22.2 | EN14: 25.8 | EO14: 29.4 | EP14: 3.6 | GR14: 10 | GS14: 20 | GT14: 10 | GU14: 10 | GW14: 4
B15: 8 | D15: 2022-01-01 | E15: 2021-12-14 | F15: 2021-12-14 | G15: 2022-01-01 | J15: 6.84 | K15: 6.25 | L15: 6.25 | M15: 6.73 | N15: 2021 | P15: 1.68 | Q15: 0 | S15: =S14 -> 25 | T15: 32.5 | U15: =U14 -> 32.5 | V15: =V14 -> 40 | W15: =W14 -> 45 | X15: =X14 -> 51 | Y15: =Y14 -> 6 | AA15: 2021 | AC15: =AC14 -> 18.1 | AD15: =AD14 -> 17.6 | AE15: =AE14 -> 17.1 | AF15: =AF14 -> 16.7 | AG15: =AG14 -> 17 | AH15: =AH14 -> 15.8 | AI15: =AI14 -> 14.7 | AJ15: =AJ14 -> 14 | AK15: =AK14 -> 22.6 | AL15: =AL14 -> 21 | AM15: =AM14 -> 19.7 | AN15: =AN14 -> 18.8 | AO15: =AO14 -> 22.5 | AP15: =AP14 -> 21.6 | AQ15: =AQ14 -> 20.8 | AR15: =AR14 -> 20.3 | AT15: 105 | AU15: 130 | AV15: =AU15 -> 130 | AW15: 160 | AX15: 180 | AY15: 204 | AZ15: 24 | BB15: 2021 | BC15: 2019 | BD15: 1.6 | BE15: 2.1 | BG15: Bestandsschutz: Anwendung Heizspiegel 2020 | BN15: 7 | BO15: 9 | BP15: =BO15 -> 9 | BQ15: 11 | BR15: 12 | BS15: 14 | BT15: 2 | BU15: 9 | BV15: 11 | BW15: =BV15 -> 11 | BX15: =BX14 -> 14 | BY15: =BY14 -> 16 | BZ15: =BZ14 -> 18 | CA15: =CA14 -> 2 | CC15: 50 | CD15: 65 | CE15: =CE14 -> 65 | CF15: =CF14 -> 80 | CG15: =CG14 -> 90 | CH15: =CH14 -> 102 | CI15: 12 | CK15: 347 | CL15: 392 | CM15: 438 | CN15: 491 | CO15: 540 | CP15: 591 | CQ15: 651 | CR15: 420 | CS15: 474 | CT15: 530 | CU15: 595 | CV15: 654 | CW15: 716 | CX15: 788 | CY15: 501 | CZ15: 564 | DA15: 631 | DB15: 708 | DC15: 778 | DD15: 853 | DE15: 937 | DF15: 584 | DG15: 659 | DH15: 736 | DI15: 825 | DJ15: 909 | DK15: 995 | DL15: 1095 | DM15: 667 | DN15: 752 | DO15: 841 | DP15: 944 | DQ15: 1038 | DR15: 1137 | DS15: 1251 | DT15: 79 | DU15: 90 | DV15: 102 | DW15: 114 | DX15: 124 | DY15: 143 | DZ15: 157 | EB15: 10 | EK15: =EK14 -> 14.4 | EL15: 18.6 | EM15: 22.2 | EN15: 25.8 | EO15: 29.4 | EP15: 3.6 | GR15: 10 | GS15: 20 | GT15: 10 | GU15: 10 | GW15: 4
B16: 9 | D16: 2023-01-01 | E16: 2022-12-13 | F16: 2022-12-13 | G16: 2023-01-01 | J16: 6.84 | K16: 6.25 | L16: 6.25 | M16: 6.73 | N16: 2021 | P16: 1.68 | Q16: 0 | S16: =S15 -> 25 | T16: =T15 -> 32.5 | U16: 32.5 | V16: 40 | W16: 45 | X16: 51 | Y16: 6 | AC16: 18.1 | AD16: 17.6 | AE16: 17.1 | AF16: 16.7 | AG16: 17 | AH16: 15.8 | AI16: 14.7 | AJ16: 14 | AK16: 22.6 | AL16: 21 | AM16: 19.7 | AN16: 18.8 | AO16: 22.5 | AP16: 21.6 | AQ16: 20.8 | AR16: 20.3 | AT16: 105 | AU16: 130 | AV16: =AU16 -> 130 | AW16: 160 | AX16: 180 | AY16: 204 | AZ16: 24 | BD16: 1.6 | BE16: 2.1 | BN16: 7 | BO16: 9 | BP16: =BO16 -> 9 | BQ16: 11 | BR16: 12 | BS16: 14 | BT16: 2 | BU16: 9 | BV16: 11 | BW16: =BV16 -> 11 | BX16: 14 | BY16: 16 | BZ16: 18 | CA16: 2 | CC16: =CC15 -> 50 | CD16: =CD15 -> 65 | CE16: =CE15 -> 65 | CF16: =CF15 -> 80 | CG16: =CG15 -> 90 | CH16: =CH15 -> 102 | CI16: 12 | CK16: 338 | CL16: 381 | CM16: 426 | CN16: 478 | CO16: 525 | CP16: 575 | CQ16: 633 | CR16: 409 | CS16: 461 | CT16: 516 | CU16: 579 | CV16: 636 | CW16: 697 | CX16: 767 | CY16: 487 | CZ16: 549 | DA16: 614 | DB16: 689 | DC16: 757 | DD16: 830 | DE16: 912 | DF16: 568 | DG16: 641 | DH16: 716 | DI16: 803 | DJ16: 884 | DK16: 968 | DL16: 1065 | DM16: 649 | DN16: 732 | DO16: 818 | DP16: 918 | DQ16: 1010 | DR16: 1106 | DS16: 1217 | DT16: 77 | DU16: 88 | DV16: 99 | DW16: 111 | DX16: 121 | DY16: 139 | DZ16: 153 | EB16: =EB15 -> 10 | ED16: 14.4 | EE16: 18.6 | EF16: 22.2 | EG16: 25.8 | EH16: 29.4 | EI16: 3.6 | EK16: 96 | EL16: 124 | EM16: 148 | EN16: 172 | EO16: 196 | EP16: 24 | ER16: 19.2 | ES16: 24.8 | ET16: 29.6 | EU16: 34.4 | EV16: 39.2 | EW16: 4.8 | EY16: 238 | EZ16: 11900 | FA16: 15500 | FB16: 19000 | FC16: 21400 | FD16: 24300 | FE16: 2900 | FF16: 24 | FG16: 1200 | FH16: 1560 | FI16: 1920 | FJ16: 2160 | FK16: 2448 | FL16: 288 | FN16: 94 | FO16: 4700 | FP16: 6100 | FQ16: 7500 | FR16: 8500 | FS16: 9600 | FT16: 1100 | FU16: 9.6 | FV16: 480 | FW16: 624 | FX16: 768 | FY16: 864 | FZ16: 979 | GA16: 115 | GC16: 120 | GD16: 6000 | GE16: 7800 | GF16: 9600 | GG16: 10800 | GH16: 12240 | GI16: 1440 | GK16: 0.33 | GL16: 0.33 | GM16: 0.33 | GN16: 0.33 | GO16: 0.33 | GP16: 0.33 | GR16: 10 | GS16: =GS15 -> 20 | GT16: 10 | GU16: 15 | GW16: 4
B17: 10 | C17: Standard | D17: 2023-10-01 | E17: =E16 -> 2022-12-13 | F17: 2023-09-04 | G17: 2023-10-01 | J17: 7.21 | K17: 7.21 | L17: 6.59 | M17: 7.09 | N17: 2023 | P17: 1.77 | Q17: 0 | S17: 25 | T17: 32.5 | U17: 32.5 | V17: 40 | W17: 45 | X17: 51 | Y17: 6 | AC17: 18.1 | AD17: 17.6 | AE17: 17.1 | AF17: 16.7 | AG17: 17 | AH17: 15.8 | AI17: 14.7 | AJ17: 14 | AK17: 22.6 | AL17: 21 | AM17: 19.7 | AN17: 18.8 | AO17: 22.5 | AP17: 21.6 | AQ17: 20.8 | AR17: 20.3 | AT17: 105 | AU17: 130 | AV17: 130 | AW17: 160 | AX17: 180 | AY17: 204 | AZ17: 24 | BD17: 1.6 | BE17: 2.1 | BN17: 7 | BO17: 9 | BP17: 9 | BQ17: 11 | BR17: 12 | BS17: 14 | BT17: 2 | BU17: 9 | BV17: 11 | BW17: 11 | BX17: 14 | BY17: 16 | BZ17: 18 | CA17: 2 | CC17: 50 | CD17: 65 | CE17: 65 | CF17: 80 | CG17: 90 | CH17: 102 | CI17: 12 | CK17: =CK16 -> 338 | CL17: =CL16 -> 381 | CM17: =CM16 -> 426 | CN17: =CN16 -> 478 | CO17: =CO16 -> 525 | CP17: =CP16 -> 575 | CQ17: =CQ16 -> 633 | CR17: =CR16 -> 409 | CS17: =CS16 -> 461 | CT17: =CT16 -> 516 | CU17: =CU16 -> 579 | CV17: =CV16 -> 636 | CW17: =CW16 -> 697 | CX17: =CX16 -> 767 | CY17: =CY16 -> 487 | CZ17: =CZ16 -> 549 | DA17: =DA16 -> 614 | DB17: =DB16 -> 689 | DC17: =DC16 -> 757 | DD17: =DD16 -> 830 | DE17: =DE16 -> 912 | DF17: =DF16 -> 568 | DG17: =DG16 -> 641 | DH17: =DH16 -> 716 | DI17: =DI16 -> 803 | DJ17: =DJ16 -> 884 | DK17: =DK16 -> 968 | DL17: =DL16 -> 1065 | DM17: =DM16 -> 649 | DN17: =DN16 -> 732 | DO17: =DO16 -> 818 | DP17: =DP16 -> 918 | DQ17: =DQ16 -> 1010 | DR17: =DR16 -> 1106 | DS17: =DS16 -> 1217 | DT17: =DT16 -> 77 | DU17: =DU16 -> 88 | DV17: =DV16 -> 99 | DW17: =DW16 -> 111 | DX17: =DX16 -> 121 | DY17: =DY16 -> 139 | DZ17: =DZ16 -> 153 | EB17: =EB16 -> 10 | ED17: =ED16 -> 14.4 | EE17: 18.6 | EF17: 22.2 | EG17: 25.8 | EH17: 29.4 | EI17: 3.6 | EK17: 96 | EL17: 124 | EM17: 148 | EN17: 172 | EO17: 196 | EP17: 24 | ER17: =ER16 -> 19.2 | ES17: 24.8 | ET17: 29.6 | EU17: 34.4 | EV17: 39.2 | EW17: 4.8 | EY17: =EY16 -> 238 | EZ17: 11900 | FA17: 15500 | FB17: 19000 | FC17: 21400 | FD17: 24300 | FE17: 2900 | FF17: 24 | FG17: 1200 | FH17: 1560 | FI17: 1920 | FJ17: 2160 | FK17: 2448 | FL17: =FL16 -> 288 | FN17: 94 | FO17: 4700 | FP17: 6100 | FQ17: 7500 | FR17: 8500 | FS17: 9600 | FT17: =FT16 -> 1100 | FU17: 9.6 | FV17: 480 | FW17: 624 | FX17: 768 | FY17: 864 | FZ17: 979 | GA17: =GA16 -> 115 | GC17: 120 | GD17: 6000 | GE17: 7800 | GF17: 9600 | GG17: 10800 | GH17: 12240 | GI17: 1440 | GK17: =GK16 -> 0.33 | GL17: 0.33 | GM17: 0.33 | GN17: 0.33 | GO17: 0.33 | GP17: =GP16 -> 0.33 | GR17: =GR16 -> 10 | GS17: 20 | GT17: 10 | GU17: =GU16 -> 15 | GW17: 4
B18: 11 | E18: =E17 -> 2022-12-13 | F18: =F17 -> 2023-09-04 | J18: =J17 -> 7.21 | K18: =K17 -> 7.21 | L18: =L17 -> 6.59 | M18: =M17 -> 7.09 | N18: =N17 -> 2023 | P18: =P17 -> 1.77 | Q18: 0 | S18: 25 | T18: 32.5 | U18: 32.5 | V18: 40 | W18: 45 | X18: 51 | Y18: 6 | AC18: 18.1 | AD18: 17.6 | AE18: 17.1 | AF18: 16.7 | AG18: 17 | AH18: 15.8 | AI18: 14.7 | AJ18: 14 | AK18: 22.6 | AL18: 21 | AM18: 19.7 | AN18: 18.8 | AO18: 22.5 | AP18: 21.6 | AQ18: 20.8 | AR18: 20.3 | AT18: 105 | AU18: 130 | AV18: 130 | AW18: 160 | AX18: 180 | AY18: 204 | AZ18: 24 | BD18: 1.6 | BE18: 2.1 | BN18: 7 | BO18: 9 | BP18: 9 | BQ18: 11 | BR18: 12 | BS18: 14 | BT18: 2 | BU18: 9 | BV18: 11 | BW18: 11 | BX18: 14 | BY18: 16 | BZ18: 18 | CA18: 2 | CC18: 50 | CD18: 65 | CE18: 65 | CF18: 80 | CG18: 90 | CH18: 102 | CI18: 12 | CK18: 338 | CL18: 381 | CM18: 426 | CN18: 478 | CO18: 525 | CP18: 575 | CQ18: 633 | CR18: 409 | CS18: 461 | CT18: 516 | CU18: 579 | CV18: 636 | CW18: 697 | CX18: 767 | CY18: 487 | CZ18: 549 | DA18: 614 | DB18: 689 | DC18: 757 | DD18: 830 | DE18: 912 | DF18: 568 | DG18: 641 | DH18: 716 | DI18: 803 | DJ18: 884 | DK18: 968 | DL18: 1065 | DM18: 649 | DN18: 732 | DO18: 818 | DP18: 918 | DQ18: 1010 | DR18: 1106 | DS18: 1217 | DT18: 77 | DU18: 88 | DV18: 99 | DW18: 111 | DX18: 121 | DY18: 139 | DZ18: 153 | EB18: 10 | ED18: 14.4 | EE18: 18.6 | EF18: 22.2 | EG18: 25.8 | EH18: 29.4 | EI18: 3.6 | EK18: 96 | EL18: 124 | EM18: 148 | EN18: 172 | EO18: 196 | EP18: 24 | ER18: 19.2 | ES18: 24.8 | ET18: 29.6 | EU18: 34.4 | EV18: 39.2 | EW18: 4.8 | EY18: 238 | EZ18: 11900 | FA18: 15500 | FB18: 19000 | FC18: 21400 | FD18: 24300 | FE18: 2900 | FF18: 24 | FG18: 1200 | FH18: 1560 | FI18: 1920 | FJ18: 2160 | FK18: 2448 | FL18: 288 | FN18: 94 | FO18: 4700 | FP18: 6100 | FQ18: 7500 | FR18: 8500 | FS18: 9600 | FT18: 1100 | FU18: 9.6 | FV18: 480 | FW18: 624 | FX18: 768 | FY18: 864 | FZ18: 979 | GA18: 115 | GC18: 120 | GD18: 6000 | GE18: 7800 | GF18: 9600 | GG18: 10800 | GH18: 12240 | GI18: 1440 | GK18: 0.33 | GL18: 0.33 | GM18: 0.33 | GN18: 0.33 | GO18: 0.33 | GP18: 0.33 | GR18: 10 | GS18: 20 | GT18: 10 | GU18: =GU17 -> 15 | GW18: 4
B19: 12 | E19: 2022-12-13 | F19: 2023-09-04 | J19: =J18 -> 7.21 | K19: 7.21 | L19: 6.59 | M19: 7.09 | N19: 2023 | P19: 1.77 | Q19: 0 | S19: 25 | T19: 32.5 | U19: 32.5 | V19: 40 | W19: 45 | X19: 51 | Y19: 6 | AC19: 18.1 | AD19: 17.6 | AE19: 17.1 | AF19: 16.7 | AG19: 17 | AH19: 15.8 | AI19: 14.7 | AJ19: 14 | AK19: 22.6 | AL19: 21 | AM19: 19.7 | AN19: 18.8 | AO19: 22.5 | AP19: 21.6 | AQ19: 20.8 | AR19: 20.3 | AT19: 105 | AU19: 130 | AV19: 130 | AW19: 160 | AX19: 180 | AY19: 204 | AZ19: 24 | BD19: 1.6 | BE19: 2.1 | BN19: 7 | BO19: 9 | BP19: 9 | BQ19: 11 | BR19: 12 | BS19: 14 | BT19: 2 | BU19: 9 | BV19: 11 | BW19: 11 | BX19: 14 | BY19: 16 | BZ19: 18 | CA19: 2 | CC19: 50 | CD19: 65 | CE19: 65 | CF19: 80 | CG19: 90 | CH19: 102 | CI19: 12 | CK19: 338 | CL19: 381 | CM19: 426 | CN19: 478 | CO19: 525 | CP19: 575 | CQ19: 633 | CR19: 409 | CS19: 461 | CT19: 516 | CU19: 579 | CV19: 636 | CW19: 697 | CX19: 767 | CY19: 487 | CZ19: 549 | DA19: 614 | DB19: 689 | DC19: 757 | DD19: 830 | DE19: 912 | DF19: 568 | DG19: 641 | DH19: 716 | DI19: 803 | DJ19: 884 | DK19: 968 | DL19: 1065 | DM19: 649 | DN19: 732 | DO19: 818 | DP19: 918 | DQ19: 1010 | DR19: 1106 | DS19: 1217 | DT19: 77 | DU19: 88 | DV19: 99 | DW19: 111 | DX19: 121 | DY19: 139 | DZ19: 153 | EB19: 10 | ED19: 14.4 | EE19: 18.6 | EF19: 22.2 | EG19: 25.8 | EH19: 29.4 | EI19: 3.6 | EK19: 96 | EL19: 124 | EM19: 148 | EN19: 172 | EO19: 196 | EP19: 24 | ER19: 19.2 | ES19: 24.8 | ET19: 29.6 | EU19: 34.4 | EV19: 39.2 | EW19: 4.8 | EY19: 238 | EZ19: 11900 | FA19: 15500 | FB19: 19000 | FC19: 21400 | FD19: 24300 | FE19: 2900 | FF19: 24 | FG19: 1200 | FH19: 1560 | FI19: 1920 | FJ19: 2160 | FK19: 2448 | FL19: 288 | FN19: 94 | FO19: 4700 | FP19: 6100 | FQ19: 7500 | FR19: 8500 | FS19: 9600 | FT19: 1100 | FU19: 9.6 | FV19: 480 | FW19: 624 | FX19: 768 | FY19: 864 | FZ19: 979 | GA19: 115 | GC19: 120 | GD19: 6000 | GE19: 7800 | GF19: 9600 | GG19: 10800 | GH19: 12240 | GI19: 1440 | GK19: 0.33 | GL19: 0.33 | GM19: 0.33 | GN19: 0.33 | GO19: 0.33 | GP19: 0.33 | GR19: 10 | GS19: 20 | GT19: 10 | GU19: =GU18 -> 15 | GW19: 4
B20: 13 | E20: 2022-12-13 | F20: 2023-09-04 | J20: 7.21 | K20: 7.21 | L20: 6.59 | M20: 7.09 | N20: 2023 | P20: 1.77 | Q20: 0 | S20: 25 | T20: 32.5 | U20: 32.5 | V20: 40 | W20: 45 | X20: 51 | Y20: 6 | AC20: 18.1 | AD20: 17.6 | AE20: 17.1 | AF20: 16.7 | AG20: 17 | AH20: 15.8 | AI20: 14.7 | AJ20: 14 | AK20: 22.6 | AL20: 21 | AM20: 19.7 | AN20: 18.8 | AO20: 22.5 | AP20: 21.6 | AQ20: 20.8 | AR20: 20.3 | AT20: 105 | AU20: 130 | AV20: 130 | AW20: 160 | AX20: 180 | AY20: 204 | AZ20: 24 | BD20: 1.6 | BE20: 2.1 | BN20: 7 | BO20: 9 | BP20: 9 | BQ20: 11 | BR20: 12 | BS20: 14 | BT20: 2 | BU20: 9 | BV20: 11 | BW20: 11 | BX20: 14 | BY20: 16 | BZ20: 18 | CA20: 2 | CC20: 50 | CD20: 65 | CE20: 65 | CF20: 80 | CG20: 90 | CH20: 102 | CI20: 12 | CK20: 338 | CL20: 381 | CM20: 426 | CN20: 478 | CO20: 525 | CP20: 575 | CQ20: 633 | CR20: 409 | CS20: 461 | CT20: 516 | CU20: 579 | CV20: 636 | CW20: 697 | CX20: 767 | CY20: 487 | CZ20: 549 | DA20: 614 | DB20: 689 | DC20: 757 | DD20: 830 | DE20: 912 | DF20: 568 | DG20: 641 | DH20: 716 | DI20: 803 | DJ20: 884 | DK20: 968 | DL20: 1065 | DM20: 649 | DN20: 732 | DO20: 818 | DP20: 918 | DQ20: 1010 | DR20: 1106 | DS20: 1217 | DT20: 77 | DU20: 88 | DV20: 99 | DW20: 111 | DX20: 121 | DY20: 139 | DZ20: 153 | EB20: 10 | ED20: 14.4 | EE20: 18.6 | EF20: 22.2 | EG20: 25.8 | EH20: 29.4 | EI20: 3.6 | EK20: 96 | EL20: 124 | EM20: 148 | EN20: 172 | EO20: 196 | EP20: 24 | ER20: 19.2 | ES20: 24.8 | ET20: 29.6 | EU20: 34.4 | EV20: 39.2 | EW20: 4.8 | EY20: 238 | EZ20: 11900 | FA20: 15500 | FB20: 19000 | FC20: 21400 | FD20: 24300 | FE20: 2900 | FF20: 24 | FG20: 1200 | FH20: 1560 | FI20: 1920 | FJ20: 2160 | FK20: 2448 | FL20: 288 | FN20: 94 | FO20: 4700 | FP20: 6100 | FQ20: 7500 | FR20: 8500 | FS20: 9600 | FT20: 1100 | FU20: 9.6 | FV20: 480 | FW20: 624 | FX20: 768 | FY20: 864 | FZ20: 979 | GA20: 115 | GC20: 120 | GD20: 6000 | GE20: 7800 | GF20: 9600 | GG20: 10800 | GH20: 12240 | GI20: 1440 | GK20: 0.33 | GL20: 0.33 | GM20: 0.33 | GN20: 0.33 | GO20: 0.33 | GP20: 0.33 | GR20: 10 | GS20: 20 | GT20: 10 | GU20: =GU19 -> 15 | GW20: 4
B21: 14 | E21: 2022-12-13 | F21: 2023-09-04 | J21: 7.21 | K21: 7.21 | L21: 6.59 | M21: 7.09 | N21: 2023 | P21: 1.77 | Q21: 0 | S21: 25 | T21: 32.5 | U21: 32.5 | V21: 40 | W21: 45 | X21: 51 | Y21: 6 | AC21: 18.1 | AD21: 17.6 | AE21: 17.1 | AF21: 16.7 | AG21: 17 | AH21: 15.8 | AI21: 14.7 | AJ21: 14 | AK21: 22.6 | AL21: 21 | AM21: 19.7 | AN21: 18.8 | AO21: 22.5 | AP21: 21.6 | AQ21: 20.8 | AR21: 20.3 | AT21: 105 | AU21: 130 | AV21: 130 | AW21: 160 | AX21: 180 | AY21: 204 | AZ21: 24 | BD21: 1.6 | BE21: 2.1 | BN21: 7 | BO21: 9 | BP21: 9 | BQ21: 11 | BR21: 12 | BS21: 14 | BT21: 2 | BU21: 9 | BV21: 11 | BW21: 11 | BX21: 14 | BY21: 16 | BZ21: 18 | CA21: 2 | CC21: 50 | CD21: 65 | CE21: 65 | CF21: 80 | CG21: 90 | CH21: 102 | CI21: 12 | CK21: 338 | CL21: 381 | CM21: 426 | CN21: 478 | CO21: 525 | CP21: 575 | CQ21: 633 | CR21: 409 | CS21: 461 | CT21: 516 | CU21: 579 | CV21: 636 | CW21: 697 | CX21: 767 | CY21: 487 | CZ21: 549 | DA21: 614 | DB21: 689 | DC21: 757 | DD21: 830 | DE21: 912 | DF21: 568 | DG21: 641 | DH21: 716 | DI21: 803 | DJ21: 884 | DK21: 968 | DL21: 1065 | DM21: 649 | DN21: 732 | DO21: 818 | DP21: 918 | DQ21: 1010 | DR21: 1106 | DS21: 1217 | DT21: 77 | DU21: 88 | DV21: 99 | DW21: 111 | DX21: 121 | DY21: 139 | DZ21: 153 | EB21: 10 | ED21: 14.4 | EE21: 18.6 | EF21: 22.2 | EG21: 25.8 | EH21: 29.4 | EI21: 3.6 | EK21: 96 | EL21: 124 | EM21: 148 | EN21: 172 | EO21: 196 | EP21: 24 | ER21: 19.2 | ES21: 24.8 | ET21: 29.6 | EU21: 34.4 | EV21: 39.2 | EW21: 4.8 | EY21: 238 | EZ21: 11900 | FA21: 15500 | FB21: 19000 | FC21: 21400 | FD21: 24300 | FE21: 2900 | FF21: 24 | FG21: 1200 | FH21: 1560 | FI21: 1920 | FJ21: 2160 | FK21: 2448 | FL21: 288 | FN21: 94 | FO21: 4700 | FP21: 6100 | FQ21: 7500 | FR21: 8500 | FS21: 9600 | FT21: 1100 | FU21: 9.6 | FV21: 480 | FW21: 624 | FX21: 768 | FY21: 864 | FZ21: 979 | GA21: 115 | GC21: 120 | GD21: 6000 | GE21: 7800 | GF21: 9600 | GG21: 10800 | GH21: 12240 | GI21: 1440 | GK21: 0.33 | GL21: 0.33 | GM21: 0.33 | GN21: 0.33 | GO21: 0.33 | GP21: 0.33 | GR21: 10 | GS21: 20 | GT21: 10 | GU21: =GU20 -> 15 | GW21: 4
A23: 0 | B23: Standardwerte
A24: 1 | B24: Änderungsdatum
A25: 2 | B25: Netto-Kaltmiete
A26: 3 | B26: Betriebskosten/ Klimabonus
A27: 4 | B27: Angemessene Heizkosten
B28: Heizkostenspiegel
B29: Kommentar zum Heizkostenspiegel
A30: 5 | B30: Warmwasserpauschale (Abzug)
A31: 6 | B31: Wohnungsgrößen
A32: 7 | B32: Mietobergrenzen nach WoGG
B33: Zuschlag
A35: 8a | B35: Heizkostenentlastung ab 2023
A36: 8b | B36: Heizkostenkomponente ab 2021/ 2023
A37: 8c | B37: Klimakomponente ab 2023
A38: 9 | B38: Heizkostengrenzwerte kWh
A39: a) | B39: fossile Brennstoffe
B40: WW-Abschlag
A41: b) | B41: Wärmepumpe
B42: WW-Abschlag
A43: c) | B43: Nachtspeicherheizung
B44: Kosten pro kWh
A45: 10 | B45: Pauschale Zuschläge
A46: 11 | B46: Mietniveaustufe Berlin nach WoGG

Sheet Grundeinstellungen
A2: Start | C2: Grundeinstellungen für Angemessene Wohnungsmiete ändern
C4: info | AE4: =IF(Grundwerte!D12>0,1,0) -> 0 | AF4: Netzwerkeintrag
C6: i | AE6: 1 | AF6: =IF(SUM(AE6)=0,1,AE6) -> 1 | AG6: =IF(AE6=1,"Windows 7/ 8/ 10",IF(AE6=2,"Netzwerkpfad",IF(AE6=3,"nicht belegt",IF(AE6=4,"nicht belegt")))) -> Windows 7/ 8/ 10
AE10: TRUE | AF10: =IF(AE10=TRUE,1,0) -> 1 | AG10: =IF(AF10=1," Rundung nach AV-Wohnen"," keine Rundung der Bruttowarmmiete") -> Rundung nach AV-Wohnen
C14: i | S14: =" AV-Wohnen ab "&IF(SUM(Werte!G3)=0," ?",TEXT(Werte!G3," TT.MM.JJJJ")) -> AV-Wohnen ab 01.10.2023
D20: Bildschirmbereich ändern
C22: i | D22: Sie können 'Pfändungsgrenzen' an die Bildschirmauflösung
D24: Ihres Computers anpassen, um eine optimale Darstellung zu erreichen:
E26: Anzeige anpassen | T26: =IF(AF34=1,"Neue Einstellungen werden bei 'Beenden' übernommen","") -> 
D28: 1 | I28: 2 | N28: 3
AE30: =Einstellungen!L3 -> 2 | AF30: Auflösung
D32: 4 | AA32: =IF(Checkliste!E4>0,"(empfohlen)","") -> 
AF34: =IF(AE34=TRUE,1,0) -> 0 | AG34: =IF(AF34=1," Einstellungen übernehmen erst bei Beenden"," Einstellungen sofort übernehmen") -> Einstellungen sofort übernehmen
D42: ="© by SoLei-B GbR 2001 - "&Einstellungen!G2 -> © by SoLei-B GbR 2001 - 2024

Sheet Grundwerte
A2: Start | C2: Spezielle Grundeinstellungen
D4: Spezielle Werte für Grundeinstellungen / Pfadangaben | AB4: =IF(D12>0,"Neue Einstellung übernehmen in 'Grundeinstellungen'","") -> 
M8: Pfadangaben bei üblicher Computerinstallation | AD8: Win98 | AE8: =IF(D$12=AF8,1,0) -> 0 | AF8: C:\Windows\Calc.exe
B10: i | C10: Pfad zum Windows-Rechner | AD10: WinNT | AE10: =IF(D$12=AF10,1,0) -> 0 | AF10: C:\WINNT40\System32\Calc.exe
AD12: Win2000 | AE12: =IF(D$12=AF12,1,0) -> 0 | AF12: C:\WinNT\system32\Calc.exe
AD14: WinXP | AE14: =IF(D$12=AF14,1,0) -> 0 | AF14: C:\Windows\system32\Calc.exe
X16: Pfad aus ALG II-Berechnung
B20: i | C20: Individuelle Speicherpfade
AF22: =IF(AE22=TRUE,1,0) -> 0 | AG22: [1 = individuellen Speicherpfad anwenden]
AE24: Einträge prüfen
C26: Angemessene Miete | AE26: =IF(I26="",0,1) -> 0
T36: =IF(AF40=1,"Neue Einstellungen werden bei 'Beenden' übernommen","") ->  | AE36: =SUM(AE26:AE34) -> 0
AF40: =Grundeinstellungen!AF34 -> 0 | AG40: =Grundeinstellungen!AG34 -> Einstellungen sofort übernehmen
AA42: =IF(Checkliste!E4>0,"(empfohlen)","") -> 

Sheet EF1
D1: Kosten der Unterkunft | T1: Eingabefeld 1
A2: Start
A4: 1 | B4: Personen | E4: angemessene Miete | AE4: 1 | AF4: Aufrufen-Prüffeld
A6: 2 | B6: HeizKost | E6: =IF(AE48=1,"Wohnungsangebot prüfen:","") ->  | AE6: =IF(AD6=TRUE,1,0) -> 0 | AF6: [1] Abzug bei dezentraler Warmwasserersorgung anwenden
A8: 3 | B8: WirtschV | J8: berücksichtigte Personenzahl: | T8: angemessene Wohnfläche: | V8: =IF(ErgebnisDruck!G20>0,ErgebnisDruck!G20,"") ->  | X8: =IF(SUM(V8)>0,"m²","") ->  | AE8: =IF(AD8=TRUE,1,0) -> 0 | AF8: [1] + 10% bei Wohnung im Sozialen Wohnungsbau
A10: 4 | B10: BSG RS | D10: i | E10: Bruttokaltmiete | J10: tatsächl.: | N10: =IF(AND(K10=0,K8>0,AE48=1)," < ?","") ->  | T10: Karenzzeit/ weitere m²: | U10: i | X10: m² | Y10: =IF(K8>0,"(z.B. durch Behinderung/ Umgangsrecht)","") ->  | AE10: =IF(AD10=TRUE,1,0) -> 0 | AF10: [1] + 10% Härtefall
A12: 5 | B12: MietS Bln | H12: =IF(AND(AE54=1,SUM(K14,K16)>0),"Abweichung von AV-Wohnen (€/ m²)","") ->  | T12: zu berücksichtigende Gesamtwohnfläche: | V12: =IF(SUM(K8)>0,V8+V10,"") ->  | X12: =IF(SUM(V12)>0,"m²","") ->  | AE12: =IF(AD12=TRUE,1,0) -> 0 | AF12: [1] + 10% zur Umzugsvermeidung
A14: 6 | B14: WhgBest | D14: i | E14: Nettokaltmiete | J14: =IF(SUM(K8)>0,"/ m²","") ->  | N14: =IF('Grundberechnung-Hk'!C40>0,FIXED('Grundberechnung-Hk'!C40)&" € / m²","") ->  | Q14: =IF(SUM(AB14)>0,"x","") ->  | R14: =IF(SUM(AB16)>0,'Grundberechnung-Hk'!E40&" "&X$8,"") ->  | AA14: angemessene Nettokaltmiete: | AB14: ='Grundberechnung-Hk'!G40 -> 0 | AE14: =IF(AD14=TRUE,1,0) -> 0 | AF14: [1] + 20% bei Wohnungslosigkeit zur Vermeidung teurer Unterbringung
A16: 7 | B16: Konzept | D16: i | E16: Betriebskosten | J16: =IF(SUM(K8)>0,"/ m²","") ->  | N16: =IF('Grundberechnung-Hk'!C49>0,FIXED('Grundberechnung-Hk'!C49,2)&" € / m²","") ->  | Q16: =IF(SUM(AB16)>0,"x","") ->  | R16: =IF(SUM(AB16)>0,'Grundberechnung-Hk'!E49&" "&X$8,"") ->  | AA16: angemessene Betriebskosten: | AB16: ='Grundberechnung-Hk'!G49 -> 0 | AE16: =IF(AD16=TRUE,1,0) -> 0 | AF16: [1] Überschreitung des Heizkostengrenzwertes zulassen
A18: 8 | B18: BetriebsK | D18: i | N18: i | AA18: angem. Bruttokaltmiete: | AB18: =IF(SUM(AB14,AB16)>0,'Grundberechnung-Hk'!G53,0) -> 0 | AC18: =IF(AND(SUM(AB24)=0,K$8>0),"ç","") ->  | AE18: =IF(AD18=TRUE,1,0) -> 0 | AF18: [1] alleinerziehend mit 1 Kind | AI18: entfällt ab 1.1.2022
A20: 9 | B20: HeizK | I20: =IF(SUM(AE8:AE14)>0,IF(SUM($AE$10:$AE$14)>1,">>>","> >"),"") ->  | M20: =IF(SUM(AE8:AE14)>0,IF(SUM($AE$10:$AE$14)>1,"<<<",""),"") ->  | N20: i | S20: =IF(AND($AE$12=1,$AE$14=1,$AE$50=0),"? >"," i ") -> i | AA20: =IF(SUM(AB20)>0,"Soz WoB: ","") ->  | AB20: =IF(AE8=1,'Grundberechnung-Hk'!G57,"") ->  | AC20: =IF(AND(AE8>0,SUM(AB20)>0),"Zuschlag","") ->  | AE20: =IF(F65=1,"Heizöl",IF(F65=2,"Heizgas",IF(F65=3,"Fernwärme",IF(F65=4,"Wärmepumpe",IF(F65=5,"Nachtstrom","Heizmaterial?"))))) -> Heizmaterial? | AF20: Gebäudefläche
A22: 10 | B22: WarmwA | D22: i | L22: =IF(AND('EF1-1'!AE44=1,'EF1-1'!AE48=1,'EF1-1'!AE62=0),"á","") ->  | N22: i | S22: =IF(AND($AE$12=1,$AE$14=1,$AE$50=0),"? >"," i ") -> i | AB22: =IF(SUM(AE10:AE14,AE40)>0,SUM('Grundberechnung-Hk'!G61,'Grundberechnung-Hk'!G69,'Grundberechnung-Hk'!G65),"") ->  | AC22: =IF(AD22>0,IF(AD22=1,"Zuschlag","Zuschläge"),"") ->  | AD22: =SUM(AE10,AE14,AE40) -> 0 | AE22: =IF(F65=1,Einstellungen!D29,IF(F65=2,Einstellungen!D33,IF(F65=3,Einstellungen!D37,IF(F65=4,Einstellungen!D41,IF(F65=6,Einstellungen!D45,0))))) -> 0 | AF22: 100 m² - 250 m²
D24: =IF(AE46=1,"? >","i ") -> i | K24: =IF(AND(AE16=0,SUM(AB28)>SUM(AB30)),"< ?","") ->  | AA24: =IF(SUM(AB24)>0,"max. Brutto-Kalt: ","") ->  | AB24: =IF(SUM(AB20,AB22)>0,SUM('Grundberechnung-Hk'!G76),"") ->  | AC24: =IF(SUM(AB24)>0,"ç","") ->  | AE24: =IF(F65=1,Einstellungen!D30,IF(F65=2,Einstellungen!D34,IF(F65=3,Einstellungen!D38,IF(F65=4,Einstellungen!D42,IF(F65=6,Einstellungen!D46,0))))) -> 0 | AF24: 251 m² - 500 m²
A26: 11 | B26: Ergebnis | E26: =IF(AND(AE12=1,AE14=1,AE50=0),"Zum Bestandsschutz siehe >> Info Zuschläge <<","") ->  | AA26: =IF(SUM(AB26)>0,"angemessene Heizkosten: ","") ->  | AB26: =IF('Grundberechnung-Hk'!C142>0,'Grundberechnung-Hk'!C142,"") ->  | AC26: =IF(AND(AE16=0,SUM(AB28)>SUM(AD34)),"Begrenzung auf Heizk.-grenzwert"&IF(AE6=1," - WW Pau.","")&" ","") ->  | AE26: =IF(F65=1,Einstellungen!D31,IF(F65=2,Einstellungen!D35,IF(F65=3,Einstellungen!D39,IF(F65=4,Einstellungen!D43,IF(F65=6,Einstellungen!D47,0))))) -> 0 | AF26: 501 m² - 1000 m² | AH26: Infotext zur Gebäudefläche
A28: D | B28: Druck aM | Q28: =IF(AND(AE6=1,F65=5),"Kein Abzug der WW-Pauschale bei Nachtspeicherheizung","") ->  | R28: =IF(AND(K8>0,K62>0,AE16=0),IF(K42>=K44,"","? >"),"i ") -> i | AA28: =IF(SUM(AB28)>0,"tats. Heizkosten: ","") ->  | AB28: =IF('Grundberechnung-Hk'!D147>0,'Grundberechnung-Hk'!C144,"") ->  | AC28: =IF(OR(SUM(AB28<=AB30),AB30<AB34),"ç","") ->  | AE28: =IF(F65=1,Einstellungen!D32,IF(F65=2,Einstellungen!D36,IF(F65=3,Einstellungen!D40,IF(F65=4,Einstellungen!D44,IF(F65=6,Einstellungen!D48,0))))) -> 0 | AF28: über 1000 m² | AH28: =AF20&": "&IF(F67=1,AF22,IF(F67=2,AF24,IF(F67=3,AF26,IF(F67=4,AF28,"?")))) -> Gebäudefläche: ?
A30: D | B30: Wi-Vergl | AA30: =IF(AND(AD32=1,AE16=1),"individuell anerkannter max. Heiz-Grenzwert: ","max. Heiz-Grenzwert: ") -> max. Heiz-Grenzwert: | AB30: =IF('Grundberechnung-Hk'!C146>0,'Grundberechnung-Hk'!G149,0) -> 0 | AC30: =IF(AND(SUM(AB28)>SUM(AB30),AB34<=AB30),"ç","") ->  | AE30: =IF(F67=1,AE22,IF(F67=2,AE24,IF(F67=3,AE26,IF(F67=4,AE28,IF(AND(F67=0,F65=4),AE28,0))))) -> 0 | AF30: Gebäudeflächen_Auswahl
A32: T | B32: Tabelle | D32: =IF(AG62=1,"? >","i ") -> i | E32: Sonderregelung | AD32: =IF(SUM(AB30)>SUM(AB26),1,0) -> 0 | AE32: [1] Grenzwertüberschreitung | AH32: Texte für Druckblatt
D34: =IF(AND(AE60=1,AE58=0),"? >","") ->  | AA34: =IF(AB34>0,"anerkannte max. ","")&"angemessene "&IF(K62>0,"tatsächl. ","")&"Heizkosten: " -> angemessene Heizkosten: | AB34: ='Grundberechnung-Hk'!G149 -> 0 | AC34: =IF(AND(SUM(AB30)>0,K$8>0),"ç","") ->  | AH34: Heizart
D36: =IF(AND(AE60=0,AE58=1),"? >","") ->  | AA36: ="angem. Gesamtmiete"&IF(AE6=1," (incl. Abzug WW-Pauschale)","")&": " -> angem. Gesamtmiete: | AB36: =IF(AND(K8>0,SUM(AB30)>0),'Grundberechnung-Hk'!G162,0) -> 0 | AD36: angem. Heizkostengrenze | AH36: Heizöl
E38: =IF(AND(K8>0,F65=0),"Heizenergieträger auf EF2 auswählen!","") ->  | O38: =IF(AND(AE12=1,SUM(AB40)>AB38),"siehe Tabelle! ","") ->  | AA38: =IF(SUM(AB38)>0,"Prüfgrenze für Kostensenkungsverfahren:","") ->  | AB38: =IF(AE12=1,ROUND('Grundberechnung-Hk'!G176,0),"") ->  | AC38: =IF(SUM(AB38)>0,"gerundet","") ->  | AH38: Erdgas
H40: =IF(SUM(G42,G44,AE48)>0,"Bruttokaltmiete"&IF(AND(K10=0,K8>0,AE48=1)," ?",""),"") ->  | L40: =IF(SUM(K42,K44,AE48)>0,"Heizkosten"&IF(AND(K62=0,K8>0,AE48=1)," ?",""),"") ->  | R40: =IF(AND(AE12=1,SUM(AB40)>AB38),"Die Miete ist zu senken!","") ->  | AA40: =IF(SUM(AB40)>0,"tatsächliche Gesamtmiete:","") ->  | AB40: =IF(AND(K10>0,SUM(AE12,AE48)>0,SUM(AB38)>0),SUM(Grundberechnung!C109,Grundberechnung!C140),"") ->  | AE40: =IF(AD40=TRUE,1,0) -> 0 | AF40: [1] Klimabonus | AH40: Fernwärme
F42: =IF(SUM(G42,K42)>0,"angemessen: ","") ->  | G42: =IF(AND(K10>0,SUM(AB18)>0),IF(SUM(AB24)>0,AB24,AB18),"") ->  | J42: =IF(SUM(G42,K42)>0,"●","") ->  | K42: =IF(AND(K62>0,'Grundberechnung-Hk'!C142>0),'Grundberechnung-Hk'!C142,"") ->  | AH42: Wärmepumpe
F44: =IF(SUM(G44,K44)>0,"tatsächlich: ","") ->  | G44: =IF(SUM(K10)>0,K10,"") ->  | K44: =IF(SUM(K62)>0,K62,"") ->  | AH44: Nachtstrom
H46: =IF(AND(SUM(G42)>0,SUM(G44)>0),IF(AND(K8>0,K10>0),IF(G42>=G44,"passt","zu teuer"),""),"") ->  | L46: =IF(AND(SUM(K42)>0,SUM(K44)>0),IF(AND(K8>0,K62>0),IF(K42>=K44,"passt","zu teuer"),""),"") ->  | AB46: =IF(AND(AE12=1,AE14=1,AE50=0),"Bestandsschutz +20% ?","") ->  | AE46: =IF(AND(AE12=1,AE14=1,AE50=0),1,0) -> 0 | AF46: [1] Warnhinweis Bestand | AH46: andere Heizart
M48: =IF(AND(SUM(AB26)<SUM(AB28),AE16=1),"Hk-Überschreitung ist zugelassen!","") ->  | Q48: =IF(AND(AE12=1,SUM(AB40)>AB38),"à","") ->  | AE48: =IF(AD48=TRUE,1,0) -> 0 | AF48: [1] Woh.-Angebotsprüfung | AH48: =AH34&": "&IF(F65=1,AH36,IF(F65=2,AH38,IF(F65=3,AH40,IF(F65=4,AH42,IF(F65=5,AH44,IF(F65=6,AH46,"?")))))) -> Heizart: ?
M50: =IF(AND(K8>0,K62>0,AE16=0),IF(K42>=K44,"","Heizkosten-Überschreitung ggf. zulassen (s.o.)"),"") ->  | AA50: =IF(AE12=1,"Umzugsvermeidungszuschlag:","") ->  | AB50: =IF(AE12=1,'Grundberechnung-Hk'!G158,"") ->  | AC50: =IF(AND(SUM(AB50)>0,K$8>0),"ç","") ->  | AE50: =IF(AD50=TRUE,1,0) -> 0 | AF50: [1] Bestandsschutz für 20% wegen Wohnungslosigkeit
AE52: =IF(AD52=TRUE,1,0) -> 0 | AF52: [1] mit Wirtschaftlichkeitsbetrachtung bei Wohnungswechsel
AE54: =IF(AD54=TRUE,1,0) -> 0 | AF54: [1] Änderung der m²-Preise für Kaltmiete zulassen
AE56: =IF(AD56=TRUE,1,0) -> 0 | AF56: [1] Änderung der m²-Preise für Heizkosten zulassen
AE58: =IF(AD58=TRUE,1,0) -> 0 | AF58: [1] Sonderregelung nach WoGG
AE60: =IF(AD60=TRUE,1,0) -> 0 | AF60: [1] 10% Zuschlag zur Mietgrenze nach WoGG
E62: tatsächliche Heizkosten | K62: ='EF2'!T30 -> 0
G65: Heizmaterial-Auswahl
G67: Gebäudeflächen-Auswahl
F69: =SUM(IF(F65>0,1,0),IF(F67>0,1,0)) -> 0 | G69: =IF(F69=1,"Heizkostenaspekt berücksichtigt","Heizkostenaspekte berücksichtigt") -> Heizkostenaspekte berücksichtigt

Sheet EF1-1
A2: Start | D2: Zuschläge zur angemessenen Miete
D4: Zuschläge auf die Bruttokaltmiete zur Anhebung der Angemessenheitsgrenze
Z6: ='EF1'!$AA$18 -> angem. Bruttokaltmiete: | AB6: ='EF1'!$AB$18 -> 0 | AE6: ='EF1'!AE52 -> 0 | AF6: ='EF1'!AF52 -> [1] mit Wirtschaftlichkeitsbetrachtung bei Wohnungswechsel
D8: Sozialer Wohnungsbau / 3.2 (3)
G10: für Wohnungen, die im Sozialen Wohnungsbau errichtet wurden (1. Förderweg) | AB10: =SUM('EF1'!AB20) -> 0 | AE10: ='EF1'!$AE$8 -> 0 | AF10: ='EF1'!$AF$8 -> [1] + 10% bei Wohnung im Sozialen Wohnungsbau
D12: weiterer Zuschlag in Härtefällen / 3.5.1 / bei | AB12: =Grundberechnung!C58 -> 0
G14: a) Alleinerziehenden, | AB14: =Grundberechnung!G69 -> 0 | AE14: ='EF1'!$AE$10 -> 0 | AF14: ='EF1'!$AF$10 -> [1] + 10% Härtefall
G16: b) Längerer Wohndauer (mindestens 10 Jahre), | AE16: =IF(SUM(AE44,AE48)>0,1,0) -> 0 | AF16: [1] Zuschlag bei Neuvermietung ausgewählt
G18: c) wesentlichen sozialen Bezügen (z.B. Schulweg von Kindern, | AF18: für Prüfung der Zuschlagsbegrenzung
G20: Betreuungseinrichtungen, Kindertagesstätten,
G22: Schulen mit eigenständigem Profil und besonderer inhaltlicher Ausrichtung des Unterrichts,
G24: Pflege insbesondere naher Angehöriger),
G26: d) über 60-jährigen leistungsberechtigten Personen,
G28: e) Schwangeren,
G30: f) Personen, die in absehbarer Zeit kostendeckende Einkünfte haben.
G32: g) eigener Pflegebedürftigkeit, Erkrankung oder Behinderung
G34: h) Modernisierungszuschlägen
G36: i) Personen, die eine eigene Wohnung benötigen, um eine Unterbringung im Rahmen der
G38: Kinder- und Jugendhilfe zu beenden od. wenn d. Anmietung im Rahmen einer Entscheidung
C40: =IF(SUM(AE$44,AE$48)>1,IF(AE62=0,"nicht zugleich",""),"") ->  | G40: über eine Hilfe zur Erziehung eine bedarfsgerechte, weniger intensive Hilfe ermöglicht.
C42: =IF(SUM(AE$44,AE$48)>1,IF(AE62=0,"anwendbar mit 20%",""),"") ->  | G42: Auch in besonders begründeten Einzelfällen sind Richtwertüberschreitungen von bis zu 10% möglich.
C44: =IF(SUM(AE$44,AE$48)>1,IF(AE62=0,"? >",""),"") ->  | G44: - Sicherheitszuschlag zur Umzugsvermeidung / 6.1.1 | AB44: =Grundberechnung!C80 -> 0 | AE44: ='EF1'!$AE$12 -> 0 | AF44: ='EF1'!$AF$12 -> [1] + 10% zur Umzugsvermeidung
D46: Zuschlag zur Neuanmietung bei Wohnungslosigkeit / 3.4
C48: =IF(OR(SUM(AE$48)>1,(SUM(AE$44,AE$48)>1)),IF(AE62=0,"? >",""),"") ->  | G48: - bei Neuanmietung von Wohnraum durch Wohnungslose oder von Wohnungslosigkeit | AB48: =Grundberechnung!G61 -> 0 | AE48: ='EF1'!$AE$14 -> 0 | AF48: ='EF1'!$AF$14 -> [1] + 20% bei Wohnungslosigkeit zur Vermeidung teurer Unterbringung
C50: =IF(OR(SUM(AE$48)>1,(SUM(AE$44,AE$48)>1)),IF(AE62=0,"nicht zugleich",""),"") ->  | G50: bedrohte Menschen, wenn nur so eine Unterbringung in kostenintensiveren gewerb-
C52: =IF(OR(SUM(AE$48)>1,(SUM(AE$44,AE$48)>1)),IF(AE62=0,"anwendbar",""),"") ->  | G52: lichen oder kommunalen Einrichtungen beendet oder verhindert werden kann.
G54: (auch bei Anmietung von Wohnungen aus dem geschützten Marktsegment)
G56: - von häuslicher Gewalt betroffene Frauen gelten als von Wohnungslosigkeit bedroht.
G58: - Flüchtlinge in Gemeinschaftsunterkünften gelten als Wohnungslose.
F60: i | G60: Bestandsschutz: | L60: Bei Bewilligung dieses Zuschlages wirkt dieser dauerhaft
F62: =IF(AND(AE44=1,AE48=1,AE62=0),"? >","") ->  | L62: Deshalb den Bewilligungsbescheid mit diesem Zuschlag aufheben! | AE62: ='EF1'!AE50 -> 0 | AF62: ='EF1'!AF50 -> [1] Bestandsschutz für 20% wegen Wohnungslosigkeit
Z64: =Grundberechnung!B76 -> angemessene Gesamt-Bruttokaltmiete | AB64: =Grundberechnung!G76 -> 0
G66: =IF(SUM(AE14,AE44,AE48)>0,"Zuschläge sind 'kann'-Regelungen, bitte individuell die Angemessenheit zu prüfen","") -> 
D68: behindertengerechter Wohnraum, insbes. für Rollstuhlfahrer/innen, ist individuell, unabhängig von
G70: den Richtwerten nach Nummer 3.2 zu bestimmen / 3.5.2 (3)
D72: analog | G72: für chronisch Kranke (z.B. AIDS-Kranke), erhöhter Raumbedarf i.d.R. + 1 Pers. zur BG / 3.5.2 (4)

Sheet EF2
D1: Kosten der Unterkunft | T1: Eingabefeld 2
A2: Start
A4: 1 | B4: Personen | E4: angemessene Heizkosten | AE4: 1 | AF4: Aufrufen EF2
A6: 2 | B6: HeizKost | AA6: angemessene Nettokaltmiete: | AB6: ='Grundberechnung-Hk'!G40 -> 0
A8: 3 | B8: WirtschV | J8: berücksichtigte Personenzahl: | K8: ='EF1'!K8 -> 0 | AA8: angemessene Betriebskosten: | AB8: ='Grundberechnung-Hk'!G49 -> 0 | AE8: =Checkliste!D28 -> 0 | AF8: Daten in EF 2 eingetragen
A10: 4 | B10: BSG RS | J10: angemessene Wohnfläche: | K10: ='EF1'!V12 ->  | M10: =IF(SUM(K10)>0,"m²","") ->  | O10: i | P10: =IF(AE10=1,"> ","") ->  | AA10: =IF(SUM(AB10)>0,"Zuschläge: ","") ->  | AE10: =IF('EF2-Hnk'!AF24>0,1,0) -> 0 | AF10: [1] Daten in EF2-Hnk eingetragen
A12: 5 | B12: MietS Bln | D12: info | E12: Heizkosten - Angemessenheitsprüfung | N12: lt. jährlicher Heizkostenabrechnung | AA12: angem. Bruttokaltmiete: | AB12: =IF(SUM(AB6,AB8)>0,'Grundberechnung-Hk'!G53,0) -> 0 | AD12: Bedingungen
A14: 6 | B14: WhgBest | D14: I | E14: jährliche kWh / m² x Wohnfläche: | M14: ='EF1'!Q28 ->  | AA14: =IF(SUM(AB14)>0,"angemessene kWh/ Jahr: ","") ->  | AB14: =IF('Grundberechnung-Hk'!G99>0,'Grundberechnung-Hk'!G99,"") ->  | AC14: =IF(SUM(AB14)>0,"kWh","") ->  | AD14: für Monate
A16: 7 | B16: Konzept | D16: I | E16: kWh-Gesamtverbrauch d. abzurechnenden Wirtschaftseinheit | V16: kWh / Jahr | AA16: =IF(AE18=1,"WW-Abzug: ","") ->  | AB16: =IF(AE18=1,'Grundberechnung-Hk'!H99,"") ->  | AC16: =IF(AE18=1,"kWh","") ->  | AD16: ='Grundberechnung-Hk'!C106 -> 0
A18: 8 | B18: BetriebsK | D18: I | E18: Gesamtheizkosten der beheizten Fläche | R18: ='Grundberechnung-Hk'!H129 ->  | V18: € / Jahr | AD18: ='Grundberechnung-Hk'!C115 -> 0 | AE18: ='EF1'!AE6 -> 0 | AF18: ='EF1'!AF6 -> [1] Abzug bei dezentraler Warmwasserersorgung anwenden
A20: 9 | B20: HeizK | D20: i | E20: =IF(OR(AND(SUM('EF1'!K8)>0,'EF1'!F65=0),AND('EF1'!F65=0,'EF1'!F67>0),AND('EF1'!K22>0,'EF1'!F65=0)),"? ","") ->  | AA20: =IF(SUM(AB20)>0,"angemesse HK: ","") ->  | AB20: =IF('Grundberechnung-Hk'!C136>0,'Grundberechnung-Hk'!C125,"") ->  | AE20: ='EF1'!F65 -> 0 | AF20: ausgewählter Heizenergieträger
A22: 10 | B22: WarmwA | AA22: =IF(AE22=1,"abzgl. Klimabonus: ","") ->  | AB22: =IF('Grundberechnung-Hk'!C126>0,'Grundberechnung-Hk'!C126,"") ->  | AC22: =IF(SUM(AB22)>0," Abzug","") ->  | AE22: ='EF1'!AE40 -> 0 | AF22: ='EF1'!AF40 -> [1] Klimabonus
D24: i | I24: Nachtspeicherheizung: | L24: € / kWh | Q24: € / monatl. Grundpreis | W24: i | Y24: Monate | AA24: =IF(AE18=1,"WW: ","") ->  | AB24: =IF(AE18=1,'Grundberechnung-Hk'!C135,"") ->  | AC24: =IF(SUM(AB24)>0," Abzug","") -> 
A26: 11 | B26: Ergebnis | D26: I | E26: ='Grundberechnung-Hk'!B134 -> 0 kWh x 0 m² = 0 kWh / Jahr x 0,00 € | V26: =IF('Grundberechnung-Hk'!C130>Werte!GK3,"Gesamtpreis 1 kWh n. AV-Wohnen: "&FIXED(Werte!GK3,2)&" €","") ->  | AA26: =IF(SUM(AB26)>0,"angemessene HK: ","") ->  | AB26: =IF('Grundberechnung-Hk'!C142>0,'Grundberechnung-Hk'!C142,"") ->  | AC26: =IF(AND(SUM(AB26<AB28),AE34=0),"ç","") -> 
A28: D | B28: Druck aM | E28: tatsächliche jährliche Heizkosten der eigenen Unterkunft: | R28: i | V28: € / Jahr | AA28: =IF(SUM(AB28)>0,"tatsächliche HK: ","") ->  | AB28: =IF(AND('Grundberechnung-Hk'!C138>0,'Grundberechnung-Hk'!C145>0),'Grundberechnung-Hk'!C145,"") ->  | AC28: =IF(AND(SUM(AB26<AB28),AE34=1),"ç","") -> 
A30: D | B30: Wi-Vergl | E30: tatsächliche monatliche Heizkostenvorauszahlung: | R30: =IF(AND(T30=0,OR(AE34=1,AE48=1)),"? > ","") ->  | S30: i | V30: € / Monat
A32: T | B32: Tabelle | AA32: =IF(SUM(AB32)>0,"Überschreitung zwischen angemessenen Heizkosten und tatsächlichen Heizkosten: ","") ->  | AB32: =IF('Grundberechnung-Hk'!C148>0,'Grundberechnung-Hk'!C148,"") ->  | AE32: ='EF1'!AD32 -> 0 | AF32: ='EF1'!AE32 -> [1] Grenzwertüberschreitung
E34: angemessene monatliche Heizkosten: | Q34: ='Grundberechnung-Hk'!G149 -> 0 | S34: € I | AC34: =IF(AND(SUM(AB26<AB28),AE34=0),"< ?","") ->  | AE34: ='EF1'!AE16 -> 0 | AF34: ='EF1'!AF16 -> [1] Überschreitung des Heizkostengrenzwertes zulassen
D36: I | AA36: ='EF1'!AA34 -> angemessene Heizkosten: | AB36: ='Grundberechnung-Hk'!G149 -> 0
E38: =IF(AE32=1,"Die tatsächlichen Heizkosten können trotz Überschreitung des Heizkosten-","") ->  | AA38: Gesamtmiete anerkannt: | AB38: ='Grundberechnung-Hk'!G162 -> 0
E40: =IF(AE32=1,"grenzwertes angemessen sein, ggf. 'Überschreitung zulassen' (und begründen).","") -> 
H44: ='EF1'!H40 ->  | L44: ='EF1'!L40 -> 
F46: ='EF1'!F42 ->  | G46: ='EF1'!G42:I42 ->  | J46: ='EF1'!J42 ->  | K46: ='EF1'!K42:M42 -> 
F48: ='EF1'!F44 ->  | G48: ='EF1'!G44:I44 ->  | K48: ='EF1'!K44:M44 ->  | N48: ='EF1'!M48 ->  | Y48: ='EF1'!M50 ->  | AE48: ='EF1'!AE48 -> 0 | AF48: ='EF1'!AF48 -> [1] Woh.-Angebotsprüfung
H50: ='EF1'!H46 ->  | L50: ='EF1'!L46 -> 
I54: ='EF1'!E10 -> Bruttokaltmiete
E55: tatsächl. | G55: ='EF1'!K10 -> 0 | K55: =T30 -> 0
K57: ='EF1'!J8 -> berücksichtigte Personenzahl: | L57: ='EF1'!K8 -> 0

Sheet EF2-Hnk
A1: <--
A2: Start | D2: Umrechnungsfeld Brennstoffe
D4: Berechnung der Brennstoffkosten und Heiznebenkosten | S4: zur Berechnung der Heizkosten pro kWh
L8: i | M8: tatsächliche Mengenwert des Brennstoffs (Liter, kg od. m³) der Wirtschaftseinheit | AE8: ='EF1'!$K$8 -> 0 | AF8: Personen
B10: =IF(AE30=1,"Eingabe in EF2","") ->  | F10: =IF(AE30=1,"keine Umrechnung erforderlich","") ->  | M10: (aus der Heizkostenabrechnung) | AE10: =IF(F8>0,1,0) -> 0
B12: =IF('EF2'!S16>0,FIXED('EF2'!S16,0)&" kwh",IF(F8>0,"berechnen >","")) ->  | E12: =IF(AND(F8>0,F12=0),"? >","") ->  | J12: kWh | L12: i | M12: Umrechnungswert in kWh | T12: (in kWh umgerechnete Brennstoffkosten/ Jahr) | AE12: =IF(F12>0,1,0) -> 0
M14: z.B. über diesen | Q14: Umrechnungsrechner | V14: im Internet
B16: Zusammenfassung der jährlichen Heizkostenanteile
D18: 1. | E18: =IF(AND(F18=0,F22>0),"? >","") ->  | J18: € | L18: i | M18: Kosten des gesamten Brennstoffs in Euro incl. des Warmwassers | AE18: =IF(F18>0,1,0) -> 0
F20: =IF(AE32=1,"keine Zusammenrechnung erforderlich, da Eintrag in EF2","") -> 
D22: 2. | E22: =IF(AND(F18>0,F22=0),"? >","") ->  | J22: € | L22: i | M22: Gesamt- Heiznebenkosten nach aktueller Heizkosten-Verordnung | AE22: =IF(F22>0,1,0) -> 0
M24: Heizkosten-Verordnung | AE24: =SUM(AE18:AE22) -> 0 | AF24: =SUM(AE10:AE22) -> 0 | AG24: Prüffeld
D28: gesamt: | F28: =IF(AE24=2,'Grundberechnung-Hk'!C112,"?") -> ? | L28: i | M28: Gesamt -Heizkosten Übertragsbetrag | W28: =IF(AE24>0,"vorrangige Anwendung","") -> 
M30: =IF('EF2'!S18>0,"(ersetzt alternativ: 'Gesamtheizkosten der beheizten Fläche' in EF2"&IF('EF2'!S18>0,": "&FIXED('EF2'!S18,2)&" € / Jahr)",")"),"") ->  | AE30: =IF('EF2'!S16>0,1,0) -> 0 | AF30: [1] Heizkosten in EF2 eingetragen, hier keine Berechnung nötig
F32: =IF(AE24=2,"dieser Wert wird in der Heizkostenberechnung berücksichtigt",IF(AE24=1,"noch keine Anrechnung der Heizkostenanteile!","")) ->  | AE32: =IF('EF2'!S18>0,1,0) -> 0 | AF32: [1] Gesamtkeizkosten incl. Heiznebenkosten bereits in EF2 eingetragen
E36: =IF(SUM(F28)>0,"","jetzt angewendet: ") -> jetzt angewendet: | F36: ='Grundberechnung-Hk'!C115 -> 0 | K36: =IF('EF2'!S18=0,"in EF2 sind keine tatächlichen jährlichen Heizkosten eingetragen",IF(AE24<2,"in EF2 eingetragene jährliche Heizkosten","")) -> in EF2 sind keine tatächlichen jährlichen Heizkosten eingetragen
E38: Heizkosten/ pro kWh: | G38: =FIXED('Grundberechnung-Hk'!C116,2)&" €" -> 0,00 € | K38: ='Grundberechnung-Hk'!I119 -> 0,00 € / 0 kWh = 0,00 €/kWh (gerundet)

Sheet EF3
D1: Kosten der Unterkunft | T1: Eingabefeld 3
A2: Start | AA2: =IF(AE8=1,"> zu angemessene","") -> 
A4: 1 | B4: Personen | D4: =IF(AND('EF1'!K8=0,'EF3'!P10>0),"< ?","") ->  | E4: Wirtschaftlichkeitsvergleich | AA4: =IF(AE8=1,"Unterkunftskosten","") ->  | AE4: =IF(SUM(AE6:AE8)>0,1,0) -> 0 | AF4: Aufrufen-Prüffeld
A6: 2 | B6: HeizKost | AB6: =IF(P10>0,'Grundberechnung-Hk'!C192,"") ->  | AE6: ='EF1'!AE52 -> 0 | AF6: Option Wirtschaftlichkeitsbetrachtung
A8: 3 | B8: WirtschV | D8: i | E8: Prüfung, nach welchem Zeitraum auf die angemessene Miete begrenzt wird | AE8: =Checkliste!D37 -> 0 | AF8: Daten in EF 3 eingetragen
A10: 4 | B10: BSG RS | D10: i | E10: tatsächliche Bruttokaltmiete | P10: ='EF1'!K10 -> 0 | T10: =IF(AND(OR(SUM(AB12)>0,AE20>0),SUM(P10)=0),"Kaltmiete in EF 1 ?","") ->  | AB10: =IF('Grundberechnung-Hk'!G185>0,'Grundberechnung-Hk'!G185,0) -> 0
A12: 5 | B12: MietS Bln | D12: i | E12: tatsächliche Heizkosten | K12: =IF(SUM(P12)>0,'Grundberechnung-Hk'!C100,"") ->  | P12: ='Grundberechnung-Hk'!C186 -> 0 | T12: =IF(AND(OR(AE8>0,AE20>0),SUM(P12)=0),"Heizkosten in EF 2 ?","") ->  | AB12: =IF('Grundberechnung-Hk'!G186>0,'Grundberechnung-Hk'!G186,0) -> 0
A14: 6 | B14: WhgBest | D14: i | E14: tatsächliche Warmwasserkosten | AB14: =IF('Grundberechnung-Hk'!G187>0,'Grundberechnung-Hk'!G187,"") -> 
A16: 7 | B16: Konzept | AA16: Gesamtmiete für die tatsächlich genutzte Wohnung: | AB16: =IF(AND(SUM(P10)>0,'Grundberechnung-Hk'!G189>0),'Grundberechnung-Hk'!G189,0) -> 0 | AC16: =IF(SUM(U6,AB18)>0,AB18-AB16,"") -> 
A18: 8 | B18: BetriebsK | Z18: =IF(SUM(AB18)>0,"Prüfgrenze für tatsächliche Miete:","") ->  | AA18: =IF(AND(AB16>0,SUM(AB18)>0),"á","") ->  | AB18: =IF('Grundberechnung-Hk'!G176>0,ROUND('Grundberechnung-Hk'!G176,0),"") ->  | AE18: Betrachtungszeitraum
A20: 9 | B20: HeizK | D20: i | M20: =IF(AND(P10>0,P20=0,AB38>0),"< ?","") ->  | P20: ='Grundberechnung-Hk'!E202 -> 0 | Q20: Monate | AA20: =IF(SUM(AB20)>0,"Kosten für aktuelle Wohnung:","") ->  | AB20: =IF('Grundberechnung-Hk'!G204>0,'Grundberechnung-Hk'!G204,"") ->  | AC20: =IF(AE20=1,"(12 Mo.)",IF(AE20=2,"(36 Mo.)","")) ->  | AF20: [1] = 36 Monate, [2] = 12 Monate
A22: 10 | B22: WarmwA | E22: =IF(AE20=1,"bei Prognose: Leistungsbezug endet in naher Zukunft",IF(AE20=2,"Leistungsbezug endet nicht in naher Zukunft","")) ->  | AA22: =IF(SUM(AB22)>0,"Kostengrenze für angemessene Miete:","") ->  | AB22: =IF('Grundberechnung-Hk'!G206>0,'Grundberechnung-Hk'!G206,"") -> 
E24: Kosten durch Umzug (Prognose) | U24: =IF(SUM(V26)>0,"Quadratmeterpreis","") -> 
A26: 11 | B26: Ergebnis | D26: i | E26: Doppelmieten | O26: für | R26: =IF(P26=1," Monat"," Monate") -> Monate | T26: x | U26: ='Grundberechnung-Hk'!C213 -> 0 | X26: (aktuelle Miete) | AB26: =IF('Grundberechnung-Hk'!G213>0,'Grundberechnung-Hk'!G213,"") -> 
A28: D | B28: Druck aM | D28: i | E28: Mietkaution | O28: Anzahl der Nettokaltmieten: | T28: x | U28: ='Grundberechnung-Hk'!C214 -> 0 | X28: (angemessene M.) | AB28: =IF(Grundberechnung!G209>0,Grundberechnung!G209,"") -> 
A30: D | B30: Wi-Vergl | D30: i | E30: Genossenschaftsanteile | S30: =IF(E30="Genossenschaftsanteile"," (Orientierung: 3 x Bruttowarm)","") -> (Orientierung: 3 x Bruttowarm) | AB30: =IF('Grundberechnung-Hk'!G215>0,'Grundberechnung-Hk'!G215,"") ->  | AE30: Helferpauschale
A32: T | B32: Tabelle | D32: i | E32: Umzugskosten 1 | I32: (Pausch. je mithelfende Pers.) | T32: x | W32: Personen (max. 4) | AB32: =IF('Grundberechnung-Hk'!G216>0,'Grundberechnung-Hk'!G216,"") ->  | AE32: 30 | AF32: €
D34: i | E34: Umzugskosten 2 | I34: (Renovierung/ Materialkosten) | AB34: =IF('Grundberechnung-Hk'!G217>0,'Grundberechnung-Hk'!G217,"") -> 
D36: i | E36: Umzugskosten 3 | I36: (Mietwagen/ ggf. Umzugsfirma) | AB36: =IF('Grundberechnung-Hk'!G218>0,'Grundberechnung-Hk'!G218,"") -> 
E38: ="Vergleich "&IF(AE20=1,"für 12 Monate",IF(AE20=2,"für 36 Monate","")) -> Vergleich | T38: Kosten alte Wohnung: | U38: ='Grundberechnung-Hk'!G228 -> 0 | AA38: Summe: | AB38: =IF(Grundberechnung!G214>0,Grundberechnung!G214,0) -> 0
T40: Kosten bei angem. Miete + Umzugskosten | U40: ='Grundberechnung-Hk'!G232 -> 0
E46: =IF(SUM(AB38)>0,'Grundberechnung-Hk'!B235,"") -> 
E48: =IF(P10>0,'Grundberechnung-Hk'!C195,"") -> 

Sheet Grundberechnung (hidden)
A1: Start | B1: Angemessene Miete (Tabelle) | G1: Druck WiVer | H1: Druck | I1: AV-Wohnen
F2: Stand: | G2: =Einstellungen!C2 -> 2024-02-01 | H2: neue Heizkosten
A3: EF1 | I3: Bisher alles ohne Übergangsregelung für bereits abgesenkte Mieten
B4: Angemessene Wohnungsmiete | G4: Tabelle
B6: berücksichtigte Personenzahl / BG | D6: ='EF1'!K8 -> 0
B8: =Grundeinstellungen!AG10&" [1]" -> Rundung nach AV-Wohnen [1] | D8: =Grundeinstellungen!AF10 -> 1 | E8: nur für Gesamtaufwendungen gem. Anlage 3
K9: angemessene | L9: ergibt | N9: zugehörige | O9: ergibt
B10: Abzug bei dezentraler Warmwassererwärmung | H10: Warmwasser | K10: Wohnungsgrößen | L10: Wohnungsgröße | N10: m² - Preise | O10: m² - Preis
C11: Personen | H11: Abzug monatlich | I11: Abzug WW | K11: in m²
C12: 1 | H12: =Einstellungen!D64 -> 7 | I12: =IF(D$6=C12,H12,0) -> 0 | K12: =Werte!CC3 -> 50 | L12: =IF(D$6=C12,K12,0) -> 0 | M12: =Werte!J7&" :" -> 40 bis < 60 m² : | N12: =Werte!J3 -> 7.21 | O12: =IF($D$6=C12,N12,0) -> 0
C13: 2 | H13: =Einstellungen!D65 -> 9 | I13: =IF(AND(D$6=C13,D14=0),H13,0) -> 0 | K13: =Werte!CD3 -> 65 | L13: =IF(AND(D$6=C13,D14=0),K13,0) -> 0 | M13: =Werte!K7&" :" -> 60 m² : | N13: =Werte!K3 -> 7.21 | O13: =IF(AND($D$6=C13,D26=0),N13,0) -> 0
B14: Alleinerziehend mit 1 Kind | C14: 2 | D14: ='EF1'!AE18 -> 0 | E14: Kd. | H14: =Einstellungen!D66 -> 9 | I14: =IF(AND(D$6=C14,D14=1),H14,0) -> 0 | K14: =Werte!CE3 -> 65 | L14: =IF(AND(D$6=C14,D14=1),K14,0) -> 0 | M14: =Werte!L7&" :" -> > 60 bis 90 m² : | N14: =Werte!L3 -> 6.59 | O14: =IF(AND($D$6=C14,D26=1),N14,0) -> 0
C15: 3 | H15: =Einstellungen!D67 -> 11 | I15: =IF(D$6=C15,H15,0) -> 0 | K15: =Werte!CF3 -> 80 | L15: =IF(D$6=C15,K15,0) -> 0 | M15: =Werte!L7&" :" -> > 60 bis 90 m² : | N15: =Werte!L3 -> 6.59 | O15: =IF($D$6=C15,N15,0) -> 0
C16: 4 | H16: =Einstellungen!D68 -> 12 | I16: =IF(D$6=C16,H16,0) -> 0 | K16: =Werte!CG3 -> 90 | L16: =IF(D$6=C16,K16,0) -> 0 | M16: =Werte!L7&" :" -> > 60 bis 90 m² : | N16: =Werte!L3 -> 6.59 | O16: =IF($D$6=C16,N16,0) -> 0
C17: 5 | H17: =Einstellungen!D69 -> 14 | I17: =IF(D$6>=C17,H17,0) -> 0 | K17: =Werte!CH3 -> 102 | L17: =IF(D$6>=C17,K17,0) -> 0 | M17: =Werte!M7&" :" -> > 90 m² : | N17: =Werte!M3 -> 7.09 | O17: =IF($D$6=C17,N17,0) -> 0
C18: je weitere Person | H18: =Einstellungen!D70 -> 2 | I18: =IF(D6>5,(D6-5)*H18,0) -> 0 | K18: =Werte!CI3 -> 12 | L18: =IF(D6>5,(D6-5)*K18,0) -> 0
I19: =SUM(I12:I18) -> 0 | L19: =SUM(L12:L18) -> 0 | M19: =Werte!M7&" :" -> > 90 m² : | N19: =Werte!M3 -> 7.09 | O19: =IF($D$6>C17,N19,0) -> 0
D20: Abzug bei dezentraler Warmwassererwärmung [1]: | F20: ='EF1'!AE6 -> 0 | I20: =IF(F20=1,I19,0) -> 0 | O20: =SUM(O12:O19) -> 0
I21: =
I22: =Einstellungen!J71 -> 0 | J22: Vergleichswert WW-Abzug aus Einstellungen
B23: Angemessene Kosten der Unterkunft
A25: EF1 | B25: Angemessene Nettokaltmiete
C26: =IF(D26=0,"nicht alleinerziehend mit 1 Kind","*") -> nicht alleinerziehend mit 1 Kind | D26: =D14 -> 0 | E26: =IF(D26=1,"(alleinerziehend mit 1 Kind)","") -> 
B27: Personen der Bedarfsgemeinschaft: | D27: =D6 -> 0 | E27: =IF(D27=1,"Person","Personen") -> Personen
B28: ergibt max. Wohnfläche | C28: =L19 -> 0
B29: weiterer Raumbedarf | C29: ='EF1'!V10 -> 0
B30: max. anerkannter Raumbedarf | C30: =SUM(C28:C29) -> 0 | D30: m²
B32: Nettokaltmiete für Wohnungsgrößen
C33: Ø Kaltmiete/m²
B34: individuell festgelegte m²-Netto-Kaltmiete | C34: =IF(D34=1,'EF1'!K14,0) -> 0 | D34: ='EF1'!AE54 -> 0 | E34: [1] zulassen
B35: 40 m² - unter 60 m² | C35: =ROUND(Werte!J3,2) -> 7.21 | D35: 40 | E35: - unter | F35: 60
B36: 60 m² | C36: =ROUND(Werte!K3,2) -> 7.21 | D36: =F35 -> 60 | F36: nicht alleinerziehend
B37: über 60 m² - einschließlich 90 m² | C37: =ROUND(Werte!L3,2) -> 6.59 | D37: =F35 -> 60 | E37: bis | F37: 90
B38: über 90 m² | C38: =ROUND(Werte!M3,2) -> 7.09 | E38: über | F38: =F37 -> 90
B40: Mietpreisgrenze nettokalt | C40: =IF(C28>0,IF(C34>0,C34,O20),0) -> 0 | D40: x | E40: =C30 -> 0 | F40: = | G40: =C40*E40 -> 0
B43: Angemessene Betriebskosten
B45: individuell festgelegte kalte Betriebskosten pro m² | C45: =IF(D45=1,'EF1'!K16,0) -> 0 | D45: ='EF1'!AE54 -> 0 | E45: [1] zulassen
B46: kalte Betriebskosten pro m² | C46: =ROUND(SUM(Werte!P3),2) -> 1.77
B47: BBU | C47: =ROUND(Werte!Q3,2) -> 0
B49: Kalte Betriebskosten | C49: =IF(C28>0,IF(C45>0,C45,C46),0) -> 0 | D49: x | E49: =C30 -> 0 | F49: = | G49: =C49*E49 -> 0
I51: Vergleichsberechnung, wenn gleichzeitig 10% Zuschlag im soz. Wohnungsbau
B52: Angemessene Bruttokaltmiete | I52: ohne sozialen Wohnungsbau
A53: 1. | B53: Bruttokaltmiete (Richtwert) | G53: =SUM(G40,G49) -> 0 | J53: =G53 -> 0
A56: 2. | B56: 10% Zuschlag im soz. Wohnungsbau (1. Förderweg) | C56: =G53 -> 0 | D56: =Werte!GR3 -> 10 | E56: %
C57: =C56/100*D56 -> 0 | D57: ='EF1'!AE8 -> 0 | E57: [1] Zuschlag | G57: =IF(D57=1,C57,0) -> 0
B58: =IF(D57=1,"im sozialen Wohnungsbau: ","kein sozialer Wohnungsbau ") -> kein sozialer Wohnungsbau | C58: =SUM(G53,G57) -> 0 | F58: aus Richtwert
A60: 3. | B60: 20% Zuschlag zur Vermeidung von Wohnungslosigkeit | C60: =G53 -> 0 | D60: =Werte!GS3 -> 20 | E60: % | F60: =IF(D61=1,D60,0) -> 0
B61: (wenn nur so teurer Unterbringung zu vermeiden ist) | C61: =C60/100*D60 -> 0 | D61: ='EF1'!AE14 -> 0 | G61: =IF(OR(D61=1,D63=1),C61,0) -> 0 | H61: =IF(D63=1,"< zugleich zul.","< nicht zugleich") -> < nicht zugleich | J61: =G61 -> 0
B62: mit Zuschlag wohnungslos | C62: =SUM(C58,G61) -> 0 | F62: aus Richtwert
C63: ='EF1'!AF50 -> [1] Bestandsschutz für 20% wegen Wohnungslosigkeit | D63: ='EF1'!AE50 -> 0 | H63: Bestandsschutz
H64: bewirkt:
A65: 4. | B65: Klimabonus | C65: =Einstellungen!J82 -> 0 | D65: ='EF1'!AE40 -> 0 | G65: =IF(D65=1,ROUND(C65,0),0) -> 0 | H65: 10% Zuschlag | J65: =G65 -> 0
C66: =SUM(C62,G65) -> 0 | F66: Pauschalbetrag | H66: Umzugsvermei-
H67: dung zulässig
A68: 5. | B68: 10% Zuschlag bei Härtefall (von Brutto-Kaltmiete) | C68: =SUM(G53,G57,G61,G65) -> 0 | D68: =Werte!GT3 -> 10 | E68: % | F68: =IF(D69=1,D68,0) -> 0 | I68: =SUM(G53,G61,G65) -> 0
B69: (alleinerziehend, längere Wohndauer u.a.) | C69: =C$68/100*D68 -> 0 | D69: ='EF1'!AE10 -> 0 | E69: [1] Zuschlag | G69: =IF(D69=1,C69,0) -> 0 | I69: =I68/100*D68 -> 0 | J69: =IF(D69=1,I69,0) -> 0
B70: mit Härtefallzuschlag: | C70: =SUM(C68,G69) -> 0 | F70: aus 1. - 4.
I75: kein sozialer
B76: angemessene Gesamt-Bruttokaltmiete | C76: (incl. Klimabonus) | G76: =SUM(G53,G57,G61,G69,G65) -> 0 | I76: Wohnungsbau: | J76: =SUM(J53:J69) -> 0 | K76: Bruttokaltmiete
A78: 6. | B78: 10 % Zuschlag zur Umzugsvermeidung / 6.1.1 AV-Wohnen | D78: =Werte!GU3 -> 15 | E78: % | F78: =IF(F79=1,D78,0) -> 0
B79: (Umzugsvermeidungszuschlag) | C79: =C$58/100*D78 -> 0 | D79: ='EF1'!AE12 -> 0 | F79: =IF(D61=1,IF(D63=1,D79,0),D79) -> 0
B80: anzuwendender Umzugsvermeidungszuschlag | C80: =IF(F79=1,C79,0) -> 0 | H80: =IF(D63=1,"< zugleich zul.","< nicht zugleich") -> < nicht zugleich | I80: =J53/100*D78 -> 0 | J80: =IF(F79=1,I80,0) -> 0
B81: mit Umzugsvermeidungszuschlag: | C81: =SUM(G76,C80) -> 0
J82: =IF(J80>0,SUM(J76,J80),0) -> 0
A85: EF2 | B85: Angemessene Heizkosten | K85: Heizkosten
K86: Jahresbeträge
C87: Heizmaterial-Auswahl | E87: ='EF1'!F65 -> 0 | K87: =C88 -> Heizöl | L87: =C89 -> Erdgas | M87: =C90 -> Fernwärme | N87: =C91 -> Wärmepumpe | O87: =C92 -> Nachtstrom
C88: Heizöl | D88: 1 | I88: =C96 -> 100 m² - 250 m² | K88: =Werte!AC3 -> 18.1 | L88: =Werte!AG3 -> 17 | M88: =Werte!AK3 -> 22.6 | N88: =Werte!AO3 -> 22.5
C89: Erdgas | D89: 2 | I89: =C97 -> 251 m² - 500 m² | K89: =Werte!AD3 -> 17.6 | L89: =Werte!AH3 -> 15.8 | M89: =Werte!AL3 -> 21 | N89: =Werte!AP3 -> 21.6
C90: Fernwärme | D90: 3 | I90: =C98 -> 501 m² - 1000 m² | K90: =Werte!AE3 -> 17.1 | L90: =Werte!AI3 -> 14.7 | M90: =Werte!AM3 -> 19.7 | N90: =Werte!AQ3 -> 20.8
C91: Wärmepumpe | D91: 4 | I91: =C99 -> über 1000 m² | K91: =Werte!AF3 -> 16.7 | L91: =Werte!AJ3 -> 14 | M91: =Werte!AN3 -> 18.8 | N91: =Werte!AR3 -> 20.3
C92: Nachtstrom | D92: 5
C93: andere HeizArt | D93: 6
B94: =C87&": "&IF(E87=1,C88,IF(E87=2,C89,IF(E87=3,C90,IF(E87=4,C93,"?")))) -> Heizmaterial-Auswahl: ? | Q94: Auswahl
C95: Gebäudeflächen-Auswahl | E95: ='EF1'!F67 -> 0 | K95: Monatsbeträge | Q95: Heizmaterial
C96: 100 m² - 250 m² | D96: 1 | K96: =C88 -> Heizöl | L96: =C89 -> Erdgas | M96: =C90 -> Fernwärme | N96: =C91 -> Wärmepumpe | O96: =C92 -> Nachtstrom | P96: =C93 -> andere HeizArt | Q96: =IF(K97>0,K96,IF(L97>0,L96,IF(M97>0,M96,IF(P97>0,P96,"keine Auswahl")))) -> keine Auswahl
C97: 251 m² - 500 m² | D97: 2 | K97: =IF($E87=$D88,$D88,0) -> 0 | L97: =IF($E87=$D89,$D89,0) -> 0 | M97: =IF($E87=$D90,$D90,0) -> 0 | N97: =IF($E87=$D91,$D91,0) -> 0 | O97: =IF($E87=$D92,$D92,0) -> 0 | P97: =IF($E87=$D93,$D93,0) -> 0
C98: 501 m² - 1000 m² | D98: 3 | I98: =C96 -> 100 m² - 250 m² | J98: =IF(E95=D96,D96,0) -> 0 | K98: =ROUND(K88/12,2) -> 1.51 | L98: 1.42 | M98: 1.88 | N98: 1.88 | O98: 0 | P98: =MAX(K98:M98) -> 1.88 | Q98: =IF(J98>0,IF(K$97>0,K98,IF(L$97>0,L98,IF(M$97>0,M98,IF(N$97>0,N98,IF(O$97>0,O98,IF(P$97>0,P98)))))),0) -> 0
C99: über 1000 m² | D99: 4 | I99: =C97 -> 251 m² - 500 m² | J99: =IF(E95=D97,D97,0) -> 0 | K99: 1.47 | L99: 1.32 | M99: 1.75 | N99: 1.8 | O99: 0 | P99: =MAX(K99:M99) -> 1.75 | Q99: =IF(J99>0,IF(K$97>0,K99,IF(L$97>0,L99,IF(M$97>0,M99,IF(N$97>0,N99,IF(O$97>0,O99,IF(P$97>0,P99)))))),0) -> 0
B100: =C95&": "&IF(E95=1,C96,IF(E95=2,C97,IF(E95=3,C98,IF(E95=4,C99,"?")))) -> Gebäudeflächen-Auswahl: ? | I100: =C98 -> 501 m² - 1000 m² | J100: =IF(E95=D98,D98,0) -> 0 | K100: 1.43 | L100: 1.23 | M100: 1.64 | N100: 1.73 | O100: 0 | P100: =MAX(K100:M100) -> 1.64 | Q100: 0
I101: =C99 -> über 1000 m² | J101: =IF(E95=D99,D99,0) -> 0 | K101: 1.39 | L101: 1.17 | M101: 1.57 | N101: 1.69 | O101: 0 | P101: =MAX(K101:M101) -> 1.57 | Q101: =IF(J101>0,IF(K$97>0,K101,IF(L$97>0,L101,IF(M$97>0,M101,IF(N$97>0,N101,IF(O$97>0,O101,IF(P$97>0,P101)))))),0) -> 0
B102: individuell festgelegte max. Heizkosten/ m² | D102: ='EF1'!AE56 -> 0 | E102: [1] zulassen | H102: =IF(AND(C102>0,D102>0),"individuell festgelegte max. Heizkosten/ m²","") ->  | P102: ausgewählte Heizkosten/m²: | Q102: =SUM(Q98:Q101) -> 0
B103: Grenzwert für angemessene Heizkosten je m² | C103: =IF(C102>0,C102,Q102) -> 0 | D103: x | E103: =C30 -> 0
B104: Heizkostengrenzwert für Nachtspeicherheizung | C104: =Einstellungen!J94 -> 0 | D104: =IF(E87=D92,1,0) -> 0
A105: 7. | B105: Grenzwert für angemessene Heizkosten | C105: =IF(C30>0,IF(D104=1,C104,C103*E103),0) -> 0 | G105: =C105 -> 0
B106: ="nach Auswahl ("&'EF1'!AH48&IF('EF1'!F65<4,", "&'EF1'!AH28,"")&")" -> nach Auswahl (Heizart: ?, Gebäudefläche: ?)
B107: In Anspruch genommener Klimabonus
B108: =B76 -> angemessene Gesamt-Bruttokaltmiete | C108: =G76 -> 0
B109: tatsächlliche Bruttokaltmiete | C109: ='EF1'!K10 -> 0
B110: Klimabonus | C110: =G65 -> 0 | D110: =D65 -> 0
B111: nicht in Anspruch genommener Klimabonus | C111: =IF(AND(D110=1,C108>C109),C108-C109,0) -> 0
A112: 8. | B112: in Anspruch genommener Klimabonus | C112: =IF(C110-C111<0,0,C110-C111) -> 0 | G112: =C112 -> 0
B115: Abzug b. dezentraler Warmwassererwärmung (pauschal) | G115: =I20*-1 -> 0
A116: 9. | B116: angemessene Heizkosten: | C116: =SUM(G105,G115)-G112 -> 0
A140: EF2 | B140: tatsächliche Heizkosten: | C140: ='EF1'!K62 -> 0
A142: 10. | B142: individuell angemessene Heizkosten: | C142: =IF(AND(C140>0,C140<C116),C140,C116) -> 0
B143: Überschreitung des Heizkostengrenzwertes zulassen | D143: ='EF1'!AE16 -> 0
A145: 145 | B145: anerkannte Heizkosten: | G145: =IF(AND(D143=1,C140>C142),C140,C142) -> 0 | J145: =G145 -> 0
F148: =IF(D8=1,"("&FIXED(SUM(G76,G145),2)&" € wird gem. AV-Wohnen nicht aufgerundet)","") -> (0,00 € wird gem. AV-Wohnen nicht aufgerundet)
B149: angemessene (Gesamt-) Miete mit Heizkosten | G149: =SUM(G76,G145) -> 0
B150: angemessene (Gesamt-) Miete mit Heizkosten | F150: wenn kein soz. Wohnungbau | G150: =J150 -> 0 | J150: =SUM(J76,J145) -> 0 | K150: kein sozialer Wohnungsbau (1. Förderweg)
B152: Prüfung mit Umzugsvermeidungszuschlag
B153: =B149 -> angemessene (Gesamt-) Miete mit Heizkosten | G153: =IF(SUM(F79)=1,SUM(G76,G145),0) -> 0
B154: =B80 -> anzuwendender Umzugsvermeidungszuschlag | G154: =C80 -> 0
B155: =B153 -> angemessene (Gesamt-) Miete mit Heizkosten | G155: =SUM(G153:G154) -> 0
B156: =B150 -> angemessene (Gesamt-) Miete mit Heizkosten | F156: =F150 -> wenn kein soz. Wohnungbau | G156: =IF(SUM(F79)=1,J156,0) -> 0 | J156: =IF(SUM(F79)=1,SUM(J82,J145),0) -> 0 | K156: =K150 -> kein sozialer Wohnungsbau (1. Förderweg)
B158: =B153 -> angemessene (Gesamt-) Miete mit Heizkosten | C158: (Anzeigebetrag gesamt) | G158: =SUM(G76,G145) -> 0
B160: Wirtschaftlichkeitsvergleich der Gesamtaufwendungen | E160: 6.1.1
B162: Summe der Richtwerte f. Unterkunft und Heizung | C162: (Grenzwert) | E162: 6.1.1 (2) | H162: Grenzwert nach
B164: =B53 -> Bruttokaltmiete (Richtwert) | G164: =G53 -> 0 | H164: Anlage 3 AV-Wohnen | J164: =J53 -> 0
B165: =B56 -> 10% Zuschlag im soz. Wohnungsbau (1. Förderweg) | C165: + 10% | G165: =G57 -> 0
B166: =B60 -> 20% Zuschlag zur Vermeidung von Wohnungslosigkeit | G166: =G61 -> 0 | J166: =J61 -> 0
B167: =B65 -> Klimabonus | G167: =G65 -> 0 | J167: =J65 -> 0
B168: =B68 -> 10% Zuschlag bei Härtefall (von Brutto-Kaltmiete) | C168: + 10% | G168: =G69 -> 0 | J168: =J69 -> 0
B169: =B78 -> 10 % Zuschlag zur Umzugsvermeidung / 6.1.1 AV-Wohnen | G169: =C80 -> 0 | J169: =J80 -> 0
B170: =B105 -> Grenzwert für angemessene Heizkosten | C170: =IF(D143=1,C140,0) -> 0 | G170: =IF(D143=1,C170,C116) -> 0 | H170: < ggf. abzüglich WW-Pauschale | J170: =C116 -> 0
B171: maximal zulässige Gesamtaufwendungen der Wohnung | F171: (gerundet) | G171: =IF(D8=1,ROUND(SUM(G164:G170),0),SUM(G164:G170)) -> 0 | H171: max."angem. Gesamtwarmmiete" | J171: =ROUND(SUM(J164:J170),0) -> 0
F172: =IF(D8=1,"("&FIXED(SUM(G164:G170),2)&" € gem. AV-Wohnen Anlage 3 gerundet)","") -> (0,00 € gem. AV-Wohnen Anlage 3 gerundet) | H172: (fiktive angemessene Warmmiete)
B173: liegt die Miete unter diesem Prüfwert, wird kein Kostensenkungsverfahren eingeleitet
B174: erfolgt eine Kostensenkung, entfällt dabei der Umzugsvermeidungszuschlag
B175: anerkannte Heizkosten | G175: =G145 -> 0
B176: maximale Gesamtaufwendungen für Wohnung bei Kostensenkung | G176: =ROUND(SUM(G164:G169,G175),0) -> 0
A178: EF2 | B178: Gesamtaufwendungen f. Unterkunft und Heizung | C178: (Miete) | D178: für bereits genutzen Wohnraum
B180: tatsächliche Bruttokaltmiete | C180: ='EF3'!P10 -> 0 | G180: =C180 -> 0
B181: tatsächliche Heizkosten | C181: =C140 -> 0 | G181: =C181 -> 0
B182: tatsächliche zu zahlende Warmwasserkosten | C182: ='EF3'!P14 -> 0 | G182: =C182 -> 0
B183: (wenn nicht bereits in den tatsächlichen Heizkosten enthalten)
B184: tatsächliche Gesamtaufwendungen für die bereits genutzte Wohnung | G184: =SUM(G180:G182) -> 0 | H184: =IF(G184>I184,">",IF(G184<I184,"<","=")) -> = | I184: =G171 -> 0 | J184: Grenzwert der Gesamtaufwendungen zum Vergleich
B185: (= aktuelle Gesamtwarmmiete)
B186: Marker "Kostensenkung": | C186: =IF(AND(G149>0,G184>0),IF(G171<G184,1,0),0) -> 0 | D186: [1] = Kostensenkung einzuleiten
C187: =IF(AND(G158>0,G184>0),IF(G171<G184,"Kostensenkungsmaßnahmen sind einzuleiten","Kostensenkungsmaßnahmen sind nicht einzuleiten"),"") -> 
B188: Textinfo für Tabelle: | C188: =IF(AND(G149>0,G184>0),IF(G171<G184,"","keine Kürzung"),"") -> 
B189: Textinfo für Tabelle: | C189: =IF(AND(G149>0,G184>0),IF(G171<G184,"Kürzung auf",""),"") -> 
B190: Textinfo für Tabelle: | C190: =IF(AND(G158>0,G184>0,G171<G184),"Das Kostensenkungsverfahren beginnt neu, wenn sich die Größe der BG ändert (8.6 AV-Wohnen)","") -> 
B192: Wirtschaftlichkeit bei Wohnungswechsel
A193: EF2 | B193: Kosten im Betrachtungszeitraum
B194: 6.1.2 (3) AV-Wohnen | C194: Option: | D194: ='EF3'!AE20 -> 0
B195: Eintrag [2] für 12 Monate | C195: 12 Monate | D195: =IF(D194=1,D194,0) -> 0 | E195: =IF(D195=1,12,0) -> 0
B196: Eintrag [1] für 36 Monate | C196: 36 Monate | D196: =IF(D194=1,0,D194) -> 0 | E196: =IF(D196=2,36,0) -> 0 | H196: < wenn voraussichtlich keine Beendigung des Leistungsbezuges innerhalb 1 Jahres
E197: =SUM(E195:E196) -> 0
B199: tatsächliche Miete der bewohnten Wohnung | C199: =G184 -> 0 | D199: x | E199: =E197 -> 0 | F199: = | G199: =C199*E199 -> 0
B201: angemessene Miete (nach Produktmethode) | C201: =G149 -> 0 | D201: x | E201: =E197 -> 0 | F201: = | G201: =C201*E201 -> 0
B203: =IF(G199>G201,"Mietkosteneinsparung zu erwarten","keine Mietkosteneinsparung zu erwarten") -> keine Mietkosteneinsparung zu erwarten | F203: Differenz: | G203: =G199-G201 -> 0
A206: EF2 | B206: Kosten durch Umzug
E207: für Monate
B208: Doppelmieten | C208: =C199 -> 0 | D208: x | E208: ='EF3'!P26 -> 0 | F208: = | G208: =C208*E208 -> 0
B209: Mietkaution (3 Nettokaltmieten) | C209: =G40 -> 0 | D209: x | E209: ='EF3'!P28 -> 0 | F209: = | G209: =C209*E209 -> 0
B210: ='EF3'!E30&IF('EF3'!E30="Genossenschaftsanteile"," (Orientierung: 3 x bruttowarm)","") -> Genossenschaftsanteile (Orientierung: 3 x bruttowarm) | C210: ='EF3'!P30 -> 0 | G210: =C210 -> 0
B211: Umzugskosten 1 (je mithelfende Person) | C211: ='EF3'!P32 -> 0 | D211: x | E211: ='EF3'!U32 -> 0 | F211: = | G211: =C211*E211 -> 0
B212: Umzugskosten 2 nach m² (Renovierung) | C212: ='EF3'!P34 -> 0 | G212: =C212 -> 0
B213: Umzugskosten 3 (Transporter/ Umzugsfirma) | C213: ='EF3'!P36 -> 0 | G213: =C213 -> 0
B214: Umzugsaufwand | G214: =SUM(G208:G213) -> 0
C216: =B203 -> keine Mietkosteneinsparung zu erwarten | D216: =G203 -> 0
C217: ="- "&B214 -> - Umzugsaufwand | D217: =G214 -> 0
D218: =D216-D217 -> 0
B222: Vergleich der alten Miete mit der [angemessenen neuen Miete + Umzugskosten] | H222: im gleichen Zeitraum
B223: I. Unterkunftskosten in alter Wohnung | C223: =G199 -> 0 | G223: =C223 -> 0
B225: II. neue (abstrakt angemessene) Mietkosten | C225: =G201 -> 0 | D225: €
B226: + Umzugskosten | C226: =G214 -> 0 | D226: €
C227: =SUM(C225:C226) -> 0 | D227: € | G227: =C227 -> 0
F228: Differenz: | G228: =G223-G227 -> 0 | H228: =IF(G228>0,"Einsparung "&FIXED(G228,2)&" € in "&E197&" Monaten","") -> 
B230: =IF(AND(C186=1,G223>0,G227>0),IF(G228>0,"Ein Umzug ist unter Berücksichtigung der Umzugskosten wirtschaftlich, Kostensenkung nach 6 Monaten",IF(G227>G223,"Ein Umzug ist unwirtschaftlich, Verlängerung der Kostensenkungsfrist von 6 auf max. 12 Monate")),"") -> 
B232: Ab Aufforderung zur Kostensenkung wird die alte Miete noch längstens 6 Monate in voller Höhe gezahlt.
B233: In besonders begründeten Einzelfällen kann dieser Zeitraum um 6 Mo. erweitert werden (auf max. 12 Monate).

Sheet Grundberechnung-Hk (hidden)
A1: Start | B1: Angemessene Miete (Tabelle) | G1: Druck WiVer | H1: Druck | I1: AV-Wohnen
F2: Stand: | G2: =Einstellungen!C2 -> 2024-02-01 | H2: neue Heizkosten
A3: EF1 | I3: Bisher alles ohne Übergangsregelung für bereits abgesenkte Mieten
B4: Angemessene Wohnungsmiete | G4: Tabelle
B6: berücksichtigte Personenzahl / BG | D6: ='EF1'!K8 -> 0
B8: =Grundeinstellungen!AG10&" [1]" -> Rundung nach AV-Wohnen [1] | D8: =Grundeinstellungen!AF10 -> 1 | E8: nur für Gesamtaufwendungen gem. Anlage 3
K9: angemessene | L9: ergibt | N9: zugehörige | O9: ergibt
B10: Abzug bei dezentraler Warmwassererwärmung | K10: Wohnungsgrößen | L10: Wohnungsgröße | N10: m² - Preise | O10: m² - Preis
C11: Personen | K11: in m²
C12: 1 | K12: =Werte!CC3 -> 50 | L12: =IF(D$6=C12,K12,0) -> 0 | M12: =Werte!J7&" :" -> 40 bis < 60 m² : | N12: =Werte!J3 -> 7.21 | O12: =IF($D$6=C12,N12,0) -> 0
C13: 2 | K13: =Werte!CD3 -> 65 | L13: =IF(AND(D$6=C13,D14=0),K13,0) -> 0 | M13: =Werte!L7&" :" -> > 60 bis 90 m² : | N13: =Werte!L3 -> 6.59 | O13: =IF(AND($D$6=C13,D26=0),N13,0) -> 0
K14: =Werte!CE3 -> 65 | L14: =IF(AND(D$6=C14,D14=1),K14,0) -> 0 | M14: =Werte!L7&" :" -> > 60 bis 90 m² : | N14: =Werte!L3 -> 6.59 | O14: =IF(AND($D$6=C14,D26=1),N14,0) -> 0
C15: 3 | K15: =Werte!CF3 -> 80 | L15: =IF(D$6=C15,K15,0) -> 0 | M15: =Werte!L7&" :" -> > 60 bis 90 m² : | N15: =Werte!L3 -> 6.59 | O15: =IF($D$6=C15,N15,0) -> 0
C16: 4 | K16: =Werte!CG3 -> 90 | L16: =IF(D$6=C16,K16,0) -> 0 | M16: =Werte!L7&" :" -> > 60 bis 90 m² : | N16: =Werte!L3 -> 6.59 | O16: =IF($D$6=C16,N16,0) -> 0
C17: 5 | K17: =Werte!CH3 -> 102 | L17: =IF(D$6>=C17,K17,0) -> 0 | M17: =Werte!M7&" :" -> > 90 m² : | N17: =Werte!M3 -> 7.09 | O17: =IF($D$6=C17,N17,0) -> 0
C18: je weitere Person | K18: =Werte!CI3 -> 12 | L18: =IF(D6>5,(D6-5)*K18,0) -> 0
L19: =SUM(L12:L18) -> 0 | M19: =Werte!M7&" :" -> > 90 m² : | N19: =Werte!M3 -> 7.09 | O19: =IF($D$6>C17,N19,0) -> 0
O20: =SUM(O12:O19) -> 0
B23: Angemessene Kosten der Unterkunft
A25: EF1 | B25: Angemessene Nettokaltmiete
C26: =IF(D26=0,"nicht alleinerziehend mit 1 Kind","*") -> nicht alleinerziehend mit 1 Kind | D26: =D14 -> 0 | E26: =IF(D26=1,"(alleinerziehend mit 1 Kind)","") -> 
B27: Personen der Bedarfsgemeinschaft: | D27: =D6 -> 0 | E27: =IF(D27=1,"Person","Personen") -> Personen
B28: ergibt max. Wohnfläche | C28: =L19 -> 0
B29: weiterer Raumbedarf | C29: ='EF1'!V10 -> 0
B30: max. anerkannter Raumbedarf | C30: =SUM(C28:C29) -> 0 | D30: m²
B32: Nettokaltmiete für Wohnungsgrößen
C33: Ø Kaltmiete/m²
B34: individuell festgelegte m²-Netto-Kaltmiete | C34: =IF(D34=1,'EF1'!K14,0) -> 0 | D34: ='EF1'!AE54 -> 0 | E34: [1] zulassen
B35: 40 m² - unter 60 m² | C35: =ROUND(Werte!J3,2) -> 7.21 | D35: 40 | E35: - unter | F35: 60
B36: 60 m² | C36: =ROUND(Werte!K3,2) -> 7.21 | D36: =F35 -> 60 | F36: nicht alleinerziehend
B37: über 60 m² - einschließlich 90 m² | C37: =ROUND(Werte!L3,2) -> 6.59 | D37: =F35 -> 60 | E37: bis | F37: 90
B38: über 90 m² | C38: =ROUND(Werte!M3,2) -> 7.09 | E38: über | F38: =F37 -> 90
B40: Mietpreisgrenze nettokalt | C40: =IF(C28>0,IF(C34>0,C34,O20),0) -> 0 | D40: x | E40: =C30 -> 0 | F40: = | G40: =C40*E40 -> 0
B43: Angemessene Betriebskosten
B45: individuell festgelegte kalte Betriebskosten pro m² | C45: =IF(D45=1,'EF1'!K16,0) -> 0 | D45: ='EF1'!AE54 -> 0 | E45: [1] zulassen
B46: kalte Betriebskosten pro m² | C46: =ROUND(SUM(Werte!P3),2) -> 1.77
B47: BBU | C47: =ROUND(Werte!Q3,2) -> 0
B49: Kalte Betriebskosten | C49: =IF(C28>0,IF(C45>0,C45,C46),0) -> 0 | D49: x | E49: =C30 -> 0 | F49: = | G49: =C49*E49 -> 0
I51: Vergleichsberechnung, wenn gleichzeitig 10% Zuschlag im soz. Wohnungsbau
B52: Angemessene Bruttokaltmiete | I52: ohne sozialen Wohnungsbau
A53: 1. | B53: Bruttokaltmiete (Richtwert) | G53: =SUM(G40,G49) -> 0 | J53: =G53 -> 0
A56: 2. | B56: 10% Zuschlag im soz. Wohnungsbau (1. Förderweg) | C56: =G53 -> 0 | D56: =Werte!GR3 -> 10 | E56: %
C57: =C56/100*D56 -> 0 | D57: ='EF1'!AE8 -> 0 | E57: [1] Zuschlag | G57: =IF(D57=1,C57,0) -> 0
B58: =IF(D57=1,"im sozialen Wohnungsbau: ","kein sozialer Wohnungsbau ") -> kein sozialer Wohnungsbau | C58: =SUM(G53,G57) -> 0 | F58: aus Richtwert
A60: 3. | B60: 20% Zuschlag zur Vermeidung von Wohnungslosigkeit | C60: =G53 -> 0 | D60: =Werte!GS3 -> 20 | E60: % | F60: =IF(D61=1,D60,0) -> 0
B61: (wenn nur so teurer Unterbringung zu vermeiden ist) | C61: =C60/100*D60 -> 0 | D61: ='EF1'!AE14 -> 0 | G61: =IF(OR(D61=1,D63=1),C61,0) -> 0 | H61: =IF(D63=1,"< zugleich zul.","< nicht zugleich") -> < nicht zugleich | J61: =G61 -> 0
B62: mit Zuschlag wohnungslos | C62: =SUM(C58,G61) -> 0 | F62: aus Richtwert
C63: ='EF1'!AF50 -> [1] Bestandsschutz für 20% wegen Wohnungslosigkeit | D63: ='EF1'!AE50 -> 0 | H63: Bestandsschutz
H64: bewirkt:
A65: 4. | B65: Klimabonus | C65: =Einstellungen!J82 -> 0 | D65: ='EF1'!AE40 -> 0 | G65: =IF(D65=1,ROUND(C65,0),0) -> 0 | H65: 10% Zuschlag | J65: =G65 -> 0
C66: =SUM(C62,G65) -> 0 | F66: Pauschalbetrag | H66: Umzugsvermei-
H67: dung zulässig
A68: 5. | B68: 10% Zuschlag bei Härtefall (von Brutto-Kaltmiete) | C68: =SUM(G53,G57,G61,G65) -> 0 | D68: =Werte!GT3 -> 10 | E68: % | F68: =IF(D69=1,D68,0) -> 0 | I68: =SUM(G53,G61,G65) -> 0
B69: (alleinerziehend, längere Wohndauer u.a.) | C69: =C$68/100*D68 -> 0 | D69: ='EF1'!AE10 -> 0 | E69: [1] Zuschlag | G69: =IF(D69=1,C69,0) -> 0 | I69: =I68/100*D68 -> 0 | J69: =IF(D69=1,I69,0) -> 0
B70: mit Härtefallzuschlag: | C70: =SUM(C68,G69) -> 0 | F70: aus 1. - 4.
I75: kein sozialer
B76: angemessene Gesamt-Bruttokaltmiete | C76: (incl. Klimabonus) | G76: =SUM(G53,G57,G61,G69,G65) -> 0 | I76: Wohnungsbau: | J76: =SUM(J53:J69) -> 0 | K76: Bruttokaltmiete
A78: 6. | B78: =D78&" % Zuschlag zur Umzugsvermeidung / 6.1.1 AV-Wohnen" -> 15 % Zuschlag zur Umzugsvermeidung / 6.1.1 AV-Wohnen | D78: =Werte!GU3 -> 15 | E78: % | F78: =IF(F79=1,D78,0) -> 0
B79: (Umzugsvermeidungszuschlag) | C79: =C$58/100*D78 -> 0 | D79: ='EF1'!AE12 -> 0 | F79: =IF(D61=1,IF(D63=1,D79,0),D79) -> 0
B80: anzuwendender Umzugsvermeidungszuschlag | C80: =IF(F79=1,C79,0) -> 0 | H80: =IF(D63=1,"< zugleich zul.","< nicht zugleich") -> < nicht zugleich | I80: =J53/100*D78 -> 0 | J80: =IF(F79=1,I80,0) -> 0
B81: mit Umzugsvermeidungszuschlag: | C81: =SUM(G76,C80) -> 0
J82: =IF(J80>0,SUM(J76,J80),0) -> 0
B85: Angemessene Heizkosten | C85: neu
B86: Übernahme von:
B87: berücksichtigte Personenanzahl der Bedarfsgemeinschaft | K87: Heizkostenbrennwert nachkWh | N87: Anzeige bei Auswahl | O87: Heizkostenbrennwert nachkWh | R87: Anzeige bei Auswahl | S87: Heizkostenbrennwert nachkWh
B88: als angemessen anerkannte Wohnfläche | K88: a) fosile Brennstoffe | M88: Abschlag WW | N88: =D92 -> 0 | O88: b) Wärmepumpe | Q88: Abschlag WW | R88: ='EF1'!$AE$6 -> 0 | S88: c) Nachtspeicherheizung | U88: Kosten pro kWh in €
B89: angemessene Netto-Kaltmiete | J89: =D6 -> 0 | K89: berücksichtigte Haushaltsmitglieder
B90: angemessene Betriebskosten (kalt) | J90: 1 | K90: =Werte!EZ3 -> 11900 | L90: =IF($J$89=1,K90,0) -> 0 | M90: =Werte!FG3 -> 1200 | N90: =IF(N88=1,IF($J$89=1,M90,0),0) -> 0 | O90: =Werte!FO3 -> 4700 | P90: =IF($J$89=1,O90,0) -> 0 | Q90: =Werte!FV3 -> 480 | R90: =IF(R88=1,IF($J$89=1,Q90,0),0) -> 0 | S90: =Werte!GD3 -> 6000 | T90: =IF($J$89=1,S90,0) -> 0 | U90: =Werte!GK3 -> 0.33 | V90: =IF($J$89=1,U90,0) -> 0
C91: Heizmaterialart-Auswahl | D91: ='EF1'!F65 -> 0 | G91: ohne Nachtstrom | J91: 2 | K91: =Werte!FA3 -> 15500 | L91: =IF($J$89=2,K91,0) -> 0 | M91: =Werte!FH3 -> 1560 | N91: =IF(N88=1,IF($J$89=2,M91,0),0) -> 0 | O91: =Werte!FP3 -> 6100 | P91: =IF($J$89=2,O91,0) -> 0 | Q91: =Werte!FW3 -> 624 | R91: =IF(R88=1,IF($J$89=2,Q91,0),0) -> 0 | S91: =Werte!GE3 -> 7800 | T91: =IF($J$89=2,S91,0) -> 0 | U91: =Werte!GL3 -> 0.33 | V91: =IF($J$89=2,U91,0) -> 0
B92: =IF(AND(D92=1,D91=5),"nicht bei Nachtstrom! ","") ->  | C92: =IF(N88=1,"abzl. Abschlag WW","") ->  | D92: ='EF1'!$AE$6 -> 0 | G92: ohne WW-Abzug | H92: WW-Abzug | J92: 3 | K92: =Werte!FB3 -> 19000 | L92: =IF($J$89=3,K92,0) -> 0 | M92: =Werte!FI3 -> 1920 | N92: =IF(N88=1,IF($J$89=3,M92,0),0) -> 0 | O92: =Werte!FQ3 -> 7500 | P92: =IF($J$89=3,O92,0) -> 0 | Q92: =Werte!FX3 -> 768 | R92: =IF(R88=1,IF($J$89=3,Q92,0),0) -> 0 | S92: =Werte!GF3 -> 9600 | T92: =IF($J$89=3,S92,0) -> 0 | U92: =Werte!GM3 -> 0.33 | V92: =IF($J$89=3,U92,0) -> 0
B93: Heizöl | C93: =IF(D91=D93,L96-N96,0) -> 0 | D93: 1 | E93: Fossil | G93: =IF(D91=D93,L96,0) -> 0 | H93: =IF(D91=D93,N96,0) -> 0 | J93: 4 | K93: =Werte!FC3 -> 21400 | L93: =IF($J$89=4,K93,0) -> 0 | M93: =Werte!FJ3 -> 2160 | N93: =IF(N88=1,IF($J$89=4,M93,0),0) -> 0 | O93: =Werte!FR3 -> 8500 | P93: =IF($J$89=4,O93,0) -> 0 | Q93: =Werte!FY3 -> 864 | R93: =IF(R88=1,IF($J$89=4,Q93,0),0) -> 0 | S93: =Werte!GG3 -> 10800 | T93: =IF($J$89=4,S93,0) -> 0 | U93: =Werte!GN3 -> 0.33 | V93: =IF($J$89=4,U93,0) -> 0
B94: Erdgas | C94: =IF(D91=D94,L96-N96,0) -> 0 | D94: 2 | E94: Fossil | G94: =IF(D91=D94,L96,0) -> 0 | H94: =IF(D91=D94,N96,0) -> 0 | J94: 5 | K94: =Werte!FD3 -> 24300 | L94: =IF($J$89>=5,K94,0) -> 0 | M94: =Werte!FK3 -> 2448 | N94: =IF(N88=1,IF($J$89>=5,M94,0),0) -> 0 | O94: =Werte!FS3 -> 9600 | P94: =IF($J$89>=5,O94,0) -> 0 | Q94: =Werte!FZ3 -> 979 | R94: =IF(R88=1,IF($J$89>=5,Q94,0),0) -> 0 | S94: =Werte!GH3 -> 12240 | T94: =IF($J$89>=5,S94,0) -> 0 | U94: =Werte!GO3 -> 0.33 | V94: =IF($J$89>=5,U94,0) -> 0
B95: Fernwärme | C95: =IF(D91=D95,L96-N96,0) -> 0 | D95: 3 | E95: Fossil | G95: =IF(D91=D95,L96,0) -> 0 | H95: =IF(D91=D95,N96,0) -> 0 | J95: je weitere Person | K95: =Werte!FE3 -> 2900 | L95: =IF($J$89>5,($J$89-5)*K95,0) -> 0 | M95: =Werte!FL3 -> 288 | N95: =IF(N88=1,IF($J$89>5,($J$89-5)*M95,0),0) -> 0 | O95: =Werte!FT3 -> 1100 | P95: =IF($J$89>5,($J$89-5)*O95,0) -> 0 | Q95: =Werte!GA3 -> 115 | R95: =IF(R88=1,IF($J$89>5,($J$89-5)*Q95,0),0) -> 0 | S95: =Werte!GI3 -> 1440 | T95: =IF($J$89>5,($J$89-5)*S95,0) -> 0 | U95: =Werte!GP3 -> 0.33 | V95: =IF($J$89>5,($J$89-5)*U95,0) -> 0
B96: Wärmepumpe | C96: =IF(D91=D96,P96-R96,0) -> 0 | D96: 4 | G96: =IF(D91=D96,P96,0) -> 0 | H96: =IF(D91=D96,R96,0) -> 0 | K96: Heizkostenbrennwert: | L96: =SUM(L90:L95) -> 0 | M96: =M88&":" -> Abschlag WW: | N96: =SUM(N90:N95) -> 0 | O96: HK-brennwert: | P96: =SUM(P90:P95) -> 0 | Q96: =Q88&":" -> Abschlag WW: | R96: =SUM(R90:R95) -> 0 | S96: HK-brennwert: | T96: =SUM(T90:T95) -> 0 | U96: Kosten/kWh: | V96: =SUM(V90:V95) -> 0
B97: Nachtstrom | C97: =IF(D91=D97,T96,0) -> 0 | D97: 5 | K97: jährlicher max. Grenzwert je m²: | L97: =IF($J$89>0,Werte!EY3,0) -> 0 | M97: Grundwert: | N97: =IF($J$89>0,Werte!FF3,0) -> 0 | O97: Grundwert: | P97: =Werte!FN3 -> 94 | Q97: Grundwert: | R97: =Werte!FU3 -> 9.6 | S97: Grundwert: | T97: =Werte!GC3 -> 120
B98: andere HeizArt | C98: =IF(D91=D98,MAX(L98,P98),0) -> 0 | D98: 6 | E98: max. HK Wert | G98: =IF(D91=D98,MAX(L96,P96),0) -> 0 | H98: =IF(D91=D98,MAX(N96,R96),0) -> 0 | K98: für Andere Heizart abzl. Abschlag WW: | L98: =L96-N96 -> 0 | P98: =P96-R96 -> 0 | T98: =T96 -> 0
B99: Auswahl: | C99: =SUM(C93:C98) -> 0 | D99: kWh | F99: Auswahl | G99: =SUM(G93:G98) -> 0 | H99: =SUM(H93:H98) -> 0
B100: =C91&": "&IF(D91=1,B93,IF(D91=2,B94,IF(D91=3,B95,IF(D91=4,B96,IF(D91=5,B97,IF(D91=6,B98,"?")))))) -> Heizmaterialart-Auswahl: ? | C100: =IF(D91=1,B93,IF(D91=2,B94,IF(D91=3,B95,IF(D91=4,B96,IF(D91=5,B97,IF(D91=6,B98,"?")))))) -> ?
B101: kWh-Gesamtverbrauch der abzurechnenden | C101: =IF(SUM('EF2'!S16)>0,'EF2'!S16,0) -> 0 | D101: kWh / Jahr
B102: Wirtschaftseinheit
B103: Umrechnungswert in kWh | C103: =IF(SUM('EF2-Hnk'!F12)>0,'EF2-Hnk'!F12,0) -> 0 | D103: kWh / Jahr
B104: (in kWh umgerechnete Brennstoffkosten)
B105: berücksichtigter kWh-Gesamtverbrauch der
B106: abzurechnenden Wirtschaftseinheit | C106: =IF(C103>0,C103,C101) -> 0 | D106: kWh / Jahr
B108: Berechnung der Brennstoffkosten und Heiznebenkosten
B109: Brennstoffkosten incl. WW | C109: =IF(SUM('EF2-Hnk'!F18)>0,'EF2-Hnk'!F18,0) -> 0 | D109: €
B110: Heiznebenkosten | C110: =IF(SUM('EF2-Hnk'!F22)>0,'EF2-Hnk'!F22,0) -> 0 | D110: €
B111: Summe | C111: =C109+C110 -> 0
B112: Gesamtkosten Brennstoffs + Nebenkosten incl. WW | C112: =IF(AND(C109>0,C110>0),C111,"?") -> ? | D112: € / Jahr | H112: Auswahl | K112: Vergleichsberechnung max. Grenzwert
B113: ='EF2'!E18 -> Gesamtheizkosten der beheizten Fläche | C113: =IF(SUM('EF2'!S18)>0,'EF2'!S18,0) -> 0 | D113: € / Jahr | H113: max.-Grenzwert | I113: Abschl.-WW
B114: anzurechnende Gesamtheiz-/brennstoffkosten | C114: =IF(SUM(C112)>0,SUM(C112),C113) -> 0 | D114: € / Jahr | H114: =SUM(L114,P114,T114) -> 0 | I114: =SUM(N114,R114) -> 0 | K114: =K97 -> jährlicher max. Grenzwert je m²: | L114: =IF(D91=5,0,IF(D91>0,L97,0)) -> 0 | M114: kwH | N114: =IF(D91=5,0,IF(D91>0,N97,0)) -> 0 | O114: kwH | P114: =IF(D91=4,P97,0) -> 0 | Q114: kwH | R114: =IF(D91=4,R97,0) -> 0 | S114: kwH | T114: =IF(D91=5,T97,0) -> 0 | U114: kwH
B115: berücksichtigte Gesamtheizkosten | C115: =IF(AND(C109>0,C110>0),C111,C114) -> 0 | K115: =B30&":" -> max. anerkannter Raumbedarf: | L115: =$C30 -> 0 | M115: m² | N115: =$C30 -> 0 | O115: m² | P115: =$C30 -> 0 | Q115: m² | R115: =$C30 -> 0 | S115: m² | T115: =$C30 -> 0 | U115: m²
B116: Kosten einer 1 kWh | C116: =IF(C106>0,C115/C106,0) -> 0 | D116: € | K116: Wohnungsgröße in m² x Grundwert | L116: =ROUND(L114*L115,-2) -> 0 | M116: kWh | N116: =ROUND(N114*N115,-2) -> 0 | O116: kWh | P116: =ROUND(P114*P115,-2) -> 0 | Q116: kWh | R116: =R114*R115 -> 0 | S116: kWh | T116: =ROUND(T114*T115,-2) -> 0 | U116: kWh | V116: < gerundet auf volle 100er, außer Warmwasser (WW)
B117: angemessene kWh der anerkannten Heizfläche/ Jahr | C117: =SUM(L117,P117,T117) -> 0 | D117: kWh | K117: anzuwendender Grundwert Heizkosten in kWh: | L117: =IF(AND(D91>0,D91<>4),IF(L116>L96,L116,L96),0) -> 0 | M117: kWh | N117: =IF(AND(D91>0,D91<>4),IF(N116>N96,N116,N96),0) -> 0 | O117: kWh | P117: =IF(D91=4,IF(P116>P96,P116,P96),0) -> 0 | Q117: kWh | R117: =IF(D91=4,IF(R116>R96,R116,R96),0) -> 0 | S117: kWh | T117: =IF(D91=5,IF(T116>T96,T116,T96),0) -> 0 | U117: kWh
B118: Nachtspeicherheizung | C118: =C97/12*C122 -> 0 | D118: kWh
B119: Preis / kWh | C119: =IF(SUM('EF2'!J24)>0,'EF2'!J24,0) -> 0 | D119: € | I119: =FIXED(C115,2)&" € / "&FIXED(C106,0)&" kWh = "&FIXED(C116,2)&" €/kWh (gerundet)" -> 0,00 € / 0 kWh = 0,00 €/kWh (gerundet)
B120: Basispreis | C120: =IF(AND(SUM('EF2'!O24)>0,D91=5),'EF2'!O24,0) -> 0 | D120: €
B121: x Monate (individueller Abrechnungszeitraum) | C121: =IF(SUM('EF2'!X24)>0,'EF2'!X24,0) -> 0 | D121: Mo.
B122: Standard = 11 / 12 Mo. Abrechnungszeitraum | C122: =IF(C121>0,C121,IF(D91=5,11,12)) -> 12 | D122: Mo.
B123: angemessene Heizkosten Nachtspeicherheizung: | C123: =IF(D91=5,(C118*C119)+(C120*C122),0) -> 0 | D123: €
B124: ="angemessene Heizkosten/ "&IF(C122<>12,"Abrechnungszeitraum","Jahr")&":" -> angemessene Heizkosten/ Jahr: | C124: =IF(C116>0,G99/12*C122*C116,0) -> 0 | D124: €
B125: ="anzuerkendende angem. Heizkosten/ "&IF(C122<>12,"Abrechnungszeitraum","Monat")&":" -> anzuerkendende angem. Heizkosten/ Monat: | C125: =IF(D91=5,C123,(SUM(C124)/C122)) -> 0 | D125: €
A126: 8. | B126: abzgl. des gewährten Klimabonus | C126: =IF(C124>0,G65,0) -> 0 | D126: € | E126: =D65 -> 0
B127: kWh Abzug/ Jahr für dezentrale Warmwasserversorgung
C128: =SUM(N117,R117) -> 0 | D128: kWh
B129: 1 kWh-Preis (alle ohne Nachtstrom) | C129: =C116 -> 0 | H129: =IF(AND(D91<>5,D91>0,C129=0),"Verbrauch / Kosten ? ","") -> 
B130: 1 kWh-Preis (bei Nachtspeicherheizung) | C130: =IF(C118>0,ROUND(IF(C120>0,(C120*C122/C118),0)+C119,2),0) -> 0
B131: anzuwendender 1 kWh-Preis (für verkettete Formel) | C131: =IF(D91=5,C130,C129) -> 0 | D131: €/ kWh incl. Basispreis
B132: =H114&" kWh x "&C30&" m² = "&C117&" kWh / Jahr"&IF(D92=1,", abzgl. "&C128&" kWh für WW = "&C99&" kWh / Jahr","")&" x "&FIXED(C131,2)&" €" -> 0 kWh x 0 m² = 0 kWh / Jahr x 0,00 € | H132: < alle außer Nachtstrom
B133: =C99&" kWh / Jahr x "&FIXED(C131,2)&" €"&IF(C120>0," (incl. anteiliger Basispreis)","") -> 0 kWh / Jahr x 0,00 € | H133: < Nachtstrom
B134: =IF(D91=5,B133,B132) -> 0 kWh x 0 m² = 0 kWh / Jahr x 0,00 € | H134: < Textauswahl nach Heizungsart
A135: 9. | B135: Abzug Pauschale für Warmwasser | C135: =IF(D92>0,ROUND(IF(D91=5,0,C128*C116/C122),2),0) -> 0 | H135: Abzug Warmwasser
B136: Summe angemessene monatliche Heizkosten: | C136: =C125-SUM(C126,C135) -> 0 | D136: € | E136: =IF(C126>0,"abzgl. Klimabonus","") -> 
B137: tatsächliche jährliche Heizkosten der eigenen | E137: =IF(C135>0,"abzgl. WW-Pauschale","") -> 
B138: Unterkunft: | C138: =IF(SUM('EF2'!S28)>0,'EF2'!S28,0) -> 0 | D138: €
B140: Überschreitung der Angemessenheitsgrenze | C140: =IF((C138/C122)>C136,(C138/C122)-C136,C145-C146) -> 0 | D140: € | E140: =IF(C122<>12,"Abrechnungszeitraum","pro Jahr (Betriebskostenabrechnung)") -> pro Jahr (Betriebskostenabrechnung)
A141: 7. | B141: angemessene Heizkosten / Vorauszahlungen
B142: der eigenen Unterkunft pro Monat: | C142: =IF(D91=5,(C123/C122),C125-SUM(C126,C135)) -> 0 | D142: €
A144: EF2 | B144: tatsächliche Heizkosten: | C144: ='EF1'!K62 -> 0 | D144: (Vorauszahlung)
C145: =IF(AND(C138>0,C144>0),C144,C138/C122) -> 0
A146: 10. | B146: individuell angemessene Heizkosten: | C146: =IF(C125>0,IF(AND(C144>0,C144<C142),C144,C142),0) -> 0
B147: Überschreitung des Heizkostengrenzwertes zulassen | D147: ='EF1'!AE16 -> 0
C148: =IF(C142<C145,C145-C142,0) -> 0 | E148: =IF(C144>0,"pro Jahr (mit Berücksichtigung der Heizkostenvorauszahlung)",E140) -> pro Jahr (Betriebskostenabrechnung)
A149: 145 | B149: anerkannte Heizkosten: | G149: =IF(AND(D147=1,C145>C146),C145,C146) -> 0 | J149: =G149 -> 0
F152: =IF(D8=1,"("&FIXED(SUM(G76,G149),2)&" € wird gem. AV-Wohnen nicht aufgerundet)","") -> (0,00 € wird gem. AV-Wohnen nicht aufgerundet)
B153: angemessene (Gesamt-) Miete mit Heizkosten | G153: =SUM(G76,G149) -> 0
B154: angemessene (Gesamt-) Miete mit Heizkosten | F154: wenn kein soz. Wohnungbau | G154: =J154 -> 0 | J154: =SUM(J76,J149) -> 0 | K154: kein sozialer Wohnungsbau (1. Förderweg)
B156: Prüfung mit Umzugsvermeidungszuschlag
B157: =B153 -> angemessene (Gesamt-) Miete mit Heizkosten | G157: =IF(SUM(F79)=1,SUM(G76,G149),0) -> 0
B158: =B80 -> anzuwendender Umzugsvermeidungszuschlag | G158: =C80 -> 0
B159: =B157 -> angemessene (Gesamt-) Miete mit Heizkosten | G159: =SUM(G157:G158) -> 0
B160: =B154 -> angemessene (Gesamt-) Miete mit Heizkosten | F160: =F154 -> wenn kein soz. Wohnungbau | G160: =IF(SUM(F79)=1,J160,0) -> 0 | J160: =IF(SUM(F79)=1,SUM(J82,J149),0) -> 0 | K160: =K154 -> kein sozialer Wohnungsbau (1. Förderweg)
B162: =B157 -> angemessene (Gesamt-) Miete mit Heizkosten | C162: (Anzeigebetrag gesamt) | G162: =SUM(G76,G149) -> 0
B164: Wirtschaftlichkeitsvergleich der Gesamtaufwendungen | E164: 6.1.1
B166: Summe der Richtwerte f. Unterkunft und Heizung | C166: (Grenzwert) | E166: 6.1.1 (2) | H166: Grenzwert nach
B168: =B53 -> Bruttokaltmiete (Richtwert) | G168: =G53 -> 0 | H168: Anlage 3 AV-Wohnen | J168: =J53 -> 0
B169: =B56 -> 10% Zuschlag im soz. Wohnungsbau (1. Förderweg) | C169: + 10% | G169: =G57 -> 0
B170: =B60 -> 20% Zuschlag zur Vermeidung von Wohnungslosigkeit | G170: =G61 -> 0 | J170: =J61 -> 0
B171: =B65 -> Klimabonus | G171: =G65 -> 0 | J171: =J65 -> 0
B172: =B68 -> 10% Zuschlag bei Härtefall (von Brutto-Kaltmiete) | C172: + 10% | G172: =G69 -> 0 | J172: =J69 -> 0
B173: =B78 -> 15 % Zuschlag zur Umzugsvermeidung / 6.1.1 AV-Wohnen | G173: =C80 -> 0 | J173: =J80 -> 0
B174: =B105 -> berücksichtigter kWh-Gesamtverbrauch der
B175: =B106 -> abzurechnenden Wirtschaftseinheit | C175: =IF(D147=1,C144,0) -> 0 | G175: =IF(D147=1,C175,C142) -> 0 | H175: < ggf. abzüglich WW-Pauschale | J175: =IF(D147=1,C175,C142) -> 0
B176: maximal zulässige Gesamtaufwendungen der Wohnung | F176: (gerundet) | G176: =IF(D8=1,ROUND(SUM(G168:G175),0),SUM(G168:G175)) -> 0 | H176: max."angem. Gesamtwarmmiete" | J176: =ROUND(SUM(J168:J175),0) -> 0
F177: =IF(D8=1,"("&FIXED(SUM(G168:G175),2)&" € gem. AV-Wohnen Anlage 3 gerundet)","") -> (0,00 € gem. AV-Wohnen Anlage 3 gerundet) | H177: (fiktive angemessene Warmmiete)
B178: liegt die Miete unter diesem Prüfwert, wird kein Kostensenkungsverfahren eingeleitet
B179: erfolgt eine Kostensenkung, entfällt dabei der Umzugsvermeidungszuschlag
B180: anerkannte Heizkosten | G180: =G149 -> 0
B181: maximale Gesamtaufwendungen für Wohnung bei Kostensenkung | G181: =ROUND(SUM(G168:G173,G180),0) -> 0
A183: EF2 | B183: Gesamtaufwendungen f. Unterkunft und Heizung | C183: (Miete) | D183: für bereits genutzen Wohnraum
B185: tatsächliche Bruttokaltmiete | C185: ='EF3'!P10 -> 0 | G185: =C185 -> 0
B186: tatsächliche Heizkosten | C186: =C144 -> 0 | G186: =C186 -> 0
B187: tatsächliche zu zahlende Warmwasserkosten | C187: ='EF3'!P14 -> 0 | G187: =C187 -> 0
B188: (wenn nicht bereits in den tatsächlichen Heizkosten enthalten)
B189: tatsächliche Gesamtaufwendungen für die bereits genutzte Wohnung | G189: =SUM(G185:G187) -> 0 | H189: =IF(G189>I189,">",IF(G189<I189,"<","=")) -> = | I189: =G176 -> 0 | J189: Grenzwert der Gesamtaufwendungen zum Vergleich
B190: (= aktuelle Gesamtwarmmiete)
B191: Marker "Kostensenkung": | C191: =IF(AND(G153>0,G189>0),IF(G176<G189,1,0),0) -> 0 | D191: [1] = Kostensenkung einzuleiten
C192: =IF(AND(G162>0,G189>0),IF(G176<G189,"Kostensenkungsmaßnahmen sind einzuleiten","Kostensenkungsmaßnahmen sind nicht einzuleiten"),"") -> 
B193: Textinfo für Tabelle: | C193: =IF(AND(G153>0,G189>0),IF(G176<G189,"","keine Kürzung"),"") -> 
B194: Textinfo für Tabelle: | C194: =IF(AND(G153>0,G189>0),IF(G176<G189,"Kürzung auf",""),"") -> 
B195: Textinfo für Tabelle: | C195: =IF(AND(G162>0,G189>0,G176<G189),"Das Kostensenkungsverfahren beginnt neu, wenn sich die Größe der BG ändert (8.6 AV-Wohnen)","") -> 
B197: Wirtschaftlichkeit bei Wohnungswechsel
A198: EF2 | B198: Kosten im Betrachtungszeitraum
B199: 6.1.2 (3) AV-Wohnen | C199: Option: | D199: ='EF3'!AE20 -> 0
B200: Eintrag [2] für 12 Monate | C200: 12 Monate | D200: =IF(D199=1,D199,0) -> 0 | E200: =IF(D200=1,12,0) -> 0
B201: Eintrag [1] für 36 Monate | C201: 36 Monate | D201: =IF(D199=1,0,D199) -> 0 | E201: =IF(D201=2,36,0) -> 0 | H201: < wenn voraussichtlich keine Beendigung des Leistungsbezuges innerhalb 1 Jahres
E202: =SUM(E200:E201) -> 0
B204: tatsächliche Miete der bewohnten Wohnung | C204: =G189 -> 0 | D204: x | E204: =E202 -> 0 | F204: = | G204: =C204*E204 -> 0
B206: angemessene Miete (nach Produktmethode) | C206: =G153 -> 0 | D206: x | E206: =E202 -> 0 | F206: = | G206: =C206*E206 -> 0
B208: =IF(G204>G206,"Mietkosteneinsparung zu erwarten","keine Mietkosteneinsparung zu erwarten") -> keine Mietkosteneinsparung zu erwarten | F208: Differenz: | G208: =G204-G206 -> 0
A211: EF2 | B211: Kosten durch Umzug
E212: für Monate
B213: Doppelmieten | C213: =C204 -> 0 | D213: x | E213: ='EF3'!P26 -> 0 | F213: = | G213: =C213*E213 -> 0
B214: Mietkaution (3 Nettokaltmieten) | C214: =G40 -> 0 | D214: x | E214: ='EF3'!P28 -> 0 | F214: = | G214: =C214*E214 -> 0
B215: ='EF3'!E30&IF('EF3'!E30="Genossenschaftsanteile"," (Orientierung: 3 x bruttowarm)","") -> Genossenschaftsanteile (Orientierung: 3 x bruttowarm) | C215: ='EF3'!P30 -> 0 | G215: =C215 -> 0
B216: Umzugskosten 1 (je mithelfende Person) | C216: ='EF3'!P32 -> 0 | D216: x | E216: ='EF3'!U32 -> 0 | F216: = | G216: =C216*E216 -> 0
B217: Umzugskosten 2 nach m² (Renovierung) | C217: ='EF3'!P34 -> 0 | G217: =C217 -> 0
B218: Umzugskosten 3 (Transporter/ Umzugsfirma) | C218: ='EF3'!P36 -> 0 | G218: =C218 -> 0
B219: Umzugsaufwand | G219: =SUM(G213:G218) -> 0
C221: =B208 -> keine Mietkosteneinsparung zu erwarten | D221: =G208 -> 0
C222: ="- "&B219 -> - Umzugsaufwand | D222: =G219 -> 0
D223: =D221-D222 -> 0
B227: Vergleich der alten Miete mit der [angemessenen neuen Miete + Umzugskosten] | H227: im gleichen Zeitraum
B228: I. Unterkunftskosten in alter Wohnung | C228: =G204 -> 0 | G228: =C228 -> 0
B230: II. neue (abstrakt angemessene) Mietkosten | C230: =G206 -> 0 | D230: €
B231: + Umzugskosten | C231: =G219 -> 0 | D231: €
C232: =SUM(C230:C231) -> 0 | D232: € | G232: =C232 -> 0
F233: Differenz: | G233: =G228-G232 -> 0 | H233: =IF(G233>0,"Einsparung "&FIXED(G233,2)&" € in "&E202&" Monaten","") -> 
B235: =IF(AND(C191=1,G228>0,G232>0),IF(G233>0,"Ein Umzug ist unter Berücksichtigung der Umzugskosten wirtschaftlich, Kostensenkung nach 6 Monaten",IF(G232>G228,"Ein Umzug ist unwirtschaftlich, Verlängerung der Kostensenkungsfrist von 6 auf max. 12 Monate")),"") -> 
B237: Ab Aufforderung zur Kostensenkung wird die alte Miete noch längstens 6 Monate in voller Höhe gezahlt.
B238: In besonders begründeten Einzelfällen kann dieser Zeitraum um 6 Mo. erweitert werden (auf max. 12 Monate).

Sheet BSG Rechtsprechung
A2: Start | B2: Aussagen der gefestigten BSG Rechtsprechung zur Produktmethode, zuletzt in seinen Urteilen zum Land Berlin
C5: letzte Urteile zur Berechnung der angemessenen Miete, nur alleine Berlin betreffend:
D6: vom 19.10.2010 - B14 AS 50/10R | G6: Jobcenter Tempelhof Schöneberg
D7: vom 19.10.2010 - B14 AS 32/09 R
D8: vom 19.10.2010 - B14 AS 65/09 R | G8: Jobcenter Spandau
D9: vom 19.10.2010 - B14 AS 85/09 R
D10: vom 19.10.2010 - B14 AS 2/10 R | G10: Jobcenter Tempelhof Schöneberg
C12: KdU werden in Höhe der tatsächlichen Aufwendungen erbracht, soweit sie angemessen sind (§ 22 Abs. 1 Satz 1 SGB II).
C14: Die Angemessenheit der KdU ist (getrennt von den Kosten der Heizung, vgl. insoweit BSGE 104, 41 = SozR 4-4200 § 22 Nr 23)
C15: unter Zugrundelegung der sogenannten Produkttheorie in einem mehrstufigen Verfahren zu konkretisieren:
B17: 1. | C17: Zunächst ist die angemessene Wohnungsgröße zu ermitteln (Punkt A).
B19: 2. | C19: Dann ist festzustellen, ob die angemietete Wohnung dem Produkt aus angemessener Wohnfläche und Standard entspricht, der sich in der Wohnungsmiete niederschlägt.
B21: 3. | C21: Vergleichsmaßstab sind insoweit die räumlichen Gegebenheiten am Wohnort des Hilfebedürftigen (Punkt B),
B23: 4. | C23: wobei die örtlichen Gegebenheiten auf dem Wohnungsmarkt zu ermitteln und zu berücksichtigen sind (Punkt C).
B25: 5. | C25: Neben der Nettokaltmiete sind auch die angemessenen Betriebskosten i.S. des § 556 BGB - mit Ausnahme der Heizkosten - abstrakt zu bestimmen und als Faktor in das Produkt mit einzubeziehen.
C26: Schon der Wortlaut des § 22 Abs. 1 SGB II zeigt, dass diese Kosten zu den KdU für einen Hilfebedürftigen gehören und nicht - wie die Heizkosten - getrennt erfasst werden sollen.
C28: Der Begriff der "Angemessenheit" unterliegt als unbestimmter Rechtsbegriff der uneingeschränkten richterlichen Kontrolle.
C29: Im Streitfall ist das der Bestimmung der Kosten zugrunde liegende Konzept somit von den Gerichten in vollem Umfang zu überprüfen und ggf. ein solches Konzept durch eigene Ermittlungen zu ergänzen.
B31: A | C31: Bestimmung der Wohnfläche in Berlin
C32: Bei der Bestimmung der angem. Wohnfläche ist auf d. anerkannte Wohnraumgröße f. Wohnberechtigte im sozialen Mietwohnungsbau abzustellen (stRspr seit BSGE 97, 254 = SozR 4-4200 § 22 Nr. 3, jeweils RdNr 19).
C33: Hinsichtlich der Überlassung von gefördertem Mietwohnungsraum gilt § 27 Abs. 1 bis 5 WoFG, i.V.m. § 5 des Gesetzes zur Sicherstellung der Zweckbestimmung von Sozialwohnungen (WoBindG)
C34: in der geltenden Fassung. Wegen der maßgeblichen Wohnungsgröße verweist § 27 Abs. 4 WoFG (als Nachfolgeregelung zu § 5 Abs. 2 WoBindG in der bis zum 31.12.2001 geltenden Fassung) auf die nach § 10 WoFG
C35: von den Ländern festgelegten Wohnungsgrößen. Das Land Berlin hat allerdings zu § 10 WoFG keine Ausführungsvorschriften erlassen.
C36: Zu § 5 WoBindG und § 27 WoFG liegen nur (unveröffentlichte) Arbeitshinweise der Senatsverwaltung für Stadtentwicklung vom 15.12.2004 vor, die wegen der maßgeblichen Wohnungsgröße an die
C37: zuvor ergangenen Bekanntmachungen anknüpfen.
C38: Danach darf entsprechend der Bekanntmachung der Senatsverwaltung für Bau- und Wohnungswesen vom 20.10.1995 (Amtsblatt für Berlin 1995, 4462) an eine Einzelperson Wohnraum von bis zu 50 m² und an Zwei-
C39: Personen-Haushalte Wohnraum von bis zu 60 m² überlassen werden. An diese Regelungen auf Grundlage des § 5 Abs. 2 WoBindG aF, die auch nach Inkrafttreten von § 27 WoFG und § 5 WoBindG n.f
C40: Grundlage für die Belegung von gefördertem Wohnraum sind, ist auch für die Bestimmung der Angemessenheitsgrenze nach § 22 Abs. 1 SGB II anzuknüpfen (BSG SozR 4-4200 § 22 Nr. 26 RdNr 14 <Zweibrücken>).
C42: Weitergehenden Differenzierungen nach der Raumzahl sind für die Auslegung des § 22 Abs. 1 SGB II unbeachtlich.
C43: Dies haben die für die Grundsicherung zuständigen Senate bereits für andere Bundesländer entschieden. Es sind keine Gründe ersichtlich, weshalb für das Land Berlin anderes gelten sollte.
C44: Auch auf die (unterschiedlichen) Wohnungsgrößen in den (zum 31.12.1999 außer Kraft getretenen) Richtlinien der Senatsverwaltung für Bau- und Wohnungswesen für die Förderung der Neuschaffung von
C45: Wohnraum im sozialen Wohnungsbau (Wohnungsbauförderungsbestimmungen 1990 vom 16.7.1990 in der Fassung der Änderungsvorschriften vom 13.12.1992) und den Richtlinien über die
C46: Förderung von eigengenutztem Wohneigentum (Eigentumsförderungssätze 1999 vom 25.5.1999) kommt es nicht an.
C48: Sozialraum, der nicht verlassen werden muss
B49: B | C49: Bei der Bestimmung der angemessenen KdU ist als maßgeblicher Vergleichsraum das gesamte Stadtgebiet von Berlin heranzuziehen, dass diesen bildet.
C50: Ausgangspunkt für die Bestimmung des Vergleichsraumes ist zunächst der Wohnort des Hilfebedürftigen. Nach der Rechtsprechung des BSG muss es sich bei dem Vergleichsraum um einen
C51: ausreichend großen Raum der Wohnbebauung handeln, der aufgrund seiner räumlichen Nähe, seiner Infrastruktur und insbesondere seiner verkehrstechnischen Verbundenheit einen insgesamt
C52: betrachtet homogenen Lebens- und Wohnbereich bildet.
C53: Die einen Vergleichsraum prägenden Merkmale liegen aber - trotz der Größe - auch bezogen auf das Stadtgebiet von Berlin vor.
C54: Der öffentliche Nahverkehr ist auf die Erreichbarkeit des Stadtkerns von allen Stadtteilen her ausgerichtet. Von den Randlagen aus ergeben sich in die innerstädt. Bezirke insoweit lediglich Fahrzeiten,
C55: wie sie auch erwerbstätigen Pendlern zugemutet werden (vgl. § 121 Abs. 4 Satz 2 SGB III). Eine Beschränkung auf bestimmte Bezirke (oder Ortsteile) mit besonders verdichteter Bebauung und damit vorwiegend
C56: günstigem Wohnraum birgt zudem das Risiko einer Ghettoisierung. Außerdem zeigt die Wohnlagenkarte als Anlage zu dem Berliner Mietspiegel, dass ohnehin in allen Bezirken auch einfache Wohnlagen,
C57: an deren Mietniveau sich die Referenzmieten orientieren, vorhanden sind, sodass auch von daher die Bildung eines engeren Vergleichsraums nicht erforderlich erscheint.
C58: Es steht nicht zu befürchten, dass mit einem ggf. zur Kostensenkung erforderlichen Umzug regelmäßig das nähere soziale Umfeld verlassen werden muss.
B60: C | C60: angemessener Mietpreis
C61: Zu Grunde zu legen ist ein einfacher, im unteren Marktsegment liegender Standard (BSGE 97, 231 = SozR 4-4200 § 22 Nr. 2, jeweils RdNr 24); die Wohnung muss hinsichtlich ihrer Ausstattung, Lage und Bausubstanz
C62: einfachen und grundlegenden Bedürfnissen genügen (BSGE 97, 254 = SozR 4-4200 § 22 Nr. 3, jeweils RdNr 20). Die festgestellte angemessene Referenzmiete oder die Mietobergrenze muss mithin so gewählt werden,
C63: dass es dem Hilfebedürftigen möglich ist, im konkreten Vergleichsraum eine "angemessene" Wohnung anzumieten.
C64: Die Mietobergrenze ist nach der Rechtsprechung des BSG auf Grundlage eines diese Vorgaben beachtenden schlüssigen Konzepts zu ermitteln (vgl. BSG Urteil vom 18.6.2008 - B 14/7b AS 44/06 R).
C65: Die angemessene Referenzmiete ist anhand des Berliner Mietspiegels zu bestimmen, bei dem es sich um einen qualifizierten Mietspiegel i.S. des § 558d BGB handelt.
C66: Qualifizierte Mietspiegel können Grundlage der Bestimmung der Referenzmiete nach § 22 Abs. 1 SGB II sein.
C67: Sollen aus Daten eines qualifizierten Mietspiegels grundsicherungsrelevante Schlüsse abgeleitet werden, ist eine Beschränkung auf Daten bestimmter Bauklassen grundsätzlich nicht zulässig.
C68: Speziell der Berliner Mietspiegel weist allerdings in den Spalten 1 und 3 innerhalb der Bauklassen bis 1918 und bis 1949 Wohnungen mit besonders niedrigem Ausstattungsgrad auf.
C69: Dabei handelt es sich einerseits um Wohnungen mit "Ofenheizung", andererseits um Wohnungen ohne Bad (mit Innen-WC), in denen sich die Bewohner nur mit fließendem Wasser am Waschbecken
C70: waschen können; es fehlt also an einer Dusche.
C71: Die Werte für diese Wohnungen sind zur Bildung eines grundsicherungsrelevanten Mietwertes nicht mit heranzuziehen, denn auf Wohnungen mit diesem untersten Ausstattungsgrad können
C72: Hilfebedürftige bei der Wohnungssuche grundsätzlich von vornherein nicht verwiesen werden.
C73: Sie dürfen deshalb in die Auswertung des qualifizierten Mietspiegels grundsätzlich nicht einfließen, unabhängig davon, ob sich in diesem Mietsegment (noch) eine nennenswerte Zahl an Wohnungen findet.
C74: Es ist in erster Linie der kommunale Träger für solche notwendig erscheinenden Auswertungen im Rahmen der Mitwirkungspflichten heranzuziehen (vgl. grundlegend dazu BSG SozR 4-4200 § 22 Nr. 26).
C75: Dies gilt erst recht dann, wenn die vom Grundsicherungsträger bei seiner Entscheidung herangezogenen Daten als Entscheidungsgrundlage ungeeignet sind, wie dies in Berlin mit der AV-Wohnen der Fall ist.
C76: Es könnten sich im Ergebnis weitergehender Auswertungen durch den Träger der Grundsicherung durchaus Anhaltspunkte ergeben, dass eine bestimmte Baualtersklasse statistisch nachvollziehbar
C77: über alle Bezirke hinweg so häufig vorhanden ist und zugleich den einfachen Standard nachvollziehbar abbildet, dass allein auf diesen Wert (ggf. um einen Aufschlag erhöht) zurückzugreifen ist.
C78: Lassen sich solche weitergehenden Schlüsse aus vorhandenem Datenmaterial nicht ziehen, bietet es sich an, einen gewichteten arithmetischen Mittelwert nach Verteilung der in der Grundgesamtheit
C79: abgebildeten Wohnungen in den jeweiligen Bauklassen zu bilden (dazu Schifferdecker/Irgang/Silbermann, Archiv für Wissenschaft u. Praxis d. sozialen Arbeit 2010, 28; SG Berlin Urteil v. 30.6.2010 - S 174 AS 21949/07 -juris RdNr 46).
C80: Ein solcher Mittelwert böte immerhin die Gewähr, dass ein einzelner Wert für eine bestimmte Baualtersklasse entsprechend seiner tatsächlichen Häufigkeit auf dem Markt in einen grundsicherungsrelevanten
C81: Mittelwert einfließt.
C83: Betriebskostenfeststellung
C84: Wegen der abstrakt angemessenen Kosten i.S. des § 22 Abs. 1 SGB II sind die dort genannten Betriebskosten maßgebend. Auch insoweit erscheint es zulässig, zur Erstellung eines
C85: Konzepts auf bereits vorliegende Daten aus Betriebskostenübersichten zurückzugreifen, im Ausgangspunkt allerdings auf örtliche Übersichten und insoweit auf die sich daraus
C86: ergebenden Durchschnittswerte. Insbesondere bei Ver- und Entsorgungsdienstleistungen ergeben sich regional deutliche Unterschiede, auf die Rücksicht genommen werden muss.
C87: Eine weitergehende Gewichtung scheint dagegen nicht notwendig, da nicht erkennbar ist, welche zuverlässigen (weitergehenden) Aussagen sich hieraus ableiten lassen sollten. Neben den (nichtamtlichen)
C88: Übersichten in Mietspiegeln kommen auch Übersichten der örtlichen Interessenverbände in Betracht, die an der Anerkennung des Mietspiegels beteiligt waren. Solche Werte müssen möglichst aktuell sein,
C89: um sichere Rückschlüsse auf das Preisniveau im jeweiligen Vergleichsraum zu geben. Soweit die örtlich erfassten Werte nicht aktuell sind, liegt es nahe, vom Träger der Grundsicherung entsprechende
C90: Rückfragen bei den örtlichen Interessenverbänden durchführen zu lassen bzw. die Werte an die allgemeine Preisentwicklung anzupassen.
C91: Nur wenn sich konkret Anhaltspunkte dafür ergeben, dass vom Deutschen Mieterbund für das gesamte Bundesgebiet aufgestellte Übersichten gerade das örtliche Niveau besser abbilden, kann
C92: auf diese zurückgegriffen werden. Solche Gründe, weshalb die Werte des Deutschen Mieterbundes ein realistischeres Bild des örtlichen Preisniveaus von Berlin abgeben sollten, sind bislang nicht ersichtlich.
C94: Heizkosten
C95: Die Angemessenheit der Heizkosten ist getrennt von den übrigen Unterkunftskosten zu prüfen.
C96: Die tatsächlichen (bereinigten) Kosten für Heizung sind solange als angemessen von dem Beklagten zu übernehmen, wie der nach der Rechtsprechung des Senats
C97: maßgebliche Grenzwert nicht überschritten wird (vgl. BSG SozR 4-4200 § 22 Nr. 25).
C98: Urteil LSG Bln. Brbg vom 15.02.2010 - L 25 AS 35/10 B ER :
C99: Zur Bestimmung eines solchen Grenzwertes ist es für den Regelfall einer mit Öl, Erdgas oder Fernwärme beheizten Wohnung möglich, die kommunalen Heizspiegel, hilfsweise den "Bundesweiten Heizspiegel"
C100: heranzuziehen. Aus dem "Bundesweiten Heizspiegel" ergeben sich Vergleichswerte für öl-, erdgas- und fernwärmebeheizte Wohnungen gestaffelt nach der von der jeweiligen Heizungsanlage zu
C101: beheizenden Wohnfläche, die hinsichtlich des Heizungsenergieverbrauchs zwischen vier Kategorien unterscheiden.
C102: Der maßgebliche Grenzwert ist das Produkt aus dem Wert, der bezogen auf den jeweiligen Energieträger und die Größe der Wohnanlage die höchsten Heizkosten enthält (rechte Spalte),
C103: und dem Wert, der sich für den Haushalt des Hilfebedürftigen als abstrakt angem. Wohnfläche nach den Ausführungsbestimmungen der Länder zu § 10 Abs. 1 WoFG bzw. § 5 Abs. 2 Wo-BindG ergibt.
C104: Soweit die konkret anfallenden Heizkosten den auf dieser Datengrundlage zu ermittelnden Grenzwert überschreiten, besteht Anlass für die Annahme, dass diese Kosten unangemessen hoch
C105: im Sinne des § 22 Abs. 1 Satz 1 SGB II sind, da die gewählte Grenze bereits unwirtschaftliches und tendenziell unökologisches Heizverhalten berücksichtigt.

Sheet Wohnungsbestand
A2: Start | B2: Tabelle 1 Fortschreibung der Grundgesamtheit zum Berliner Mietspiegel 2019
B4: Bezugsfertigkeit | E4: bis 1918 | H4: 1919 bis 1949 | K4: 1950 bis 1964 | M4: 1956 bis 1964 | N4: 1965 bis 1972 | O4: 1973 bis 1990 West | P4: 1973 bis 1990 Ost | Q4: 1991 bis 2002 | R4: 2003 bis 2017 | S4: Summe
B5: Ausstattung | E5: -SH | F5: +SH oder | G5: -SH | H5: -SH | I5: +SH oder | J5: -SH | K5: +SH oder | L5: -SH | M5: -SH | N5: -SH | O5: -SH | P5: -SH | Q5: -SH | R5: -SH | U5: Gesamt- bestand
E6: -BD | F6: +BD | G6: -BD | H6: -BD | I6: +BD | J6: -BD | K6: +BD | L6: -BD | M6: -BD | N6: -BD | O6: -BD | P6: -BD | Q6: -BD | R6: -BD | U6: Wohnungen
E7: +IWC | F7: *IWC | G7: +IWC | H7: +IWC | I7: *IWC | J7: +IWC | K7: *IWC | L7: +IWC | M7: +IWC | N7: +IWC | O7: +IWC | P7: +IWC | Q7: +IWC | R7: +IWC | U7: in Berlin
G8: 1 | J8: 2 | L8: 3 | N8: 4 | O8: 5 | Q8: 6 | R8: 7
B9: Wohnfläche | C9: Wohnlage
B11: unter 40 m² | C11: einfach | D11: A | E11: 100 | F11: 1200 | G11: 18600 | H11: <50 | I11: 400 | J11: 3700 | K11: 300 | L11: 10400 | N11: 9900 | O11: 3700 | P11: 9200 | Q11: 1200 | R11: 500 | S11: =E11+F11+G11+I11+K11+J11+L11+N11+O11+P11+Q11+R11 -> 59200 | U11: =SUM(E11+F11+G11+I11+J11+K11+L11+N11+O11+P11+Q11+R11) -> 59200
C12: mittel | D12: B | E12: 100 | F12: 900 | G12: 16200 | H12: <50 | I12: 400 | J12: 5900 | K12: 400 | L12: 16700 | N12: 9100 | O12: 2600 | P12: 22300 | Q12: 2700 | R12: 1400 | S12: =E12+F12+G12+I12+K12+J12+L12+N12+O12+P12+Q12+R12 -> 78700 | U12: =SUM(E12+F12+G12+I12+J12+K12+L12+N12+O12+P12+Q12+R12) -> 78700
C13: gut | D13: C | E13: <50 | F13: 400 | G13: 8500 | H13: <50 | I13: 100 | J13: 2100 | K13: 100 | L13: 9100 | N13: 4400 | O13: 1800 | P13: 1400 | Q13: 600 | R13: 600 | S13: =F13+G13+I13+J13+K13+L13+N13+O13+P13+Q13+R13 -> 29100 | U13: =F13+G13+I13+J13+K13+L13+N13+O13+P13+Q13+R13 -> 29100
B14: 40 m² bis unter 60 m² | C14: einfach | D14: D | E14: 100 | F14: 2400 | G14: 43300 | H14: <50 | I14: 1600 | J14: 25000 | K14: 600 | L14: 32200 | N14: 15400 | O14: 5800 | P14: 14000 | Q14: 4000 | R14: 1500 | S14: =E14+F14+I14+K14+G14+J14+L14+N14+O14+P14+Q14+R14 -> 145900 | U14: =E14+F14+G14+I14+J14+K14+L14+N14+O14+P14+Q14+R14 -> 145900
C15: mittel | D15: E | E15: 100 | F15: 2100 | G15: 43100 | H15: <50 | I15: 1700 | J15: 48600 | K15: 1100 | L15: 63700 | N15: 19700 | O15: 5900 | P15: 38200 | Q15: 12900 | R15: 3800 | S15: =E15+F15+I15+K15+G15+J15+L15+N15+O15+P15+Q15+R15 -> 240900 | U15: =E15+F15+G15+I15+J15+K15+L15+N15+O15+P15+Q15+R15 -> 240900
C16: gut | D16: F | E16: <50 | F16: 900 | G16: 27100 | H16: <50 | I16: 300 | J16: 14200 | K16: 300 | L16: 20900 | N16: 6200 | O16: 3400 | P16: 2000 | Q16: 3000 | R16: 1700 | S16: =F16+G16+I16+J16+K16+L16+N16+O16+P16+Q16+R16 -> 80000 | U16: =F16+G16+I16+J16+K16+L16+N16+O16+P16+Q16+R16 -> 80000
B17: 60 m² bis unter 90 m² | C17: einfach | D17: G | E17: 100 | F17: 2300 | G17: 50900 | H17: <50 | I17: 800 | J17: 20400 | K17: 300 | L17: 26400 | N17: 36500 | O17: 9500 | P17: 27700 | Q17: 9000 | R17: 1800 | S17: =E17+F17+K17+G17+I17+J17+L17+N17+O17+P17+Q17+R17 -> 185700 | U17: =E17+F17+G17+I17+J17+K17+L17+O17+N17+P17+Q17+R17 -> 185700
C18: mittel | D18: H | E18: 100 | F18: 2100 | G18: 54400 | H18: <50 | I18: 1100 | J18: 40500 | K18: 500 | L18: 48100 | N18: 31700 | O18: 8500 | P18: 71000 | Q18: 28700 | R18: 5000 | S18: =E18+F18+I18+K18+G18+J18+L18+N18+O18+P18+Q18+R18 -> 291700 | U18: =E18+F18+G18+I18+J18+K18+L18+N18+O18+P18+Q18+R18 -> 291700
C19: gut | D19: I | E19: <50 | F19: 1100 | G19: 37000 | H19: <50 | I19: 200 | J19: 17400 | K19: 100 | L19: 19500 | N19: 8100 | O19: 5700 | P19: 4200 | Q19: 6300 | R19: 2500 | S19: =F19+G19+I19+J19+K19+L19+N19+O19+P19+Q19+R19 -> 102100 | U19: =F19+G19+I19+J19+K19+L19+N19+O19+P19+Q19+R19 -> 102100
B20: 90 m² und mehr | C20: einfach | D20: J | E20: <50 | F20: 1000 | G20: 25900 | H20: <50 | I20: 100 | J20: 3700 | K20: <50 | L20: 2000 | N20: 5200 | O20: 2700 | P20: 3400 | Q20: 2400 | R20: 1000 | S20: =F20+I20+G20+J20+L20+N20+O20+P20+Q20+R20 -> 47400 | U20: =F20+G20+I20+J20+L20+N20+O20+P20+Q20+R20 -> 47400
C21: mittel | D21: K | E21: <50 | F21: 1000 | G21: 35100 | H21: <50 | I21: 100 | J21: 8400 | K21: 100 | L21: 3500 | N21: 3800 | O21: 3900 | P21: 8100 | Q21: 8700 | R21: 4200 | S21: =F21+I21+K21+G21+J21+L21+N21+O21+P21+Q21+R21 -> 76900 | U21: =F21+G21+I21+J21+K21+L21+N21+O21+P21+Q21+R21 -> 76900
C22: gut | D22: L | E22: <50 | F22: 700 | G22: 35500 | H22: <50 | I22: <50 | J22: 8000 | K22: <50 | L22: 2700 | N22: 1800 | O22: 3300 | P22: 700 | Q22: 2800 | R22: 2700 | S22: =F22+G22+J22+L22+N22+O22+P22+Q22+R22 -> 58200 | U22: =F22+G22+J22+L22+N22+O22+P22+Q22+R22 -> 58200
B23: Summe | E23: =SUM(E11:E22) -> 600 | F23: =SUM(F11:F22) -> 16100 | G23: =SUM(G11:G22) -> 395600 | H23: <50 | I23: =SUM(I11:I22) -> 6800 | J23: 197900 | K23: 3800 | L23: 255200 | N23: 151800 | O23: 56800 | P23: 202200 | Q23: 82300 | R23: 26700 | S23: 1395800 | U23: =SUM(U11:U22) -> 1395800
B27: Prozentualer Anteil der Wohnungen einer Baualtersklasse zum Gesamtbestand aller vergleichbaren Wohnlagen und gleicher Wohngrößen
B28: unter 40 m² | C28: einfach | D28: A | G28: =SUM(G11+F11+E11)/U11 -> 0.3361486486 | J28: =SUM(J11+I11)/U11 -> 0.06925675676 | L28: =SUM(L11+K11)/U11 -> 0.1807432432 | M28: =SUM(M11/S11) -> 0 | N28: =SUM(N11/U11) -> 0.1672297297 | O28: =SUM(O11/U11) -> 0.0625 | P28: =SUM(P11/U11) -> 0.1554054054 | Q28: =SUM(Q11/U11) -> 0.02027027027 | R28: =SUM(R11/U11) -> 0.008445945946
C29: mittel | D29: B | G29: =SUM(G12+F12+E12)/U12 -> 0.2185514612 | J29: 0.08005082592 | L29: 0.2172808132 | M29: =SUM(M12/S12) -> 0 | N29: 0.1156289708 | O29: 0.03303684879 | P29: 0.2833545108 | Q29: 0.03430749682 | R29: 0.01778907243
C30: gut | D30: C | G30: =SUM(G13+F13)/U13 -> 0.3058419244 | J30: 0.07560137457 | L30: 0.3161512027 | M30: 0 | N30: 0.1512027491 | O30: 0.0618556701 | P30: 0.04810996564 | Q30: 0.0206185567 | R30: 0.0206185567
B31: 40 m² bis unter 60 m² | C31: einfach | D31: D | G31: =SUM(G14+F14+E14)/U14 -> 0.3139136395 | J31: 0.1823166552 | L31: 0.2248115147 | M31: 0 | N31: 0.1055517478 | O31: 0.03975325565 | P31: 0.09595613434 | Q31: 0.02741603838 | R31: 0.01028101439
B32: 40 m² bis unter 60 m² | C32: mittel | D32: E | G32: =SUM(G15+F15+E15)/U15 -> 0.1880448319 | J32: 0.2088003321 | L32: 0.2689912827 | M32: 0 | N32: 0.08177667082 | O32: 0.02449149024 | P32: 0.1585720216 | Q32: 0.05354919054 | R32: 0.01577418016
C33: gut | D33: F | G33: =SUM(G16+F16)/U16 -> 0.35 | J33: 0.18125 | L33: 0.265 | M33: 0 | N33: 0.0775 | O33: 0.0425 | P33: 0.025 | Q33: 0.0375 | R33: 0.02125
B34: 60 m² bis unter 90 m² | C34: einfach | D34: G | G34: =SUM(G17+F17+E17)/U17 -> 0.2870220786 | J34: 0.1141626279 | L34: 0.1437802908 | M34: 0 | N34: 0.196553581 | O34: 0.05115778137 | P34: 0.1491653204 | Q34: 0.04846526656 | R34: 0.009693053312
C35: mittel | D35: H | G35: =SUM(G18+F18+E18)/U18 -> 0.1940349674 | J35: 0.1426122729 | L35: 0.1666095303 | M35: 0 | N35: 0.1086732945 | O35: 0.02913952691 | P35: 0.2434007542 | Q35: 0.09838875557 | R35: 0.01714089818
C36: gut | D36: I | G36: =SUM(G19+F19)/U19 -> 0.3731635651 | J36: 0.1723800196 | L36: 0.1919686582 | M36: 0 | N36: 0.07933398629 | O36: 0.05582761998 | P36: 0.04113614104 | Q36: 0.06170421156 | R36: 0.02448579824
B37: 90 m² und mehr | C37: einfach | D37: J | G37: =SUM(G20+F20)/U20 -> 0.5675105485 | J37: 0.08016877637 | L37: =SUM(L20/U20) -> 0.04219409283 | M37: =SUM(M20/S20) -> 0 | N37: 0.1097046414 | O37: 0.05696202532 | P37: 0.07172995781 | Q37: 0.05063291139 | R37: 0.02109704641
C38: mittel | D38: K | G38: =SUM(G21+F21)/U21 -> 0.4694408322 | J38: 0.1105331599 | L38: =SUM(L21+K21)/U21 -> 0.04681404421 | M38: 0 | N38: 0.04941482445 | O38: 0.05071521456 | P38: 0.1053315995 | Q38: 0.1131339402 | R38: 0.05461638492
C39: gut | D39: L | G39: =SUM(G22+F22)/U22 -> 0.6219931271 | J39: =SUM(J22/U22) -> 0.1374570447 | L39: =SUM(L22/U22) -> 0.04639175258 | M39: 0 | N39: 0.03092783505 | O39: 0.05670103093 | P39: 0.01202749141 | Q39: 0.04810996564 | R39: 0.04639175258
B41: Die obere Tabelle ist dem Endbericht des Berliner Mietspiegels 2019 entnommen, der durch die Firma GEWOS Institut für Stadt-, Regional- und Wohnforschung GmbH erstellt wurde und
B42: bei denen auch die dazugehörenden Rechte des copyrights des Berichtes liegen (GEWOS GmbH, Maurienstraße 5, 22305 Hamburg, Telefon 040/ Telefon +49 (0)40 69 71 2-0, Telefax +49 (0)40 -69 71 22 20
B43: Internet: www.f-und-b.de E-Mail: service@f-und-b.de).
B44: Das Bundessozialgericht hat die Einbeziehung bestimmter Wohnungen mit allereinfachstem Wohnstandard für die Erstellung des schlüssigen Konzeptes für unzulässig gehalten.
B45: Diese Daten sind im schlüssigen Konzept 2019 nicht enthalten.

Sheet Mietspiegel
A2: Start | B2: Berliner Mietspiegel 2023
N5: gewichteter
B6: einfache Wohnlagen | D6: Spalte 1 | F6: Spalte 2 | H6: Spalte 3 | I6: Spalte 4 | J6: Spalte 5 | K6: Spalte 6 | L6: Spalte 7 | M6: Spalte 8 | N6: Mietpreis
C7: bis 1918 | D7: bis 1918 | E7: 1919 - 1945 | F7: 1919 - 1949 | G7: 1950 - 1955 | H7: 1950 - 1964 | I7: 1965 - 1972 | J7: 1973 - 1990 | K7: 1973 - 1990 | L7: 1991 - 2002 | M7: 2003 - 2017 | N7: Kaltmiete
C8: m. SH od. Bad, IWC | D8: m. SH, Bad, IWC | J8: West | K8: Ost m. Wendw. | L8: o. Wendew. | M8: o. Wendew. | N8: pro m²
B9: Wohnungen bis unter 40 m² | D9: 8.42 | F9: 8.32 | H9: 6.85 | I9: 7.24 | J9: 8.06 | K9: 7.61
B10: Wohnungen bis unter 40 m² mittel | D10: 8.98 | F10: 8.16 | H10: 7.3 | I10: 7 | J10: 8.24 | K10: 7.39
B11: Wohnungen 40 bis unter 60 m² | D11: 7.19 | F11: 6.82 | H11: 6.4 | I11: 6.26 | J11: 7.95 | K11: 6.41 | L11: 8.91 | M11: 12.37 | N11: =Werte!J3 -> 7.21
B12: Wohnungen 40 bis unter 60 m² mittel | D12: 7.92 | F12: 7.18 | H12: 6.51 | I12: 6.38 | J12: 8.24 | K12: 6.35 | L12: 8.72 | M12: 10.5
B13: Wohnungen 60 - 90 m² | D13: 6.75 | F13: 6.25 | H13: 5.94 | I13: 5.81 | J13: 7.75 | K13: 5.62 | L13: 8.22 | M13: 13.73 | N13: =Werte!L3 -> 6.59
B14: Wohnungen 60 - 90 m² mittel | D14: 7.21 | F14: 6.65 | H14: 6.4 | I14: 6.08 | J14: 8.53 | K14: 5.62 | L14: 8.42 | M14: 10.75
B15: Wohnungen über 90 m² | D15: 6.64 | F15: 6.53 | I15: 5.83 | J15: 7.66 | K15: 5.58 | L15: 8.48 | M15: 12.73 | N15: =Werte!M3 -> 7.09
B16: Wohnungen über 90 m² mittel | D16: 7.21 | F16: 6.41 | H16: 7.21 | I16: 5.75 | J16: 8.14 | K16: 5.6 | L16: 8.73 | M16: 10.74
B19: Durchschnitt
B23: Personen | C23: Mietwohnungsgröße
B24: 1 | C24: 1 - 1 1/2 Zimmer | E24: =Werte!CC3 -> 50 | F24: m² | I24: Für diese Werte keine verlässliche Anzahl von Mietwerten vor (weniger als 10),
B25: 2 | C25: 2 Zimmer bis | E25: =Werte!CD3 -> 65 | F25: m² | I25: sie sind nicht in der Mietspiegeltabelle enthalten
B26: alleinerziehend mit 1 Kind | E26: =Werte!CE3 -> 65 | F26: m² | I26: bedingte Aussagekraft (10- 14 Mietwerte) | M26: im Mietspiegel 23 nicht benannt
B27: 3 | C27: 3 Zimmer bis | E27: =Werte!CF3 -> 80 | F27: m²
B28: 4 | C28: 4 Zimmer bis | E28: =Werte!CG3 -> 90 | F28: m²
B29: 5 | C29: 5 Zimmer bis | E29: =Werte!CH3 -> 102 | F29: m²
B30: 6 | C30: jedes weitere Zimmer | E30: =Werte!CI3 -> 12 | F30: m²
B32: Werte der angem. Wohnungsgrößen nach BSG Rechtsprechung (z.B. Urteil vom 19.10.2010, B 14 AS 65/09 R):
B33: (Bestimmung der abstrakt angemessenen Wohnfläche)
B35: Bei der Bestimmung der angemessenen Wohnfläche ist auf die anerkannte Wohnraumgröße f. Wohnberechtigte im sozialen Mietwohnungsbau abzustellen (stRspr seit BSGE 97, 254 = SozR 4-4200
B36: § 22 Nr. 3, jeweils RdNr 19).
B37: Hinsichtlich der Überlassung von gefördertem Mietwohnungsraum gilt § 27 Abs 1 und 5 WoFG vom 13.9.2001 (BGBl I 2376) i.V.m. § 5 des Gesetzes zur Sicherstellung der Zweckbestimmung von
B38: Sozialwohnungen (WoBindG) in der im streitigen Zeitraum geltenden Fassung (nF) der Bekanntmachung vom 13.9.2001 (BGBl I 2404).
B39: Wegen der maßgeblichen Wohnungsgröße verweist § 27 Abs. 4 WoFG (als Nachfolgeregelung zu § 5 Abs. 2 WoBindG in der bis zum 31.12.2001 geltenden Fassung) auf die nach § 10 WoFG von den
B40: Ländern festgelegten Wohnungsgrößen. Das Land Berlin hat allerdings zu § 10 WoFG keine Ausführungsvorschriften erlassen. Zu § 5 WoBindG nf. und § 27 WoFG liegen nur (unveröffentlichte)
B41: Arbeitshinweise der Senatsverwaltung für Stadtentwicklung vom 15.12.2004 vor, die wegen der maßgeblichen Wohnungsgröße an die zuvor ergangenen Bekanntmachungen anknüpfen (vgl. Hinweis 8).
B42: Danach darf entsprechend der Bekanntmachung der Senatsverwaltung für Bau- und Wohnungswesen vom 20.10.1995 (Amtsblatt für Berlin 1995, 4462) an eine Einzelperson Wohnraum von bis zu
B43: 50 m² und für 2 Personenhaushalte 60 m² überlassen werden.
B44: An diese Regelungen auf Grundlage des § 5 Abs. 2 WoBindG nf., die auch nach Inkrafttreten von § 27 WoFG und § 5 WoBindG nf. Grundlage für die Belegung von gefördertem Wohnraum sind, ist
B45: auch für die Bestimmung der Angemessenheitsgrenze nach § 22 Abs. 1 SGB II anzuknüpfen (vgl. BSG SozR 4-4200 § 22 Nr. 26 RdNr 14 <Zweibrücken>).

Sheet Mietgrenze WoGG
A1: Start | B1: Berechnung der Mietgrenze / § 12(1) : | G1: =SUM(Q103) -> 0 | L1: abzüglich Anteil: | M1: =SUM(Q106) -> 0 | N1: ergibt | O1: =SUM(AD107) -> 0 | P1: mit Heizkostenentlastung &
A2: EF1
A3: =" © 1999 - "&Einstellungen!E2&" G. Leupold und J. Kroggel" -> © 1999 - G. Leupold und J. Kroggel
C4: 4 | D4: =IF($C4=1,1,"") ->  | E4: =IF($C4=2,1,"") ->  | F4: =IF($C4=3,1,"") ->  | G4: =IF($C4=4,1,"") -> 1 | M4: =IF(D4=1,1,"") ->  | N4: =IF(E4=1,1,"") ->  | O4: =IF(F4=1,1,"") ->  | P4: =IF(G4=1,1,"") -> 1
B5: Personen im Haushalt | C5: Miet-niveau-stufe | J5: Personen im Haushalt | K5: Miet-niveau-stufe | L5: interne Prüfung der Personen (1)
F6: Zuschlag: | H6: % | P6: ab
A7: =ErgebnisDruck!G19 -> 0 | D7: Mietober-grenze ab 2009 | F7: Mietober- | G7: Mietober- | P7: 1992-01-01
F8: grenze ab | G8: grenze ab | Q8: Miete
F9: 2016-01-01 | G9: 2016-01-01 | Q9: § 12 (1)
G10: ="(+ "&G6&"%)" -> (+ %)
C11: =Einstellungen!D85 -> 4 | D11: Euro | M11: Euro | Q11: =Q103 -> 0 | R11: = zuschussfähiger Miethöchstbetrag (für alle Pers.)
C12: 1 | F12: =Werte!CK$3 -> 338 | G12: =ROUND(F12+(F12/100*G$6),0) -> 338 | K12: 1 | L12: =IF(AND(A$14=1,C$11=C12),1,"") ->  | M12: =IF(AND($L12=1,M$4=1),D12,"") ->  | P12: =IF(AND($L12=1,P$4=1),G12,"") ->  | Q12: =SUM(M12:P12) -> 0
C13: 2 | F13: =Werte!CL$3 -> 381 | G13: =ROUND(F13+(F13/100*G$6),0) -> 381 | K13: 2 | Q13: 0
A14: =IF(A$7=B14,1,"") ->  | B14: 1 | C14: 3 | F14: =Werte!CM$3 -> 426 | G14: 426 | J14: 1 | K14: 3 | Q14: 0
C15: 4 | F15: =Werte!CN$3 -> 478 | G15: 478 | K15: 4 | Q15: 0
C16: 5 | F16: =Werte!CO$3 -> 525 | G16: 525 | K16: 5 | Q16: 0
C17: 6 | F17: =Werte!CP$3 -> 575 | G17: 575 | K17: 6 | Q17: 0
C18: 7 | F18: =Werte!CQ$3 -> 633 | G18: 633 | K18: 7 | Q18: 0
C19: 1 | F19: =Werte!CR$3 -> 409 | G19: 409 | K19: 1 | L19: =IF(AND(A$21=1,C$11=C19),1,"") ->  | Q19: 0
C20: 2 | F20: =Werte!CS$3 -> 461 | G20: 461 | K20: 2 | Q20: 0
A21: =IF(A$7=B21,1,"") ->  | B21: 2 | C21: 3 | F21: =Werte!CT$3 -> 516 | G21: 516 | J21: 2 | K21: 3 | Q21: 0
C22: 4 | F22: =Werte!CU$3 -> 579 | G22: 579 | K22: 4 | Q22: 0
C23: 5 | F23: =Werte!CV$3 -> 636 | G23: 636 | K23: 5 | Q23: 0
C24: 6 | F24: =Werte!CW$3 -> 697 | G24: 697 | K24: 6 | Q24: 0
C25: 7 | F25: =Werte!CX$3 -> 767 | G25: 767 | K25: 7 | Q25: 0
C26: 1 | F26: =Werte!CY$3 -> 487 | G26: 487 | K26: 1 | L26: =IF(AND(A$28=1,C$11=C26),1,"") ->  | Q26: 0
C27: 2 | F27: =Werte!CZ$3 -> 549 | G27: 549 | K27: 2 | Q27: 0
A28: =IF(A$7=B28,1,"") ->  | B28: 3 | C28: 3 | F28: =Werte!DA$3 -> 614 | G28: 614 | J28: 3 | K28: 3 | Q28: 0
C29: 4 | F29: =Werte!DB$3 -> 689 | G29: 689 | K29: 4 | Q29: 0
C30: 5 | F30: =Werte!DC$3 -> 757 | G30: 757 | K30: 5 | Q30: 0
C31: 6 | F31: =Werte!DD$3 -> 830 | G31: 830 | K31: 6 | Q31: 0
C32: 7 | F32: =Werte!DE$3 -> 912 | G32: 912 | K32: 7 | Q32: 0
C33: 1 | F33: =Werte!DF$3 -> 568 | G33: 568 | K33: 1 | L33: =IF(AND(A$35=1,C$11=C33),1,"") ->  | Q33: 0
C34: 2 | F34: =Werte!DG$3 -> 641 | G34: 641 | K34: 2 | Q34: 0
A35: =IF(A$7=B35,1,"") ->  | B35: 4 | C35: 3 | F35: =Werte!DH$3 -> 716 | G35: 716 | J35: 4 | K35: 3 | Q35: 0
C36: 4 | F36: =Werte!DI$3 -> 803 | G36: 803 | K36: 4 | Q36: 0
C37: 5 | F37: =Werte!DJ$3 -> 884 | G37: 884 | K37: 5 | Q37: 0
C38: 6 | F38: =Werte!DK$3 -> 968 | G38: 968 | K38: 6 | Q38: 0
C39: 7 | F39: =Werte!DL$3 -> 1065 | G39: 1065 | K39: 7 | Q39: 0
C40: 1 | F40: =Werte!DM$3 -> 649 | G40: 649 | K40: 1 | L40: =IF(AND(A$42=1,C$11=C40),1,"") ->  | Q40: 0
C41: 2 | F41: =Werte!DN$3 -> 732 | G41: 732 | K41: 2 | Q41: 0
A42: =IF(A$7=B42,1,"") ->  | B42: 5 | C42: 3 | F42: =Werte!DO$3 -> 818 | G42: 818 | J42: 5 | K42: 3 | Q42: 0
C43: 4 | F43: =Werte!DP$3 -> 918 | G43: 918 | K43: 4 | Q43: 0
C44: 5 | F44: =Werte!DQ$3 -> 1010 | G44: 1010 | K44: 5 | Q44: 0
C45: 6 | F45: =Werte!DR$3 -> 1106 | G45: 1106 | K45: 6 | Q45: 0
C46: 7 | F46: =Werte!DS$3 -> 1217 | G46: 1217 | K46: 7 | Q46: 0
B47: Mehrbe-trag für jedes weitere Familien-mitglied | C47: 1 | F47: =Werte!DT$3 -> 77 | G47: 77 | J47: Mehrbe-trag für jedes weitere Familien-mitglied | K47: 1
C48: 2 | F48: =Werte!DU$3 -> 88 | G48: 88 | K48: 2
C49: 3 | F49: =Werte!DV$3 -> 99 | G49: 99 | K49: 3
C50: 4 | F50: =Werte!DW$3 -> 111 | G50: 111 | K50: 4
C51: 5 | F51: =Werte!DX$3 -> 121 | G51: 121 | K51: 5
C52: 6 | F52: =Werte!DY$3 -> 139 | G52: 139 | K52: 6
C53: 7 | F53: =Werte!DZ$3 -> 153 | G53: 153 | K53: 7
C54: 1 | F54: =F40+F47 -> 726 | G54: 726 | K54: 1 | L54: =IF(AND(A$56=1,C$11=C54),1,"") ->  | M54: =IF(AND($L54=1,M$4=1),D54,"") ->  | Q54: =SUM(M54:P54) -> 0
C55: 2 | F55: =F41+F48 -> 820 | G55: 820 | K55: 2 | Q55: 0
A56: =IF(A$7=B56,1,"") ->  | B56: 6 | C56: 3 | F56: 917 | G56: 917 | J56: 6 | K56: 3 | Q56: 0
C57: 4 | F57: 1029 | G57: 1029 | K57: 4 | Q57: 0
C58: 5 | F58: 1131 | G58: 1131 | K58: 5 | Q58: 0
C59: 6 | F59: 1245 | G59: 1245 | K59: 6 | Q59: 0
C60: 7 | F60: 1370 | G60: 1370 | K60: 7 | Q60: 0
C61: 1 | F61: =F54+F47 -> 803 | G61: 803 | K61: 1 | L61: =IF(AND(A$63=1,C$11=C61),1,"") ->  | Q61: 0
C62: 2 | F62: =F55+F48 -> 908 | G62: 908 | K62: 2 | Q62: 0
A63: =IF(A$7=B63,1,"") ->  | B63: 7 | C63: 3 | F63: 1016 | G63: 1016 | J63: 7 | K63: 3 | Q63: 0
C64: 4 | F64: 1140 | G64: 1140 | K64: 4 | Q64: 0
C65: 5 | F65: 1252 | G65: 1252 | K65: 5 | Q65: 0
C66: 6 | F66: 1384 | G66: 1384 | K66: 6 | Q66: 0
C67: 7 | F67: 1523 | G67: 1523 | K67: 7 | Q67: 0
C68: 1 | F68: =F61+F47 -> 880 | G68: 880 | K68: 1 | L68: =IF(AND(A$70=1,C$11=C68),1,"") ->  | Q68: 0
C69: 2 | F69: =F62+F48 -> 996 | G69: 996 | K69: 2 | Q69: 0
A70: =IF(A$7=B70,1,"") ->  | B70: 8 | C70: 3 | F70: 1115 | G70: 1115 | J70: 8 | K70: 3 | Q70: 0
C71: 4 | F71: 1251 | G71: 1251 | K71: 4 | Q71: 0
C72: 5 | F72: 1373 | G72: 1373 | K72: 5 | Q72: 0
C73: 6 | F73: 1523 | G73: 1523 | K73: 6 | Q73: 0
C74: 7 | F74: 1676 | G74: 1676 | K74: 7 | Q74: 0
C75: 1 | F75: =F68+F47 -> 957 | G75: 957 | K75: 1 | L75: =IF(AND(A$77=1,C$11=C75),1,"") ->  | Q75: 0
C76: 2 | F76: =F69+F48 -> 1084 | G76: 1084 | K76: 2 | Q76: 0
A77: =IF(A$7=B77,1,"") ->  | B77: 9 | C77: 3 | F77: 1214 | G77: 1214 | J77: 9 | K77: 3 | Q77: 0 | Y77: vor Anwendung der Kontrollkästchen Blattschutz ausschalten!
C78: 4 | F78: 1362 | G78: 1362 | K78: 4 | Q78: 0
C79: 5 | F79: 1494 | G79: 1494 | K79: 5 | Q79: 0 | R79: neu ab 1.1.2009 | T79: ab 01.01.2023 | X79: bis 31.12.2010 und ab 01.01.2021 | AB79: ab 01.01.2023
C80: 6 | F80: 1662 | G80: 1662 | K80: 6 | Q80: 0 | R80: Berücksichtigung von Heizkosten (pauschal)
C81: 7 | F81: 1829 | G81: 1829 | K81: 7 | Q81: 0
C82: 1 | F82: =F75+F47 -> 1034 | G82: 1034 | K82: 1 | L82: =IF(AND(A$84=1,C$11=C82),1,"") ->  | Q82: 0 | T82: Heizkosten- | U82: Personen | V82: TRUE | X82: Heizkosten- | Y82: Personen | Z82: TRUE | AC82: Personen | AD82: FALSE
C83: 2 | F83: =F76+F48 -> 1172 | G83: 1172 | K83: 2 | Q83: 0 | S83: Haushaltsmitglieder | T83: entlastung | U83: =A7 -> 0 | V83: =IF(V82=TRUE,1,0) -> 1 | X83: komponente | Y83: =U83 -> 0 | Z83: =IF(Z82=TRUE,1,0) -> 1 | AB83: Klimakomponente | AC83: =U83 -> 0 | AD83: =IF(AD82=TRUE,1,0) -> 0
A84: =IF(A$7=B84,1,"") ->  | B84: 10 | C84: 3 | F84: 1313 | G84: 1313 | J84: 10 | K84: 3 | Q84: 0 | S84: 1 | T84: =Werte!ED$3 -> 14.4 | U84: =IF(S84=U$83,T84,0) -> 0 | X84: =Werte!EK$3 -> 96 | Y84: =IF(S84=Y$83,X84,0) -> 0 | AB84: =Werte!ER$3 -> 19.2 | AC84: =IF(S84=AC$83,AB84,0) -> 0
C85: 4 | F85: 1473 | G85: 1473 | K85: 4 | Q85: 0 | S85: 2 | T85: =Werte!EE$3 -> 18.6 | U85: =IF(S85=U$83,T85,0) -> 0 | X85: =Werte!EL$3 -> 124 | Y85: =IF(S85=Y$83,X85,0) -> 0 | AB85: =Werte!ES$3 -> 24.8 | AC85: =IF(S85=AC$83,AB85,0) -> 0
C86: 5 | F86: 1615 | G86: 1615 | K86: 5 | Q86: =SUM(M86:P86) -> 0 | S86: 3 | T86: =Werte!EF$3 -> 22.2 | U86: =IF(S86=U$83,T86,0) -> 0 | X86: =Werte!EM$3 -> 148 | Y86: =IF(S86=Y$83,X86,0) -> 0 | AB86: =Werte!ET$3 -> 29.6 | AC86: =IF(S86=AC$83,AB86,0) -> 0
C87: 6 | F87: 1801 | G87: 1801 | K87: 6 | Q87: 0 | S87: 4 | T87: =Werte!EG$3 -> 25.8 | U87: =IF(S87=U$83,T87,0) -> 0 | X87: =Werte!EN$3 -> 172 | Y87: =IF(S87=Y$83,X87,0) -> 0 | AB87: =Werte!EU$3 -> 34.4 | AC87: =IF(S87=AC$83,AB87,0) -> 0
C88: 7 | F88: 1982 | G88: 1982 | K88: 7 | Q88: 0 | S88: 5 | T88: =Werte!EH$3 -> 29.4 | U88: =IF(S88=U$83,T88,0) -> 0 | X88: =Werte!EO$3 -> 196 | Y88: =IF(S88=Y$83,X88,0) -> 0 | AB88: =Werte!EV$3 -> 39.2 | AC88: =IF(S88=AC$83,AB88,0) -> 0
C89: 1 | F89: =F82+F47 -> 1111 | G89: =ROUND(F89+(F89/100*G$6),0) -> 1111 | K89: 1 | L89: =IF(AND(A$91=1,C$11=C89),1,"") ->  | Q89: 0 | S89: je weitere Person | T89: =Werte!EI$3 -> 3.6 | X89: =Werte!EP$3 -> 24 | AB89: =Werte!EW$3 -> 4.8
C90: 2 | F90: =F83+F48 -> 1260 | G90: 1260 | K90: 2 | Q90: 0 | S90: 6 | T90: =SUM(T88,T89) -> 33 | U90: =IF(S90=U$83,T90,0) -> 0 | X90: =SUM(X88,X89) -> 220 | Y90: =IF(S90=Y$83,X90,0) -> 0 | AB90: =SUM(AB88,AB89) -> 44 | AC90: =IF(S90=AC$83,AB90,0) -> 0
A91: =IF(A$7=B91,1,"") ->  | B91: 11 | C91: 3 | F91: 1412 | G91: 1412 | J91: 11 | K91: 3 | Q91: 0 | S91: 7 | T91: =SUM(T90,T$38) -> 33 | U91: 0 | X91: =SUM(X90,W$38) -> 220 | Y91: 0 | AB91: =SUM(AB90,Z$38) -> 44 | AC91: 0
C92: 4 | F92: 1584 | G92: 1584 | K92: 4 | Q92: 0 | S92: 8 | T92: 33 | U92: 0 | X92: 220 | Y92: 0 | AB92: 44 | AC92: 0
C93: 5 | F93: 1736 | G93: 1736 | K93: 5 | Q93: 0 | S93: 9 | T93: 33 | U93: 0 | X93: 220 | Y93: 0 | AB93: 44 | AC93: 0
C94: 6 | F94: 1940 | G94: 1940 | K94: 6 | Q94: 0 | S94: 10 | T94: 33 | U94: 0 | X94: 220 | Y94: 0 | AB94: 44 | AC94: 0
C95: 7 | F95: 2135 | G95: 2135 | K95: 7 | Q95: 0 | S95: 11 | T95: 33 | U95: 0 | X95: 220 | Y95: 0 | AB95: 44 | AC95: 0
C96: 1 | F96: =F89+F47 -> 1188 | G96: 1188 | K96: 1 | L96: =IF(AND(A$98=1,C$11=C96),1,"") ->  | Q96: 0 | S96: 12 | T96: 33 | U96: 0 | X96: 220 | Y96: 0 | AB96: 44 | AC96: 0
C97: 2 | F97: =F90+F48 -> 1348 | G97: 1348 | K97: 2 | Q97: 0 | U97: =IF(V83=1,0,SUM(U84:U96)) -> 0 | X97: Heizkostenpauschale | Y97: =IF(Z83=1,0,SUM(Y84:Y96)) -> 0 | AC97: =IF(AD83=1,0,SUM(AC84:AC96)) -> 0
A98: =IF(A$7=B98,1,"") ->  | B98: 12 | C98: 3 | F98: 1511 | G98: 1511 | J98: 12 | K98: 3 | Q98: 0 | Z98: (unabhängig von tatsächlichen Heizkosten)
C99: 4 | F99: 1695 | G99: 1695 | K99: 4 | Q99: 0
C100: 5 | F100: 1857 | G100: 1857 | K100: 5 | Q100: 0 | AD100: Miethöchstbetrag
C101: 6 | F101: 2079 | G101: 2079 | K101: 6 | Q101: 0 | AD101: + Klimapauschale
C102: 7 | F102: 2288 | G102: 2288 | K102: 7 | Q102: 0
J103: für alle Personen im Haushalt: | P103: zuschussfähiger Miethöchstbetrag: | Q103: =SUM(Q12:Q102) -> 0 | R103: + | T103: Heizkostenentlastung: | U103: =U97 -> 0 | V103: + | X103: Heizkostenkomponente: | Y103: =Y97 -> 0 | Z103: + | AB103: Klimapauschale /§ 12 (7): | AC103: =AC97 -> 0 | AD103: =SUM(Q103,U103,Y103,AC103) -> 0
L105: Personen im Haushalt | M105: =A7 -> 0 | P105: Betrag je Person: | Q105: =IF($M105>0,Q103/$M105,Q103) -> 0 | R105: + | T105: Betrag je Person: | U105: =IF($M105>0,U103/$M105,U103) -> 0 | X105: Betrag je Person: | Y105: =IF($M105>0,Y103/$M105,Y103) -> 0 | AB105: Betrag je Person: | AC105: =IF($M105>0,AC103/$M105,AC103) -> 0
L106: Personen mit Ausschlusstatbestand | M106: 0 | P106: abzuziehender Anteil: | Q106: =Q105*$M106 -> 0 | R106: + | T106: abzuziehender Anteil: | U106: =U105*$M106 -> 0 | X106: abzuziehender Anteil: | Y106: =Y105*$M106 -> 0 | AB106: abzuziehender Anteil: | AC106: =AC105*$M106 -> 0 | AD106: =SUM(Q106,Y106,AC106) -> 0
P107: zuschussfähiger Miethöchstbetrag: | Q107: =Q103-Q106 -> 0 | R107: + | T107: zuschussfähige Heizkosten | U107: =U103-U106 -> 0 | X107: zuschussfähige Heizkosten | Y107: =Y103-Y106 -> 0 | AB107: zuschussfähige Klimapauschale | AC107: =AC103-AC106 -> 0 | AD107: =SUM(Q107,AC107) -> 0
Q109: 595

Sheet schlüssiges Konzept
A2: Start | C2: schlüssiges Konzept Berlin | G2: ="nach AV-Wohnen "&YEAR(Werte!G3) -> nach AV-Wohnen 2023
C5: Berliner Mittelwerte 2019 für einfache und mittlere Wohnlage | P5: ausblenden in Endversion
N7: =Mietspiegel!N5 -> gewichteter
D8: =Mietspiegel!B6 -> einfache Wohnlagen | F8: =Mietspiegel!D6 -> Spalte 1 | G8: =Mietspiegel!F6 -> Spalte 2 | H8: =Mietspiegel!H6 -> Spalte 3 | I8: =Mietspiegel!I6 -> Spalte 4 | J8: =Mietspiegel!J6 -> Spalte 5 | K8: =Mietspiegel!K6 -> Spalte 6 | L8: =Mietspiegel!L6 -> Spalte 7 | M8: =Mietspiegel!M6 -> Spalte 8 | N8: =Mietspiegel!N6 -> Mietpreis
F9: =Mietspiegel!D7 -> bis 1918 | G9: =Mietspiegel!F7 -> 1919 - 1949 | H9: =Mietspiegel!H7 -> 1950 - 1964 | I9: =Mietspiegel!I7 -> 1965 - 1972 | J9: =Mietspiegel!J7 -> 1973 - 1990 | K9: =Mietspiegel!K7 -> 1973 - 1990 | L9: =Mietspiegel!L7 -> 1991 - 2002 | M9: =Mietspiegel!M7 -> 2003 - 2017 | N9: =Mietspiegel!N7 -> Kaltmiete
F10: =Mietspiegel!D8 -> m. SH, Bad, IWC | G10: =IF(Mietspiegel!F8="","",Mietspiegel!F8) ->  | H10: =IF(Mietspiegel!H8="","",Mietspiegel!H8) ->  | I10: =IF(Mietspiegel!I8="","",Mietspiegel!I8) ->  | J10: =Mietspiegel!J8 -> West | K10: =Mietspiegel!K8 -> Ost m. Wendw. | L10: =Mietspiegel!L8 -> o. Wendew. | M10: =Mietspiegel!M8 -> o. Wendew. | N10: =Mietspiegel!N8 -> pro m²
D11: =Mietspiegel!B9 -> Wohnungen bis unter 40 m² | F11: =Mietspiegel!D9 -> 8.42 | G11: =Mietspiegel!F9 -> 8.32 | H11: =Mietspiegel!H9 -> 6.85 | I11: =Mietspiegel!I9 -> 7.24 | J11: =Mietspiegel!J9 -> 8.06 | K11: =Mietspiegel!K9 -> 7.61 | L11: =Mietspiegel!L9 -> 0 | M11: =Mietspiegel!M9 -> 0 | N11: =Mietspiegel!N9 -> 0
D12: =Mietspiegel!B10 -> Wohnungen bis unter 40 m² mittel | F12: =Mietspiegel!D10 -> 8.98 | G12: =Mietspiegel!F10 -> 8.16 | H12: =Mietspiegel!H10 -> 7.3 | I12: =Mietspiegel!I10 -> 7 | J12: =Mietspiegel!J10 -> 8.24 | K12: =Mietspiegel!K10 -> 7.39 | L12: =Mietspiegel!L10 -> 0 | M12: =Mietspiegel!M10 -> 0 | N12: =Mietspiegel!N10 -> 0
D13: =Mietspiegel!B11 -> Wohnungen 40 bis unter 60 m² | F13: =Mietspiegel!D11 -> 7.19 | G13: =Mietspiegel!F11 -> 6.82 | H13: =Mietspiegel!H11 -> 6.4 | I13: =Mietspiegel!I11 -> 6.26 | J13: =Mietspiegel!J11 -> 7.95 | K13: =Mietspiegel!K11 -> 6.41 | L13: =Mietspiegel!L11 -> 8.91 | M13: =Mietspiegel!M11 -> 12.37 | N13: =Mietspiegel!N11 -> 7.21
D14: =Mietspiegel!B12 -> Wohnungen 40 bis unter 60 m² mittel | F14: =Mietspiegel!D12 -> 7.92 | G14: =Mietspiegel!F12 -> 7.18 | H14: =Mietspiegel!H12 -> 6.51 | I14: =Mietspiegel!I12 -> 6.38 | J14: =Mietspiegel!J12 -> 8.24 | K14: =Mietspiegel!K12 -> 6.35 | L14: =Mietspiegel!L12 -> 8.72 | M14: =Mietspiegel!M12 -> 10.5 | N14: =Mietspiegel!N12 -> 0
D15: =Mietspiegel!B13 -> Wohnungen 60 - 90 m² | F15: =Mietspiegel!D13 -> 6.75 | G15: =Mietspiegel!F13 -> 6.25 | H15: =Mietspiegel!H13 -> 5.94 | I15: =Mietspiegel!I13 -> 5.81 | J15: =Mietspiegel!J13 -> 7.75 | K15: =Mietspiegel!K13 -> 5.62 | L15: =Mietspiegel!L13 -> 8.22 | M15: =Mietspiegel!M13 -> 13.73 | N15: =Mietspiegel!N13 -> 6.59
D16: =Mietspiegel!B14 -> Wohnungen 60 - 90 m² mittel | F16: =Mietspiegel!D14 -> 7.21 | G16: =Mietspiegel!F14 -> 6.65 | H16: =Mietspiegel!H14 -> 6.4 | I16: =Mietspiegel!I14 -> 6.08 | J16: =Mietspiegel!J14 -> 8.53 | K16: =Mietspiegel!K14 -> 5.62 | L16: =Mietspiegel!L14 -> 8.42 | M16: =Mietspiegel!M14 -> 10.75 | N16: =Mietspiegel!N14 -> 0
D17: =Mietspiegel!B15 -> Wohnungen über 90 m² | F17: =Mietspiegel!D15 -> 6.64 | G17: =Mietspiegel!F15 -> 6.53 | H17: =Mietspiegel!H15 -> 0 | I17: =Mietspiegel!I15 -> 5.83 | J17: =Mietspiegel!J15 -> 7.66 | K17: =Mietspiegel!K15 -> 5.58 | L17: =Mietspiegel!L15 -> 8.48 | M17: =Mietspiegel!M15 -> 12.73 | N17: =Mietspiegel!N15 -> 7.09
D18: =Mietspiegel!B16 -> Wohnungen über 90 m² mittel | F18: =Mietspiegel!D16 -> 7.21 | G18: =Mietspiegel!F16 -> 6.41 | H18: =Mietspiegel!H16 -> 7.21 | I18: =Mietspiegel!I16 -> 5.75 | J18: =Mietspiegel!J16 -> 8.14 | K18: =Mietspiegel!K16 -> 5.6 | L18: =Mietspiegel!L16 -> 8.73 | M18: =Mietspiegel!M16 -> 10.74 | N18: =Mietspiegel!N16 -> 0
C22: Grundgesamtheit einfache und mittlere Wohnlage (soweit Mittelwert vorhanden)
D24: =Wohnungsbestand!B4 -> Bezugsfertigkeit | F24: =Wohnungsbestand!E4 -> bis 1918 | G24: =Wohnungsbestand!H4 -> 1919 bis 1949 | H24: =Wohnungsbestand!K4 -> 1950 bis 1964 | I24: =Wohnungsbestand!N4 -> 1965 bis 1972 | J24: =Wohnungsbestand!O4 -> 1973 bis 1990 West | K24: =Wohnungsbestand!P4 -> 1973 bis 1990 Ost | L24: =Wohnungsbestand!Q4 -> 1991 bis 2002 | M24: =Wohnungsbestand!R4 -> 2003 bis 2017 | N24: =Wohnungsbestand!S4 -> Summe
D25: Wohnfläche | E25: Ausstattung | F25: + SH | G25: + SH | H25: + SH | I25: + SH | J25: + SH | K25: + SH | L25: + SH | M25: + SH
F26: + BD | G26: + BD | H26: + BD | I26: + BD | J26: + BD | K26: + BD | L26: + BD | M26: + BD
E27: Wohnlage | F27: + IWC | G27: + IWC | H27: + IWC | I27: + IWC | J27: + IWC | K27: + IWC | L27: + IWC | M27: + IWC | N27: Summe
D28: =Wohnungsbestand!B11 -> unter 40 m² | E28: =Wohnungsbestand!C11 -> einfach | F28: =Wohnungsbestand!G11+Wohnungsbestand!E11+Wohnungsbestand!F11 -> 19900 | G28: =Wohnungsbestand!J11+Wohnungsbestand!I11 -> 4100 | H28: =Wohnungsbestand!L11+Wohnungsbestand!K11 -> 10700 | I28: =Wohnungsbestand!N11 -> 9900 | J28: =Wohnungsbestand!O11 -> 3700 | K28: =Wohnungsbestand!P11 -> 9200 | L28: =Wohnungsbestand!Q11 -> 1200 | M28: =Wohnungsbestand!R11 -> 500 | N28: =SUM(F28:M28) -> 59200
E29: =Wohnungsbestand!C12 -> mittel | F29: =Wohnungsbestand!G12+Wohnungsbestand!E12+Wohnungsbestand!F12 -> 17200 | G29: =Wohnungsbestand!J12+Wohnungsbestand!I12 -> 6300 | H29: =Wohnungsbestand!L12+Wohnungsbestand!K12 -> 17100 | I29: =Wohnungsbestand!N12 -> 9100 | J29: =Wohnungsbestand!O12 -> 2600 | K29: =Wohnungsbestand!P12 -> 22300 | L29: =Wohnungsbestand!Q12 -> 2700 | M29: =Wohnungsbestand!R12 -> 1400 | N29: =SUM(F29:M29) -> 78700
D30: =Wohnungsbestand!B14 -> 40 m² bis unter 60 m² | E30: =Wohnungsbestand!C14 -> einfach | F30: =Wohnungsbestand!G14+Wohnungsbestand!E14+Wohnungsbestand!F14 -> 45800 | G30: =Wohnungsbestand!J14+Wohnungsbestand!I14 -> 26600 | H30: =Wohnungsbestand!L14+Wohnungsbestand!K14 -> 32800 | I30: =Wohnungsbestand!N14 -> 15400 | J30: =Wohnungsbestand!O14 -> 5800 | K30: =Wohnungsbestand!P14 -> 14000 | L30: =Wohnungsbestand!Q14 -> 4000 | M30: =Wohnungsbestand!R14 -> 1500 | N30: 145900
E31: =Wohnungsbestand!C15 -> mittel | F31: =Wohnungsbestand!G15+Wohnungsbestand!E15+Wohnungsbestand!F15 -> 45300 | G31: =Wohnungsbestand!J15+Wohnungsbestand!I15 -> 50300 | H31: =Wohnungsbestand!L15+Wohnungsbestand!K15 -> 64800 | I31: =Wohnungsbestand!N15 -> 19700 | J31: =Wohnungsbestand!O15 -> 5900 | K31: =Wohnungsbestand!P15 -> 38200 | L31: =Wohnungsbestand!Q15 -> 12900 | M31: =Wohnungsbestand!R15 -> 3800 | N31: 240900
D32: =Wohnungsbestand!B17 -> 60 m² bis unter 90 m² | E32: =Wohnungsbestand!C17 -> einfach | F32: =Wohnungsbestand!G17+Wohnungsbestand!E17+Wohnungsbestand!F17 -> 53300 | G32: =Wohnungsbestand!J17+Wohnungsbestand!I17 -> 21200 | H32: =Wohnungsbestand!L17+Wohnungsbestand!K17 -> 26700 | I32: =Wohnungsbestand!N17 -> 36500 | J32: =Wohnungsbestand!O17 -> 9500 | K32: =Wohnungsbestand!P17 -> 27700 | L32: =Wohnungsbestand!Q17 -> 9000 | M32: =Wohnungsbestand!R17 -> 1800 | N32: 185700
E33: =Wohnungsbestand!C18 -> mittel | F33: =Wohnungsbestand!E18+Wohnungsbestand!F18+Wohnungsbestand!G18 -> 56600 | G33: =Wohnungsbestand!J18+Wohnungsbestand!I18 -> 41600 | H33: =Wohnungsbestand!L18+Wohnungsbestand!K18 -> 48600 | I33: =Wohnungsbestand!N18 -> 31700 | J33: =Wohnungsbestand!O18 -> 8500 | K33: =Wohnungsbestand!P18 -> 71000 | L33: =Wohnungsbestand!Q18 -> 28700 | M33: =Wohnungsbestand!R18 -> 5000 | N33: 291700
D34: =Wohnungsbestand!B20 -> 90 m² und mehr | E34: =Wohnungsbestand!C20 -> einfach | F34: =Wohnungsbestand!G20+Wohnungsbestand!F20 -> 26900 | G34: =Wohnungsbestand!J20+Wohnungsbestand!I20 -> 3800 | H34: =Wohnungsbestand!L20 -> 2000 | I34: =Wohnungsbestand!N20 -> 5200 | J34: =Wohnungsbestand!O20 -> 2700 | K34: =Wohnungsbestand!P20 -> 3400 | L34: =Wohnungsbestand!Q20 -> 2400 | M34: =Wohnungsbestand!R20 -> 1000 | N34: 47400
E35: =Wohnungsbestand!C21 -> mittel | F35: =Wohnungsbestand!G21+Wohnungsbestand!F21 -> 36100 | G35: =Wohnungsbestand!J21+Wohnungsbestand!I21 -> 8500 | H35: =Wohnungsbestand!L21+Wohnungsbestand!K21 -> 3600 | I35: =Wohnungsbestand!N21 -> 3800 | J35: =Wohnungsbestand!O21 -> 3900 | K35: =Wohnungsbestand!P21 -> 8100 | L35: =Wohnungsbestand!Q21 -> 8700 | M35: =Wohnungsbestand!R21 -> 4200 | N35: 76900
C39: Berechnung der Durchschittswerte für die einfache und mittlere Wohnlage (gewichtete Mittelwerte mit der Grundgesamtheit)
D41: Bezugsfertigkeit | F41: bis 1918 | G41: 1919 bis 1949 | H41: 1950 bis 1964 | I41: 1965 bis 1972 | J41: 1973 bis 1990 West | K41: 1973 bis 1990 Ost | L41: 1991 bis 2002 | M41: 2003 bis 2015 | N41: Summe | P41: Durch-schnitt in €/m² mtl. | R41: einfache Wohnlage
D42: =D25 -> Wohnfläche | E42: =E25 -> Ausstattung | F42: + SH | G42: + SH | H42: + SH | I42: + SH | J42: + SH | K42: + SH | L42: + SH | M42: + SH | P42: einfache | R42: einfache
F43: + BD | G43: + BD | H43: + BD | I43: + BD | J43: + BD | K43: + BD | L43: + BD | M43: + BD | P43: und mittlere | R43: Wohnlage
E44: =E27 -> Wohnlage | F44: + IWC | G44: + IWC | H44: + IWC | I44: + IWC | J44: + IWC | K44: + IWC | L44: + IWC | M44: + IWC | N44: Summe | P44: Wohnlage
D45: unter 40 m² | E45: einfach | F45: =F28*F11 -> 167558 | G45: =G11*G28 -> 34112 | H45: 73295 | I45: 71676 | J45: 29822 | K45: 70012 | L45: 0 | M45: 0 | N45: =SUM(F45:M45) -> 446475 | P45: =ROUND(((N45+N46)/(N28+N29)),2) -> 7.45 | R45: =ROUND(((N45)/(N28)),2) -> 7.54
E46: mittel | F46: 154456 | G46: 51408 | H46: 124830 | I46: 63700 | J46: 21424 | K46: 164797 | L46: 0 | M46: 0 | N46: =SUM(F46:M46) -> 580615
D47: 40 m² bis unter 60 m² | E47: einfach | F47: 329302 | G47: 181412 | H47: 209920 | I47: 96404 | J47: 46110 | K47: 89740 | L47: 35640 | M47: 18555 | N47: 1007083 | P47: =ROUND(((N47+N48)/(N30+N31)),2) -> 7.03 | Q47: 40 qm - 60 qm | R47: =ROUND(((N47)/(N30)),2) -> 6.9
E48: mittel | F48: 358776 | G48: 361154 | H48: 421848 | I48: 125686 | J48: 48616 | K48: 242570 | L48: 112488 | M48: 39900 | N48: 1711038 | P48: =ROUND(((N45+N46+N47+N48)/(N28+N29+N30+N31)),2) -> 7.14 | Q48: 0 qm - 60qm | R48: =ROUND(((N45+N47)/(N28+N30)),2) -> 7.09
D49: 60 m² bis unter 90 m² | E49: einfach | F49: 359775 | G49: 132500 | H49: 158598 | I49: 212065 | J49: 73625 | K49: 155674 | L49: 73980 | M49: 24714 | N49: 1190931 | P49: =ROUND(((N49+N50)/(N32+N33)),2) -> 6.59 | R49: =ROUND(((N49)/(N32)),2) -> 6.41
E50: mittel | F50: 408086 | G50: 276640 | H50: 311040 | I50: 192736 | J50: 72505 | K50: 399020 | L50: 241654 | M50: 53750 | N50: 1955431
D51: 90 m² und mehr | E51: einfach | F51: 178616 | G51: 24814 | H51: 0 | I51: 30316 | J51: 20682 | K51: 18972 | L51: 20352 | M51: 12730 | N51: 306482 | P51: =ROUND(((N51+N52)/(N34+N35)),2) -> 6.98 | R51: =ROUND(((N51)/(N34)),2) -> 6.47
E52: mittel | F52: 260281 | G52: 54485 | H52: 25956 | I52: 21850 | J52: 31746 | K52: 45360 | L52: 75951 | M52: 45108 | N52: 560737

Sheet schlüssiges Konzept SG
A2: Start | C2: angem. Nettokaltmietenberechnung aufgrund des Berliner Mietspiegels 2019 | T2: ausblenden in Endversion
C4: nach Sozialgericht Berlin
C5: Methode zur Berechnung eines schlüssigen Konzeptes nach der vom BSG für richtig gehaltenen Rechenmethode
C6: entwickelt von Richtern am SG Berlin unter Leitung von Stefan Schifferdecker, Britta Irgang, Eva Silbermann
C7: Artikel in Archiv für Wissenschaft und Praxis der sozialen Arbeit 1/2010 (Dt. Verein)
C8: Dies haben wir erweitert um die Wohnungen des Mittelwertes unter Verwertung aller Wohnungsmengen
E9: Nr. der Miet- spiegel-spalte | F9: Je Wohnungsgröße: Kaltmietwert Mietspiegel je m² / Anzahl der Wohnungen
F10: (prozentualer Anteil) / Nettokaltmiete je qm im Verhältnis des Anteils am | U10: Kontrollberechnung mit den Daten: Rundung 2 Stellen hinter dem Komma
F11: berücksichtigten Bestand (je Wohnungsgröße)
C12: bezugsfertig | F12: bis < 40 m² | I12: 40 bis < 60 m² | L12: 60 bis < 90 m² | O12: 90 m² und > | U12: bis < 40 m² | V12: 40 bis < 60 m² | W12: 60 bis < 90 m² | X12: 90 m² und >
F13: =Mietspiegel!D9 -> 8.42 | I13: =Mietspiegel!D11 -> 7.19 | L13: =Mietspiegel!D13 -> 6.75 | O13: =Mietspiegel!D15 -> 6.64
C14: =Mietspiegel!D7 -> bis 1918 | E14: 1 | F14: ='schlüssiges Konzept'!F28 -> 19900 | G14: =IF(Wohnungsbestand!G28>0,Wohnungsbestand!G28,"") -> 0.3361486486 | I14: ='schlüssiges Konzept'!F30 -> 45800 | J14: =IF(Wohnungsbestand!G31>0,Wohnungsbestand!G31,"") -> 0.3139136395 | L14: =Wohnungsbestand!G17 -> 50900 | M14: =IF(Wohnungsbestand!G34>0,Wohnungsbestand!G34,"") -> 0.2870220786 | O14: =Wohnungsbestand!G20 -> 25900 | P14: =IF(Wohnungsbestand!G37>0,Wohnungsbestand!G37,"") -> 0.5675105485
F15: =SUM(F13*G14) -> 2.830371622 | I15: =SUM(I13*J14) -> 2.257039068 | L15: =SUM(L13*M14) -> 1.937399031 | O15: =SUM(O13*P14) -> 3.768270042 | U15: 2.655574324 | V15: 2.118917066 | W15: 1.816849758 | X15: 3.535590717
F16: =Mietspiegel!D10 -> 8.98 | I16: =Mietspiegel!D12 -> 7.92 | L16: =Mietspiegel!D14 -> 7.21 | O16: =Mietspiegel!D16 -> 7.21
C17: =Mietspiegel!D7 -> bis 1918 | E17: 1 | F17: ='schlüssiges Konzept'!F29 -> 17200 | G17: =IF(Wohnungsbestand!G29>0,Wohnungsbestand!G29,"") -> 0.2185514612 | I17: ='schlüssiges Konzept'!F31 -> 45300 | J17: =IF(Wohnungsbestand!G32>0,Wohnungsbestand!G32,"") -> 0.1880448319 | L17: =Wohnungsbestand!G18 -> 54400 | M17: =IF(Wohnungsbestand!G35>0,Wohnungsbestand!G35,"") -> 0.1940349674 | O17: =Wohnungsbestand!G21 -> 35100 | P17: =IF(Wohnungsbestand!G38>0,Wohnungsbestand!G38,"") -> 0.4694408322
C18: mittel | F18: =SUM(F16*G17) -> 1.962592122 | I18: =SUM(I16*J17) -> 1.489315068 | L18: =SUM(L16*M17) -> 1.398992115 | O18: =SUM(O16*P17) -> 3.384668401 | U18: 1.842388818 | V18: 1.397173101 | W18: 1.31361673 | X18: 3.178114434
F19: =Mietspiegel!F9 -> 8.32 | I19: =Mietspiegel!F11 -> 6.82 | L19: =Mietspiegel!F13 -> 6.25 | O19: =Mietspiegel!F15 -> 6.53
C20: =Mietspiegel!F7 -> 1919 - 1949 | E20: 2 | F20: ='schlüssiges Konzept'!G28 -> 4100 | G20: =IF(Wohnungsbestand!J28>0,Wohnungsbestand!J28,"") -> 0.06925675676 | I20: ='schlüssiges Konzept'!G30 -> 26600 | J20: =IF(Wohnungsbestand!J31>0,Wohnungsbestand!J31,"") -> 0.1823166552 | L20: =Wohnungsbestand!J17 -> 20400 | M20: =IF(Wohnungsbestand!J34>0,Wohnungsbestand!J34,"") -> 0.1141626279 | O20: =Wohnungsbestand!J20 -> 3700 | P20: =IF(Wohnungsbestand!J37>0,Wohnungsbestand!J37,"") -> 0.08016877637
F21: =SUM(F19*G20) -> 0.5762162162 | I21: =SUM(I19*J20) -> 1.243399589 | L21: =SUM(L19*M20) -> 0.7135164243 | O21: =SUM(O19*P20) -> 0.5235021097 | U21: 0.5402027027 | V21: 1.166826594 | W21: 0.6701346257 | X21: 0.4914345992
F22: =Mietspiegel!F10 -> 8.16 | I22: =Mietspiegel!F12 -> 7.18 | L22: =Mietspiegel!F14 -> 6.65 | O22: =Mietspiegel!F16 -> 6.41
C23: =Mietspiegel!F7 -> 1919 - 1949 | E23: 2 | F23: ='schlüssiges Konzept'!G29 -> 6300 | G23: =IF(Wohnungsbestand!J29>0,Wohnungsbestand!J29,"") -> 0.08005082592 | I23: ='schlüssiges Konzept'!G31 -> 50300 | J23: =IF(Wohnungsbestand!J32>0,Wohnungsbestand!J32,"") -> 0.2088003321 | L23: =Wohnungsbestand!J18 -> 40500 | M23: =IF(Wohnungsbestand!J35>0,Wohnungsbestand!J35,"") -> 0.1426122729 | O23: =Wohnungsbestand!J21 -> 8400 | P23: =IF(Wohnungsbestand!J38>0,Wohnungsbestand!J38,"") -> 0.1105331599
C24: mittel | F24: =SUM(F22*G23) -> 0.6532147395 | I24: =SUM(I22*J23) -> 1.499186384 | L24: =SUM(L22*M23) -> 0.9483716147 | O24: =SUM(O22*P23) -> 0.7085175553 | U24: 0.6131893266 | V24: 1.407314238 | W24: 0.8899005828 | X24: 0.6643042913
F25: =Mietspiegel!H9 -> 6.85 | I25: =Mietspiegel!H11 -> 6.4 | L25: =Mietspiegel!H13 -> 5.94 | O25: =Mietspiegel!H15 -> 0
C26: =Mietspiegel!H7 -> 1950 - 1964 | E26: 3 | F26: ='schlüssiges Konzept'!H28 -> 10700 | G26: =IF(Wohnungsbestand!L28>0,Wohnungsbestand!L28,"") -> 0.1807432432 | I26: ='schlüssiges Konzept'!H30 -> 32800 | J26: =IF(Wohnungsbestand!L31>0,Wohnungsbestand!L31,"") -> 0.2248115147 | L26: =Wohnungsbestand!L17 -> 26400 | M26: =IF(Wohnungsbestand!L34>0,Wohnungsbestand!L34,"") -> 0.1437802908 | O26: =Wohnungsbestand!L20 -> 2000 | P26: =IF(Wohnungsbestand!L37>0,Wohnungsbestand!L37,"") -> 0.04219409283
F27: =SUM(F25*G26) -> 1.238091216 | I27: =SUM(I25*J26) -> 1.438793694 | L27: =SUM(L25*M26) -> 0.8540549273 | O27: =IF(SUM(O25)=0,"k.A.",SUM(O25*P26)) -> k.A. | U27: 1.162179054 | V27: 1.348869088 | W27: 0.8022940226
F28: =Mietspiegel!H10 -> 7.3 | I28: =Mietspiegel!H12 -> 6.51 | L28: =Mietspiegel!H14 -> 6.4 | O28: =Mietspiegel!H16 -> 7.21
C29: =Mietspiegel!H7 -> 1950 - 1964 | E29: 3 | F29: ='schlüssiges Konzept'!H29 -> 17100 | G29: =IF(Wohnungsbestand!L29>0,Wohnungsbestand!L29,"") -> 0.2172808132 | I29: ='schlüssiges Konzept'!H31 -> 64800 | J29: =IF(Wohnungsbestand!L32>0,Wohnungsbestand!L32,"") -> 0.2689912827 | L29: =Wohnungsbestand!L18 -> 48100 | M29: =IF(Wohnungsbestand!L35>0,Wohnungsbestand!L35,"") -> 0.1666095303 | O29: =Wohnungsbestand!L21 -> 3500 | P29: =IF(Wohnungsbestand!L38>0,Wohnungsbestand!L38,"") -> 0.04681404421
C30: mittel | F30: =SUM(F28*G29) -> 1.586149936 | I30: =SUM(I28*J29) -> 1.75113325 | L30: =SUM(L28*M29) -> 1.066300994 | O30: =SUM(O28*P29) -> 0.3375292588 | U30: 1.488373571 | V30: 1.643536737 | W30: 0.999657182 | X30: 0.3169310793
F31: =Mietspiegel!I9 -> 7.24 | I31: =Mietspiegel!I11 -> 6.26 | L31: =Mietspiegel!I13 -> 5.81 | O31: =Mietspiegel!I15 -> 5.83
C32: =Mietspiegel!I7 -> 1965 - 1972 | E32: 4 | F32: =Wohnungsbestand!N11 -> 9900 | G32: =IF(Wohnungsbestand!N28>0,Wohnungsbestand!N28,"") -> 0.1672297297 | I32: =Wohnungsbestand!N14 -> 15400 | J32: =IF(Wohnungsbestand!N31>0,Wohnungsbestand!N31,"") -> 0.1055517478 | L32: =Wohnungsbestand!N17 -> 36500 | M32: =IF(Wohnungsbestand!N34>0,Wohnungsbestand!N34,"") -> 0.196553581 | O32: =Wohnungsbestand!N20 -> 5200 | P32: =IF(Wohnungsbestand!N37>0,Wohnungsbestand!N37,"") -> 0.1097046414
F33: =SUM(F31*G32) -> 1.210743243 | I33: =SUM(I31*J32) -> 0.6607539411 | L33: =SUM(L31*M32) -> 1.141976306 | O33: =SUM(O31*P32) -> 0.6395780591 | U33: 1.137162162 | V33: 0.6206442769 | W33: 1.071217017 | X33: 0.6000843882
F34: =Mietspiegel!I10 -> 7 | I34: =Mietspiegel!I12 -> 6.38 | L34: =Mietspiegel!I14 -> 6.08 | O34: =Mietspiegel!I16 -> 5.75
C35: =C32 -> 1965 - 1972 | E35: 4 | F35: =Wohnungsbestand!N12 -> 9100 | G35: =IF(Wohnungsbestand!N29>0,Wohnungsbestand!N29,"") -> 0.1156289708 | I35: =Wohnungsbestand!N15 -> 19700 | J35: =IF(Wohnungsbestand!N32>0,Wohnungsbestand!N32,"") -> 0.08177667082 | L35: =Wohnungsbestand!N18 -> 31700 | M35: =IF(Wohnungsbestand!N35>0,Wohnungsbestand!N35,"") -> 0.1086732945 | O35: =Wohnungsbestand!N21 -> 3800 | P35: =IF(Wohnungsbestand!N38>0,Wohnungsbestand!N38,"") -> 0.04941482445
C36: mittel | F36: =SUM(F34*G35) -> 0.8094027954 | I36: =SUM(I34*J35) -> 0.5217351598 | L36: =SUM(L34*M35) -> 0.6607336304 | O36: =SUM(O34*P35) -> 0.2841352406 | U36: 0.759682338 | V36: 0.4890244915 | W36: 0.6205245115 | X36: 0.266840052
F37: =Mietspiegel!J9 -> 8.06 | I37: =Mietspiegel!J11 -> 7.95 | L37: =Mietspiegel!J13 -> 7.75 | O37: =Mietspiegel!J15 -> 7.66
C38: =Mietspiegel!J7 -> 1973 - 1990 | E38: 5 | F38: =Wohnungsbestand!O11 -> 3700 | G38: =IF(Wohnungsbestand!O28>0,Wohnungsbestand!O28,"") -> 0.0625 | I38: =Wohnungsbestand!O14 -> 5800 | J38: =IF(Wohnungsbestand!O31>0,Wohnungsbestand!O31,"") -> 0.03975325565 | L38: =Wohnungsbestand!O17 -> 9500 | M38: =IF(Wohnungsbestand!O34>0,Wohnungsbestand!O34,"") -> 0.05115778137 | O38: =Wohnungsbestand!O20 -> 2700 | P38: =IF(Wohnungsbestand!O37>0,Wohnungsbestand!O37,"") -> 0.05696202532
C39: =Mietspiegel!J8 -> West | F39: =IF(SUM(F37)=0,"k.A.",SUM(F37*G38)) -> 0.50375 | I39: =IF(SUM(I37)=0,"k.A.",SUM(I37*J38)) -> 0.3160383825 | L39: =SUM(L37*M38) -> 0.3964728056 | O39: =IF(SUM(O37)=0,"k.A.",SUM(O37*P38)) -> 0.4363291139 | U39: 0.473125 | V39: 0.2965592872 | W39: 0.3719170705 | X39: 0.409556962
C40: mittel | F40: =Mietspiegel!J10 -> 8.24 | I40: =Mietspiegel!J12 -> 8.24 | L40: =Mietspiegel!J14 -> 8.53 | O40: =Mietspiegel!J16 -> 8.14
C41: =C38 -> 1973 - 1990 | E41: 5 | F41: =Wohnungsbestand!O12 -> 2600 | G41: =IF(Wohnungsbestand!O29>0,Wohnungsbestand!O29,"") -> 0.03303684879 | I41: =Wohnungsbestand!O15 -> 5900 | J41: =IF(Wohnungsbestand!O32>0,Wohnungsbestand!O32,"") -> 0.02449149024 | L41: =Wohnungsbestand!O18 -> 8500 | M41: =IF(Wohnungsbestand!O35>0,Wohnungsbestand!O35,"") -> 0.02913952691 | O41: =Wohnungsbestand!O21 -> 3900 | P41: =IF(Wohnungsbestand!O38>0,Wohnungsbestand!O38,"") -> 0.05071521456
C42: West | F42: =SUM(F40*G41) -> 0.2722236341 | I42: =SUM(I40*J41) -> 0.2018098796 | L42: =SUM(L40*M41) -> 0.2485601646 | O42: =O40*P41 -> 0.4128218466 | U42: 0.2553748412 | V42: 0.1893192196 | W42: 0.2331162153 | X42: 0.3874642393
F43: =Mietspiegel!K9 -> 7.61 | I43: =Mietspiegel!K11 -> 6.41 | L43: =Mietspiegel!K13 -> 5.62 | O43: =Mietspiegel!K15 -> 5.58
C44: =Mietspiegel!K7 -> 1973 - 1990 | E44: 6 | F44: =Wohnungsbestand!P11 -> 9200 | G44: =IF(Wohnungsbestand!P28>0,Wohnungsbestand!P28,"") -> 0.1554054054 | I44: =Wohnungsbestand!P14 -> 14000 | J44: =IF(Wohnungsbestand!P31>0,Wohnungsbestand!P31,"") -> 0.09595613434 | L44: =Wohnungsbestand!P17 -> 27700 | M44: =IF(Wohnungsbestand!P34>0,Wohnungsbestand!P34,"") -> 0.1491653204 | O44: =Wohnungsbestand!P20 -> 3400 | P44: =IF(Wohnungsbestand!P37>0,Wohnungsbestand!P37,"") -> 0.07172995781
C45: =Mietspiegel!K8 -> Ost m. Wendw. | F45: =IF(SUM(F43)=0,"k.A.",SUM(F43*G44)) -> 1.182635135 | I45: =IF(SUM(I43)=0,"k.A.",SUM(I43*J44)) -> 0.6150788211 | L45: =SUM(L43*M44) -> 0.8383091007 | O45: =IF(SUM(O43)=0,"k.A.",SUM(O43*P44)) -> 0.4002531646 | U45: 1.109594595 | V45: 0.5766963674 | W45: 0.7861012386 | X45: 0.3751476793
C46: mittel | F46: =Mietspiegel!K10 -> 7.39 | I46: =Mietspiegel!K12 -> 6.35 | L46: =Mietspiegel!K14 -> 5.62 | O46: =Mietspiegel!K16 -> 5.6
C47: =C44 -> 1973 - 1990 | E47: 6 | F47: =Wohnungsbestand!P12 -> 22300 | G47: =IF(Wohnungsbestand!P29>0,Wohnungsbestand!P29,"") -> 0.2833545108 | I47: =Wohnungsbestand!P15 -> 38200 | J47: =IF(Wohnungsbestand!P32>0,Wohnungsbestand!P32,"") -> 0.1585720216 | L47: =Wohnungsbestand!P18 -> 71000 | M47: =IF(Wohnungsbestand!P35>0,Wohnungsbestand!P35,"") -> 0.2434007542 | O47: =Wohnungsbestand!P21 -> 8100 | P47: =IF(Wohnungsbestand!P38>0,Wohnungsbestand!P38,"") -> 0.1053315995
C48: =C45 -> Ost m. Wendw. | F48: =SUM(F46*G47) -> 2.093989835 | I48: =I46*J47 -> 1.006932337 | L48: =L46*M47 -> 1.367912239 | O48: =SUM(O46*P47) -> 0.5898569571 | U48: 1.96364676 | V48: 0.9435035284 | W48: 1.282721975 | X48: 0.5529908973
F49: =Mietspiegel!L9 -> 0 | I49: =Mietspiegel!L11 -> 8.91 | L49: =Mietspiegel!L13 -> 8.22 | O49: =Mietspiegel!L15 -> 8.48
C50: =Mietspiegel!L7 -> 1991 - 2002 | E50: 7 | F50: =Wohnungsbestand!Q11 -> 1200 | G50: =IF(Wohnungsbestand!Q28>0,Wohnungsbestand!Q28,"") -> 0.02027027027 | I50: =Wohnungsbestand!Q14 -> 4000 | J50: =IF(Wohnungsbestand!Q31>0,Wohnungsbestand!Q31,"") -> 0.02741603838 | L50: =Wohnungsbestand!Q17 -> 9000 | M50: =IF(Wohnungsbestand!Q34>0,Wohnungsbestand!Q34,"") -> 0.04846526656 | O50: =Wohnungsbestand!Q20 -> 2400 | P50: =IF(Wohnungsbestand!Q37>0,Wohnungsbestand!Q37,"") -> 0.05063291139
C51: =Mietspiegel!L8 -> o. Wendew. | F51: =IF(SUM(F49)=0,"k.A.",SUM(F49*G50)) -> k.A. | I51: =SUM(I49*J50) -> 0.244276902 | L51: =SUM(L49*M50) -> 0.3983844911 | O51: =SUM(O49*P50) -> 0.4293670886 | V51: 0.2291980809 | W51: 0.3741518578 | X51: 0.4030379747
C52: mittel | F52: =Mietspiegel!L10 -> 0 | I52: =Mietspiegel!L12 -> 8.72 | L52: =Mietspiegel!L14 -> 8.42 | O52: =Mietspiegel!L16 -> 8.73
C53: =C50 -> 1991 - 2002 | E53: 7 | F53: =Wohnungsbestand!Q12 -> 2700 | G53: =IF(Wohnungsbestand!Q29>0,Wohnungsbestand!Q29,"") -> 0.03430749682 | I53: =Wohnungsbestand!Q15 -> 12900 | J53: =IF(Wohnungsbestand!Q32>0,Wohnungsbestand!Q32,"") -> 0.05354919054 | L53: =Wohnungsbestand!Q18 -> 28700 | M53: =IF(Wohnungsbestand!Q35>0,Wohnungsbestand!Q35,"") -> 0.09838875557 | O53: =Wohnungsbestand!Q21 -> 8700 | P53: =IF(Wohnungsbestand!Q38>0,Wohnungsbestand!Q38,"") -> 0.1131339402
C54: =C51 -> o. Wendew. | F54: =IF(SUM(F52)=0,"k.A.",SUM(F52*G53)) -> k.A. | I54: =I52*J53 -> 0.4669489415 | L54: =SUM(L52*M53) -> 0.8284333219 | O54: =SUM(O52*P53) -> 0.9876592978 | V54: 0.4380323786 | W54: 0.777271169 | X54: 0.9265669701
F55: =Mietspiegel!M9 -> 0 | I55: =Mietspiegel!M11 -> 12.37 | L55: =Mietspiegel!M13 -> 13.73 | O55: =Mietspiegel!M15 -> 12.73
C56: =Mietspiegel!M7 -> 2003 - 2017 | E56: 8 | F56: =Wohnungsbestand!R11 -> 500 | G56: =IF(Wohnungsbestand!R28>0,Wohnungsbestand!R28,"") -> 0.008445945946 | I56: =Wohnungsbestand!R14 -> 1500 | J56: =IF(Wohnungsbestand!R31>0,Wohnungsbestand!R31,"") -> 0.01028101439 | L56: =Wohnungsbestand!R17 -> 1800 | M56: =IF(Wohnungsbestand!R34>0,Wohnungsbestand!R34,"") -> 0.009693053312 | O56: =Wohnungsbestand!R20 -> 1000 | P56: =IF(Wohnungsbestand!R37>0,Wohnungsbestand!R37,"") -> 0.02109704641
C57: =Mietspiegel!M8 -> o. Wendew. | F57: =IF(SUM(F55)=0,"k.A.",SUM(F55*G56)) -> k.A. | I57: =IF(SUM(I55)=0,"k.A.",SUM(I55*J56)) -> 0.127176148 | L57: =SUM(L55*M56) -> 0.133085622 | O57: =SUM(O55*P56) -> 0.2685654008 | V57: 0.1193625771 | W57: 0.1249434572 | X57: 0.2521097046
F58: =Mietspiegel!M10 -> 0 | I58: =Mietspiegel!M12 -> 10.5 | L58: =Mietspiegel!M14 -> 10.75 | O58: =Mietspiegel!M16 -> 10.74
C59: =C56 -> 2003 - 2017 | E59: 8 | F59: =Wohnungsbestand!R12 -> 1400 | G59: =IF(Wohnungsbestand!R29>0,Wohnungsbestand!R29,"") -> 0.01778907243 | I59: =Wohnungsbestand!R15 -> 3800 | J59: =IF(Wohnungsbestand!R32>0,Wohnungsbestand!R32,"") -> 0.01577418016 | L59: =Wohnungsbestand!R18 -> 5000 | M59: =IF(Wohnungsbestand!R35>0,Wohnungsbestand!R35,"") -> 0.01714089818 | O59: =Wohnungsbestand!R21 -> 4200 | P59: =IF(Wohnungsbestand!R38>0,Wohnungsbestand!R38,"") -> 0.05461638492
C60: =C57 -> o. Wendew. | F60: =SUM(F58*G59) -> 0 | I60: =SUM(I58*J59) -> 0.1656288917 | L60: =SUM(L58*M59) -> 0.1842646555 | O60: =SUM(O58*P59) -> 0.586579974 | V60: 0.1553756746 | W60: 0.1729516627 | X60: 0.5505331599
C61: erfasste Wohnungen v. | F61: 2 x 100 = 200 % | I61: 2 x 100 = 200 % | L61: 2 x 100 = 200 % | O61: 2 x 100 = 200 % | S61: Summe: | U61: =SUM(U15:U60) -> 14.00049349 | V61: =SUM(V15:V60) -> 13.14035271 | W61: =SUM(W15:W60) -> 12.30736907 | X61: =SUM(X15:X60) -> 12.91070715
C62: W.Bestand Baualterkl.: | F62: =SUM(G14,G17,G23,G29,G35,G41,G38,G20,G44,G26,G32,G47) -> 1.919187215 | I62: =SUM(J14,J17,J20,J23,J26,J29,J32,J35,J38,J41,J44,J47,J50,J53,J56,J59) -> 2 | L62: =SUM(M14,M17,M23,M29,M35,M47,M53,M50,M41,M38,M56,M59,M20,M44,M26,M32) -> 2 | O62: =SUM(P14,P50,P41,P38,P17,P23,P29,P35,P47,P53,P56,P59,P20,P44,P32) -> 1.957805907 | U62: =F62 -> 1.919187215 | V62: =I62 -> 2 | W62: =L62 -> 2 | X62: =O62 -> 1.957805907
C63: Summen | F63: =IF(F66>0,F66,ROUND(SUM(F15,F18,F21,F24,F27,F30,F33,F36,F39,F42,F45,F48,,)/F62,2)) -> 7.77 | I63: =IF(I66>0,I66,ROUND(SUM(I15,I18,I21,I24,I27,I30,I33,I36,I39,I42,I45,I48,I51,I54,I57,I60)/I62,2)) -> 7 | L63: =IF(L66>0,L66,ROUND(SUM(L15,L18,L21,L24,L27,L30,L33,L36,L39,L42,L45,L48,L51,L54,L57,L60)/L62,2)) -> 6.56 | O63: =IF(O66>0,O66,ROUND(SUM(O15,O18,O21,O24,O30,O33,O36,O39,O42,O45,O48,O51,O54,O57,O60)/O62,2)) -> 7.03 | S63: Summe: | U63: =U61 -> 14.00049349 | V63: =V61 -> 13.14035271 | W63: =W61 -> 12.30736907 | X63: =X61 -> 12.91070715
U64: =U63/U62 -> 7.29501186 | V64: =V63/V62 -> 6.570176353 | W64: =W63/W62 -> 6.153684537 | X64: =X63/X62 -> 6.594477574
X65: anal. Senatsverw.
A66: Werte: | C66: Nettokalt-direkt
U67: Gesamtbestand 4 Werte a 200% | W67: 8 | X67: 8
C68: © beim Richterprojekt d. SG Berlin um die Richter Stefan Schifferdecker, Britta Irgang, Eva Silbermann | U68: verwendete Wohnungen prozentual | W68: =(SUM(F62:Q62)) -> 7.876993122 | X68: =W68+G59+G56+G53+P26 -> 7.97972973
C69: Veröffentlicht im Archiv für Wissenschaft und Praxis der sozialen Arbeit 2010, 28; | U69: Gesamtmietwerte addiert | W69: =SUM(U63+V63+W63+X63) -> 52.35892242 | X69: =SUM('schlüssiges Konzept'!P45+'schlüssiges Konzept'!P47+'schlüssiges Konzept'!P49+'schlüssiges Konzept'!P51)*2 -> 56.1
C70: (auch SG Berlin Urteil vom 30.6.2010 - S 174 AS 21949/07 - juris RdNr 46). | U70: Mietwert / Wohnungsanteil | W70: =W69/W68 -> 6.647069715 | X70: =X69/X68 -> 7.030313294
C71: verändert durch die Daten des Mietspiegels 2017 und leicht der Rechenart durch SoLei-B GbR J. Kroggel, G. Leupold
C73: Zitat BSG aus dem Urteil vom 19.10.2010, B 14 AS 65/09 R:
C74: "Lassen sich solche weitergehenden Schlüsse aus vorhandenem Datenmaterial nicht ziehen, bietet es sich an,
C75: einen gewichteten arithmetischen Mittelwert nach Verteilung der in der Grundgesamtheit abgebildeten Wohnungen
C76: in den jeweiligen Bauklassen zu bilden."
C78: Diesem Rechenprinzip schließt sich das Land Berlin in der AV Wohnen vom 26.09.2019, geändert zum 29.11.2019 an
C81: BSG Urteil vom 22.09.2009 - B 4 AS 18/09 R 4 / 6
C82: Ein (schlüssiges) Konzept ist ein planmäßiges Vorgehen des Grundsicherungsträgers im Sinne der systema-
C83: tischen Ermittlung und Bewertung genereller, wenngleich orts- und zeitbedingter Tatsachen für sämtliche
C84: Anwendungsfälle im maßgeblichen Vergleichsraum und nicht nur ein punktuelles Vorgehen von Fall zu Fall.
C85: Schlüssig ist das Konzept, wenn es mindestens die folgenden Voraussetzungen erfüllt:
B87: l | C87: Die Datenerhebung darf ausschließlich in dem genau eingegrenzten und muss über den gesamten
C88: Vergleichsraum erfolgen (keine Ghettobildung)
B89: l | C89: Es bedarf einer nachvollziehbaren Definition d. Gegenstandes der Beobachtung, zB welche Art von Wohnungen
D90: Differenzierung nach Standard der Wohnungen, Brutto- und Nettomiete (Vergleichbarkeit),
D91: Differenzierung nach Wohnungsgröße,
B92: l | C92: Angaben über den Beobachtungszeitraum,
B93: l | C93: Festlegung der Art und Weise der Datenerhebung (Erkenntnisquellen, z.B. Mietspiegel),
B94: l | C94: Repräsentativität des Umfangs der eingezogenen Daten,
B95: l | C95: Validität der Datenerhebung,
B96: l | C96: Einhaltung anerkannter mathematisch-statistischer Grundsätze der Datenauswertung und
C97: Angaben über die gezogenen Schlüsse (z.B. Spannoberwert oder Kappungsgrenze).

Sheet BK Kosten
A2: Start | B2: Betriebskosten, durchschnittlich pro qm
B5: Mietspiegel 2019: Abrechnungsjahr 2017 Werte wurden in 2023 nicht neu ermittelt, sondern fortgeschrieben | C5: Angaben in €/m²
B6: Betriebskostenart | C6: unterer Spannenwert 4/5 Wert | D6: Mittelwert | E6: oberer Spannenwert 4/5 Wert | F6: Grundlagendatenzahlen für Betriebskostenspiegel Berlin
B7: Grundsteuer | C7: 0.14 | D7: 0.27 | E7: 0.46 | F7: (aus Berliner Mietspiegel 2017)
B8: Wasserversorgung | C8: 0.13 | D8: 0.25 | E8: 0.44
B9: Entwässerung | C9: 0.13 | D9: 0.23 | E9: 0.31 | F9: Datenbasis:
B10: Niederschlagswasser | C10: 0.02 | D10: 0.05 | E10: 0.07 | F10: rd. 3000 Wohneinheiten
B11: Aufzug | C11: 0.07 | D11: 0.18 | E11: 0.33 | F11: auschließlich für 2017 (volles Abrechnungsjahr)
B12: Straßenreinigung | C12: 0.01 | D12: 0.04 | E12: 0.07
B13: Müllbeseitigung | C13: 0.11 | D13: 0.16 | E13: 0.23
B14: Hauswart | C14: 0.05 | D14: 0.18 | E14: 0.38 | F14: Gesamtdurchschnitt aller erfaßten kalten Betriebskosten
B15: Gebäudereinigung und Ungezieferbekämpfung | C15: 0.06 | D15: 0.15 | E15: 0.26 | F15: 1.66 | G15: (wird nicht weiter erklärt.)
B16: Schneebeseitigung | C16: 0.02 | D16: 0.05 | E16: 0.08 | F16: Gesamtdurchschnitt aller erfaßten warmen Betriebskosten
B17: Gartenpflege | C17: 0.02 | D17: 0.1 | E17: 0.2 | F17: 0.9
B18: Beleuchtung (Allgemeinstrom) | C18: 0.02 | D18: 0.05 | E18: 0.1
B19: Schornsteinreinigung | C19: 0.01 | D19: 0.07 | E19: 0.12
B20: Sach- und Haftpflichtversicherung | C20: 0.06 | D20: 0.16 | E20: 0.24
B21: Gemeinschafts-Antennenanlage/Breitbandkabelanschluss | C21: 0.06 | D21: 0.12 | E21: 0.19
B22: Sonstige »kalte« Betriebskosten | C22: 0.01 | D22: 0.07 | E22: 0.15
B23: Sonstige »warme« Betriebskosten (z.B. Wartung Heizungsanlage) | C23: 0.1 | D23: 0.19 | E23: 0.27 | F23: Daten - Download:
B24: Zusammen | C24: =SUM(C7:C23) -> 1.02 | D24: =SUM(D7:D23) -> 2.32 | E24: =SUM(E7:E23) -> 3.9 | F24: http://www.stadtentwicklung.berlin.de/wohnen/mietspiegel/de/downloads.shtml
B25: ohne "warme" Betriebskosten | C25: =SUM(C24-C23) -> 0.92 | D25: =SUM(D24-D23) -> 2.13 | E25: =SUM(E24-E23) -> 3.63
B26: lt. Mietspiegel aufgrund Datenerfassung von 2200 Wohneinheiten | D26: 1.66 | E26: neu ab 22/23
B27: Senatsverwaltung | D27: 1.77 | E27: 1.77 | F27: Fortschreibung
B28: bundesweiter Betriebskostenspiegel des Deutschen Mieterbundes als Vergleichswert | F28: Dies ergibt sich für die Abrechnungsperiode 2017
B29: Abrechnungsjahr 2018 | C29: 2.17 | F29: (Datenerfassung 2017) kalte Betriebskosten
B32: Die obere Tabelle ist mit Änderungen dem Endbericht des Berliner Mietspiegels 2019 entnommen, der durch die GEWOS Institut für
B33: Stadt-, Regional- und Wohnforschung GmbH Hamburg erstellt wurde, der an diesem Bericht auch das copyright hat.
B35: Ergebnis Mietspiegel 2019:
B36: Für das Abrechnungsjahr 2017 wurden durchschnittliche »kalte« Betriebskosten in Höhe von 1,66 €/m² Monat
B37: und Kosten für Heizung und Warmwasser (»warme« Betriebkosten) in Höhe von 0,90 €/m² monatlich abgerechnet.
B38: Die durchschnittlichen Betriebskosten ergeben sich nicht aus der Summierung der Einzelpositionen in der
B39: abgebildeten Tabelle, weil nicht immer alle Betriebskostenarten anfallen.

Sheet Heizkosten
A2: Start | B2: angemessene Heizkosten
B4: Anlage 2 AV-Wohnen
B5: Heizkostengrenzwerte individuell per HK - Abrechnung zu ermitteln
B6: fossile Brennstoffe | C6: Personenanzahl | E6: kWh | F6: kWh Grenzwert
C7: der Bedarfsgemeinschaft | E7: qm / Jahr | F7: pro Jahr | G7: pro Monat | H7: pro Monat
F8: m.WW | G8: m.WW | H8: individuell
B9: Heizöl Gas Fernwärme | C9: 1 Person, 50 m² | D9: > | E9: =Werte!EY3 -> 238 | F9: =Werte!EZ$3 -> 11900 | G9: =F9/12 -> 991.6666667 | H9: zu berechnen
C10: 2 Personen, 65 m² | D10: > | E10: =E$9 -> 238 | F10: =Werte!FA$3 -> 15500 | G10: =F10/12 -> 1291.666667 | H10: zu berechnen
C11: 3 Personen, 80 m² | D11: > | E11: =E$9 -> 238 | F11: =Werte!FB$3 -> 19000 | G11: 1583.333333 | H11: zu berechnen
C12: 4 Personen, 90 m² | D12: > | E12: 238 | F12: =Werte!FC$3 -> 21400 | G12: 1783.333333 | H12: zu berechnen
C13: 5 Personen, 102 m² | D13: > | E13: 238 | F13: =Werte!FD$3 -> 24300 | G13: 2025 | H13: zu berechnen
C14: jede weitere Person 12 m² | D14: > | E14: 238 | F14: =Werte!FE$3 -> 2900 | G14: 241.6666667 | H14: zu berechnen
H15: individuell
B16: Wärme-pumpe | C16: 1 Person, 50 m² | D16: > | E16: =Werte!FN3 -> 94 | F16: =Werte!FO$3 -> 4700 | G16: =F16/12 -> 391.6666667 | H16: zu berechnen
C17: 2 Personen, 65 m² | D17: > | E17: =$E16 -> 94 | F17: =Werte!FP$3 -> 6100 | G17: =F17/12 -> 508.3333333 | H17: zu berechnen
C18: 3 Personen, 80 m² | D18: > | E18: =$E17 -> 94 | F18: =Werte!FQ$3 -> 7500 | G18: 625 | H18: zu berechnen
C19: 4 Personen, 90 m² | D19: > | E19: 94 | F19: =Werte!FR$3 -> 8500 | G19: 708.3333333 | H19: zu berechnen
C20: 5 Personen, 102 m² | D20: > | E20: 94 | F20: =Werte!FS$3 -> 9600 | G20: 800 | H20: zu berechnen
C21: jede weitere Person 12 m² | D21: > | E21: =$E20 -> 94 | F21: =Werte!FT$3 -> 1100 | G21: 91.66666667 | H21: zu berechnen
B23: Abzug für Warmwasser (falls in Heizung enthalten)
H24: individuell
B25: Heizöl Gas Fernwärme | C25: 1 Person, 50 m² | D25: > | F25: =Werte!FG$3 -> 1200 | G25: =F25/12 -> 100 | H25: zu berechnen
C26: 2 Personen, 65 m² | D26: > | F26: =Werte!FH$3 -> 1560 | G26: =F26/12 -> 130 | H26: zu berechnen
C27: 3 Personen, 80 m² | D27: > | F27: =Werte!FI$3 -> 1920 | G27: 160 | H27: zu berechnen
C28: 4 Personen, 90 m² | D28: > | F28: =Werte!FJ$3 -> 2160 | G28: 180 | H28: zu berechnen
C29: 5 Personen, 102 m² | D29: > | F29: =Werte!FK$3 -> 2448 | G29: 204 | H29: zu berechnen
C30: jede weitere Person 12 m² | D30: > | F30: =Werte!FL$3 -> 288 | G30: 24 | H30: zu berechnen
H31: individuell
B32: Wärme-pumpe | C32: 1 Person, 50 m² | D32: > | F32: =Werte!FV$3 -> 480 | G32: =F32/12 -> 40 | H32: zu berechnen
C33: 2 Personen, 65 m² | D33: > | F33: =Werte!FW$3 -> 624 | G33: =F33/12 -> 52 | H33: zu berechnen
C34: 3 Personen, 80 m² | D34: > | F34: =Werte!FX$3 -> 768 | G34: 64 | H34: zu berechnen
C35: 4 Personen, 90 m² | D35: > | F35: =Werte!FY$3 -> 864 | G35: 72 | H35: zu berechnen
C36: 5 Personen, 102 m² | D36: > | F36: =Werte!FZ$3 -> 979 | G36: 81.58333333 | H36: zu berechnen
C37: jede weitere Person m² | D37: > | F37: =Werte!GA$3 -> 115 | G37: 9.583333333 | H37: zu berechnen
B41: https://www.berlin.de/sen/soziales/service/berliner-sozialrecht/kategorie/sonstige/brennstoffe-601787.php
B42: Nachtspeicherheizung | G42: Höchstwert der Heizkosten
D43: angem. Wohnfläche | F43: Verbrauch pro Monat | H43: Verbrauch pro Jahr | J43: Kosten m² pro kWh | L43: Kosten pro Monat | M43: Kosten pro Jahr | N43: Kosten pro Jahr
B44: 1-Personen-BG | D44: =Werte!CC3 -> 50 | E44: m² | F44: =H44/12 -> 500 | G44: kWh | H44: =Werte!GD3 -> 6000 | I44: kWh | J44: =Werte!GK$3 -> 0.33 | L44: =F44*J44 -> 165 | N44: =H44*J44 -> 1980
B45: 2-Personen-BG | D45: =Werte!CD3 -> 65 | E45: m² | F45: =H45/12 -> 650 | G45: kWh | H45: =Werte!GE3 -> 7800 | I45: kWh | J45: =Werte!GL$3 -> 0.33 | L45: =F45*J45 -> 214.5 | N45: =H45*J45 -> 2574
B46: 3-Personen-BG | D46: =Werte!CF3 -> 80 | E46: m² | F46: =H46/12 -> 800 | G46: kWh | H46: =Werte!GF3 -> 9600 | I46: kWh | J46: =Werte!GM$3 -> 0.33 | L46: 264 | N46: 3168
B47: 4-Personen-BG | D47: =Werte!CG3 -> 90 | E47: m² | F47: 900 | G47: kWh | H47: 10800 | I47: kWh | J47: =Werte!GN$3 -> 0.33 | L47: 297 | N47: 3564
B48: 5-Personen-BG | D48: =Werte!CH3 -> 102 | E48: m² | F48: 1020 | G48: kWh | H48: 12240 | I48: kWh | J48: =Werte!GO$3 -> 0.33 | L48: 336.6 | N48: 4039.2
B49: jede weitere Person | D49: =Werte!CI3 -> 12 | E49: m² | F49: 120 | G49: kWh | H49: 1440 | I49: kWh | J49: =Werte!GP$3 -> 0.33 | L49: 39.6 | N49: 475.2
B51: ="Die Berliner AV-Wohnen gültig ab "&TEXT(Werte!G3,"TT.MM.JJJJ")&" bezieht sich in § 3 Abs. 3 auf diese Werte" -> Die Berliner AV-Wohnen gültig ab 01.10.2023 bezieht sich in § 3 Abs. 3 auf diese Werte
B52: bei der Feststellung des Heizkosten - Grenzwertes

Sheet Zuschlag
A2: Start | B2: Abzug bei dezentraler Warmwasserversorgung
B5: Ist das Warmwasser nicht in den Heizkosten enthalten (bei dezentraler Warmwassererwärmung), wird je nach
B6: Personenzahl ein Abschlag vom Heizkostengrenzwert vorgenommen, der diesen dann reduziert.
B7: Hintergrund: Im Heizkostengrenzwert ist ein Betrag für Warmwasser mit enthalten.
F9: nach | G9: =Grundeinstellungen!S14 -> AV-Wohnen ab 01.10.2023
C10: Personen | G10: nur bei
G11: Wärmepumpenheizung
C12: 1 | E12: =Werte!BN3 -> 7 | G12: =Werte!BU$3 -> 9
C13: 2 | E13: =Werte!BO3 -> 9 | G13: =Werte!BV$3 -> 11
B14: gültig bis 31.12.2021 > | C14: alleinerziehend mit 1 Kind | E14: =Werte!BP3 -> 9 | G14: =Werte!BW$3 -> 11
C15: 3 | E15: =Werte!BQ3 -> 11 | G15: =Werte!BX$3 -> 14
C16: 4 | E16: =Werte!BR3 -> 12 | G16: =Werte!BY$3 -> 16
C17: 5 | E17: =Werte!BS3 -> 14 | G17: =Werte!BZ$3 -> 18
C18: jede weitere | E18: =Werte!BT3 -> 2 | G18: =Werte!CA$3 -> 2

Sheet F-Druck WiVer
A1: Start | B1: Kurz-druck | C1: Wirtschaftlichkeitsvergleich - Druckansicht
B2: 1
B3: 1
B4: 1
B5: 1 | C5: =C88 ->  | E5: =IF(D95>0,C95&": "&D95&" "&E95,"") -> 
B6: 1 | C6: Wirtschaftlichkeitsvergleich für Wohnungsumzug
B7: 1
A9: Û | C9: ='Grundberechnung-Hk'!B6 -> berücksichtigte Personenzahl / BG | D9: ='Grundberechnung-Hk'!D6 -> 0 | E9: ='Grundberechnung-Hk'!E27 -> Personen
A11: Û | C11: Angemessene Miete (für vorhandene Wohnung)
C13: ='Grundberechnung-Hk'!B25 -> Angemessene Nettokaltmiete
C14: Wohnfläche | D14: ='Grundberechnung-Hk'!C28&" m²" -> 0 m²
A15: Û | C15: ='Grundberechnung-Hk'!B29 -> weiterer Raumbedarf | D15: ='Grundberechnung-Hk'!C29&" m²" -> 0 m²
C16: ='Grundberechnung-Hk'!B30 -> max. anerkannter Raumbedarf | D16: ='Grundberechnung-Hk'!C30&" m²" -> 0 m²
C18: Nettokaltmiete/ m² | F18: ='Grundberechnung-Hk'!C40 -> 0
C20: ='Grundberechnung-Hk'!B40 -> Mietpreisgrenze nettokalt | D20: ='Grundberechnung-Hk'!E40&" m²" -> 0 m² | E20: x | F20: ='Grundberechnung-Hk'!C40 -> 0 | H20: ='Grundberechnung-Hk'!G40 -> 0
C22: ='Grundberechnung-Hk'!B43 -> Angemessene Betriebskosten
C24: Betriebskosten (kalt)/ m² | F24: ='Grundberechnung-Hk'!C49 -> 0
C26: kalte Betriebskosten | D26: ='Grundberechnung-Hk'!E49&" m²" -> 0 m² | E26: x | F26: ='Grundberechnung-Hk'!C49 -> 0 | H26: ='Grundberechnung-Hk'!G49 -> 0
C28: ='Grundberechnung-Hk'!B52 -> Angemessene Bruttokaltmiete | H28: ='Grundberechnung-Hk'!G53 -> 0
A30: Û | C30: ='Grundberechnung-Hk'!B56 -> 10% Zuschlag im soz. Wohnungsbau (1. Förderweg) | F30: ="("&FIXED('Grundberechnung-Hk'!G53,2)&" x 10 %)" -> (0,00 x 10 %) | H30: ='Grundberechnung-Hk'!G57 -> 0
H31: ='Grundberechnung-Hk'!C58 -> 0
A33: Û | C33: ='Grundberechnung-Hk'!B60 -> 20% Zuschlag zur Vermeidung von Wohnungslosigkeit | F33: ="("&FIXED('Grundberechnung-Hk'!C60,2)&" x "&'Grundberechnung-Hk'!D60&" %)" -> (0,00 x 20 %) | H33: ='Grundberechnung-Hk'!G61 -> 0
H34: ='Grundberechnung-Hk'!C62 -> 0
A36: Û | C36: ='Grundberechnung-Hk'!B65 -> Klimabonus | H36: ='Grundberechnung-Hk'!G65 -> 0
H37: ='Grundberechnung-Hk'!C66 -> 0
A39: Û | C39: ='Grundberechnung-Hk'!B68 -> 10% Zuschlag bei Härtefall (von Brutto-Kaltmiete) | H39: ='Grundberechnung-Hk'!G69 -> 0
F41: ='Grundberechnung-Hk'!B76 -> angemessene Gesamt-Bruttokaltmiete | H41: ='Grundberechnung-Hk'!G76 -> 0
A43: Û | C43: ='Grundberechnung-Hk'!B85 -> Angemessene Heizkosten
C45: ='Grundberechnung-Hk'!B100 -> Heizmaterialart-Auswahl: ? | D45: ='Grundberechnung-Hk'!B116 -> Kosten einer 1 kWh | F45: ='Grundberechnung-Hk'!C116 -> 0
C47: ='Grundberechnung-Hk'!B117 -> angemessene kWh der anerkannten Heizfläche/ Jahr | D47: ='Grundberechnung-Hk'!C117 -> 0 | E47: kWh
C48: =IF('Grundberechnung-Hk'!D92=1,'Grundberechnung-Hk'!B127,"") ->  | D48: =IF('Grundberechnung-Hk'!D92=1,'Grundberechnung-Hk'!C128,"") ->  | E48: =IF('Grundberechnung-Hk'!D92=1,"kWh","") -> 
C49: ='Grundberechnung-Hk'!B125 -> anzuerkendende angem. Heizkosten/ Monat: | F49: ='Grundberechnung-Hk'!C125 -> 0
C50: in Anspruch genommener Klimabonus | F50: ='Grundberechnung-Hk'!C126 -> 0
C52: Abzug b. dezentraler Warmwassererwärmung (pauschal) | F52: ='Grundberechnung-Hk'!C135 -> 0
D54: ='Grundberechnung-Hk'!B117 -> angemessene kWh der anerkannten Heizfläche/ Jahr | E54: ='Grundberechnung-Hk'!C117 -> 0
D56: =IF('Grundberechnung-Hk'!D147=1,'Grundberechnung-Hk'!B147,0) -> 0 | E56: =IF('Grundberechnung-Hk'!D147=1,'Grundberechnung-Hk'!C148,"") -> 
F58: ='Grundberechnung-Hk'!B149 -> anerkannte Heizkosten: | H58: ='Grundberechnung-Hk'!G149 -> 0
C61: ='Grundberechnung-Hk'!B153 -> angemessene (Gesamt-) Miete mit Heizkosten | H61: ='Grundberechnung-Hk'!G153 -> 0
A64: Û | C64: ='Grundberechnung-Hk'!B164 -> Wirtschaftlichkeitsvergleich der Gesamtaufwendungen
C66: ='Grundberechnung-Hk'!B166 -> Summe der Richtwerte f. Unterkunft und Heizung
D67: ='Grundberechnung-Hk'!F177 -> (0,00 € gem. AV-Wohnen Anlage 3 gerundet)
C68: ='Grundberechnung-Hk'!B168 -> Bruttokaltmiete (Richtwert) | H68: ='Grundberechnung-Hk'!G168 -> 0 | J68: =IF(AND(H$77<H$75,H68>0),"x","") -> 
C69: ='Grundberechnung-Hk'!B169 -> 10% Zuschlag im soz. Wohnungsbau (1. Förderweg) | H69: ='Grundberechnung-Hk'!G169 -> 0
C70: ='Grundberechnung-Hk'!B170 -> 20% Zuschlag zur Vermeidung von Wohnungslosigkeit | H70: ='Grundberechnung-Hk'!G170 -> 0
C71: ='Grundberechnung-Hk'!B171 -> Klimabonus | H71: ='Grundberechnung-Hk'!G171 -> 0
C72: ='Grundberechnung-Hk'!B172 -> 10% Zuschlag bei Härtefall (von Brutto-Kaltmiete) | H72: ='Grundberechnung-Hk'!G172 -> 0
C73: ='Grundberechnung-Hk'!B173 -> 15 % Zuschlag zur Umzugsvermeidung / 6.1.1 AV-Wohnen | H73: ='Grundberechnung-Hk'!G173 -> 0
C74: ='Grundberechnung-Hk'!B175 -> abzurechnenden Wirtschaftseinheit | F74: =IF(F52>0,"("&FIXED('Grundberechnung-Hk'!G106,2)&" - "&FIXED('Grundberechnung-Hk'!G116,2)&" W W-Pauschale)","") ->  | H74: ='Grundberechnung-Hk'!G175 -> 0
C75: ='Grundberechnung-Hk'!B176 -> maximal zulässige Gesamtaufwendungen der Wohnung | G75: (gerundet) | H75: ='Grundberechnung-Hk'!G176 -> 0
C77: ='Grundberechnung-Hk'!B181 -> maximale Gesamtaufwendungen für Wohnung bei Kostensenkung | H77: ='Grundberechnung-Hk'!G181 -> 0 | J77: =IF(AND(H$77<H$75,H77>0),"x","") -> 
C79: ='Grundberechnung-Hk'!B183 -> Gesamtaufwendungen f. Unterkunft und Heizung | F79: ='Grundberechnung-Hk'!D183 -> für bereits genutzen Wohnraum
A81: Û | C81: ='Grundberechnung-Hk'!B185 -> tatsächliche Bruttokaltmiete | H81: ='Grundberechnung-Hk'!G185 -> 0
A82: Û | C82: ='Grundberechnung-Hk'!B186 -> tatsächliche Heizkosten | H82: ='Grundberechnung-Hk'!G186 -> 0
A83: Û | C83: ='Grundberechnung-Hk'!B187 -> tatsächliche zu zahlende Warmwasserkosten | H83: ='Grundberechnung-Hk'!G187 -> 0
C84: ='Grundberechnung-Hk'!B188 -> (wenn nicht bereits in den tatsächlichen Heizkosten enthalten)
C85: ='Grundberechnung-Hk'!B189 -> tatsächliche Gesamtaufwendungen für die bereits genutzte Wohnung | H85: ='Grundberechnung-Hk'!G189 -> 0
C86: ='Grundberechnung-Hk'!B190 -> (= aktuelle Gesamtwarmmiete)
F87: =IF(H85>0,IF(H85>H75,"Gesamtwarmiete liegt über der Prüfgrenze ("&FIXED(H75,2)&" €)","maximale Gesamtaufwendungen ("&FIXED(H75,2)&" €) wird nicht überschritten"),"") -> 
C88: ='Grundberechnung-Hk'!C192 -> 
C89: =IF(H75>0,'Grundberechnung-Hk'!B178,"") -> 
C90: =IF(H75>0,'Grundberechnung-Hk'!B179,"") -> 
F91: =IF(H85>H75,'Grundberechnung-Hk'!C194&" "&FIXED('F-Druck WiVer'!H77,2)&" €","") -> 
C93: ='Grundberechnung-Hk'!B197 -> Wirtschaftlichkeit bei Wohnungswechsel
A95: Û | C95: Betrachtungszeitraum | D95: ='Grundberechnung-Hk'!E202 -> 0 | E95: Monate
C97: ='Grundberechnung-Hk'!B204 -> tatsächliche Miete der bewohnten Wohnung | D97: ="("&FIXED('Grundberechnung-Hk'!C204,2)&" € x "&'Grundberechnung-Hk'!E204&")" -> (0,00 € x 0) | H97: ='Grundberechnung-Hk'!G204 -> 0
C98: ='Grundberechnung-Hk'!B206 -> angemessene Miete (nach Produktmethode) | D98: ="("&FIXED('Grundberechnung-Hk'!C206,2)&" € x "&'Grundberechnung-Hk'!E206&")" -> (0,00 € x 0) | H98: ='Grundberechnung-Hk'!G206 -> 0
C99: ='Grundberechnung-Hk'!B208&":" -> keine Mietkosteneinsparung zu erwarten: | D99: ='Grundberechnung-Hk'!G208 -> 0
A101: Û | C101: ='Grundberechnung-Hk'!B211 -> Kosten durch Umzug
C103: ='Grundberechnung-Hk'!B213 -> Doppelmieten | D103: ='Grundberechnung-Hk'!C213 -> 0 | E103: x | F103: ='Grundberechnung-Hk'!E213&" Mon." -> 0 Mon. | H103: ='Grundberechnung-Hk'!G213 -> 0
C104: ='Grundberechnung-Hk'!B214 -> Mietkaution (3 Nettokaltmieten) | D104: ='Grundberechnung-Hk'!C214 -> 0 | E104: x | F104: ='Grundberechnung-Hk'!E214&" Mon." -> 0 Mon. | H104: ='Grundberechnung-Hk'!G214 -> 0
C105: ='Grundberechnung-Hk'!B215 -> Genossenschaftsanteile (Orientierung: 3 x bruttowarm) | H105: ='Grundberechnung-Hk'!G215 -> 0
C106: ='Grundberechnung-Hk'!B216 -> Umzugskosten 1 (je mithelfende Person) | D106: ='Grundberechnung-Hk'!C216 -> 0 | E106: x | F106: ='Grundberechnung-Hk'!E216&" Pers." -> 0 Pers. | H106: ='Grundberechnung-Hk'!G216 -> 0
C107: ='Grundberechnung-Hk'!B217 -> Umzugskosten 2 nach m² (Renovierung) | H107: ='Grundberechnung-Hk'!G217 -> 0
C108: ='Grundberechnung-Hk'!B218 -> Umzugskosten 3 (Transporter/ Umzugsfirma) | H108: ='Grundberechnung-Hk'!G218 -> 0
G109: Umzugsaufwand: | H109: ='Grundberechnung-Hk'!G219 -> 0
C111: ='Grundberechnung-Hk'!B227 -> Vergleich der alten Miete mit der [angemessenen neuen Miete + Umzugskosten]
C113: ='Grundberechnung-Hk'!B228 -> I. Unterkunftskosten in alter Wohnung | H113: ='Grundberechnung-Hk'!G228 -> 0
C115: ='Grundberechnung-Hk'!B230 -> II. neue (abstrakt angemessene) Mietkosten | D115: ='Grundberechnung-Hk'!C230 -> 0
C116: ='Grundberechnung-Hk'!B231 -> + Umzugskosten | D116: ='Grundberechnung-Hk'!C231 -> 0
D117: ='Grundberechnung-Hk'!C232 -> 0 | G117: abzüglich | H117: ='Grundberechnung-Hk'!G232 -> 0
G118: ='Grundberechnung-Hk'!F233 -> Differenz: | H118: ='Grundberechnung-Hk'!G233 -> 0
C120: ='Grundberechnung-Hk'!B235 -> 
C121: ='Grundberechnung-Hk'!B237 -> Ab Aufforderung zur Kostensenkung wird die alte Miete noch längstens 6 Monate in voller Höhe gezahlt.
C122: ='Grundberechnung-Hk'!B238 -> In besonders begründeten Einzelfällen kann dieser Zeitraum um 6 Mo. erweitert werden (auf max. 12 Monate).
C125: =ErgebnisDruck!B98 -> SoLei-B hilft in der Beratung
C126: =ErgebnisDruck!B99 -> ALG II, Kinderzuschlag, Wohngeld, Pfändungsgrenzen, BAföG: Rechnen Sie mit SoLei-B

Sheet ErgebnisDruck
A2: Start | B2: Angemessene Unterkunftskosten | G2: Ergebnis & Druck
L4: =Grundeinstellungen!S12 -> 0 | P4: =Grundeinstellungen!AF10 -> 1 | Q4: =Grundeinstellungen!AG10 -> Rundung nach AV-Wohnen
B5: Berechnung der angemessenen Miete | D5: für Berlin
B7: nach Produktmethode | K7: ="gem. AV-Wohnen vom "&TEXT(Werte!E3,"TT.MM.JJJJ")&IF(Werte!F3>0,", in geänderter Fassung vom "&TEXT(Werte!F3,"TT.MM.JJJJ"),"")&" (gültig ab "&TEXT(Werte!G3,"TT.MM.JJJJ")&")" -> gem. AV-Wohnen vom 13.12.2022, in geänderter Fassung vom 04.09.2023 (gültig ab 01.10.2023)
B9: 1. In einem ersten Schritt wird die abstrakt angemessene Wohnungsgröße und der Wohnungsstandard bestimmt.
B10: 2. In einem zweiten Schritt wird festgelegt, auf welchen räumlichen Vergleichsmaßstab die weiteren Prüfungsschritte abzustellen sind.
B12: ="zu 1.: 1 Person: "&Werte!CC3&" m², 2 Personen "&Werte!CD3&" m², 3 Personen "&Werte!CF3&" m², 4 Personen "&Werte!CG3&" m², 5 Personen "&Werte!CH3&" m², je weitere Person: "&Werte!CI3&" m²; einfache + mittlere Wohnlage" -> zu 1.: 1 Person: 50 m², 2 Personen 65 m², 3 Personen 80 m², 4 Personen 90 m², 5 Personen 102 m², je weitere Person: 12 m²; einfache + mittlere Wohnlage
B13: zu 2.: dieser Vergleichsmaßstab ist ganz Berlin
B15: Es wird das Produkt aus angemessener Wohnfläche x Nettokaltmiete/ m² ermittelt. Hinzu kommen die Betriebskosten/ m² x Wohnfläche.
B16: Zur Bruttokaltmiete kommen die tatsächlichen Heizkosten, die mit dem angem. Heizkostengrenzwert verglichen und ggf. darauf begrenzt werden.
B17: ="Ist in den Heizkosten Warmwasser enthalten, wird davon abgezogen: 1 Pers. "&FIXED(Einstellungen!D64,0)&" €, 2 P. "&FIXED(Einstellungen!D65,0)&IF(Einstellungen!D65=Einstellungen!D66,""," bzw. "&FIXED(Einstellungen!D66,0))&" €, 3 P. "&FIXED(Einstellungen!D67,0)&" €, 4 P. "&FIXED(Einstellungen!D68,0)&" €, 5 P. "&FIXED(Einstellungen!D69,0)&" €, je weitere "&FIXED(Einstellungen!D70,0)&" €)." -> Ist in den Heizkosten Warmwasser enthalten, wird davon abgezogen: 1 Pers. 7 €, 2 P. 9 €, 3 P. 11 €, 4 P. 12 €, 5 P. 14 €, je weitere 2 €).
A19: Û | B19: Personen der Bedarfsgemeinschaft (zzgl. Vollzeitpflegekinder) | G19: =SUM('EF1'!K8) -> 0 | H19: =IF(G19=1," Person"," Personen") -> Personen | J19: =Grundberechnung!E26 ->  | P19: =Grundberechnung!D26 -> 0 | Q19: =Grundberechnung!E26 -> 
B20: daraus ergibt sich eine maximale Wohnfläche von | G20: =Grundberechnung!C28 -> 0 | H20: m²
B21: weiterer Raumbedarf (z.B. durch Behinderung/ Umgangsrecht) | G21: =Grundberechnung!C29 -> 0 | H21: m²
G22: =Grundberechnung!C30 -> 0 | H22: m²
I23: =IF(Grundberechnung!$D57=1,"kein sozialer","") ->  | K23: =IF(Grundberechnung!$D57=1,"im sozialen","") -> 
A24: Û | B24: Bruttokaltmiete | I24: =IF(Grundberechnung!$D57=1,"Wohnungsbau","") ->  | K24: =IF(Grundberechnung!$D57=1,"Wohnungsbau","") -> 
B26: ="(Datengrundlage: Mietspiegel "&Werte!N3&") aus gewichtetem arithm. Mittelwert aller berliner Wohnungen einfachen + mittl. Standards" -> (Datengrundlage: Mietspiegel 2023) aus gewichtetem arithm. Mittelwert aller berliner Wohnungen einfachen + mittl. Standards
B27: angemessene Nettokaltmiete | D27: ="Nettokaltmiete "&FIXED(Grundberechnung!C40,2)&" / m²" -> Nettokaltmiete 0,00 / m² | G27: =FIXED(Grundberechnung!C40,2)&" € x "&IF(G20>0,Grundberechnung!C30,0)&" m² =" -> 0,00 € x 0 m² = | I27: =IF(Grundberechnung!$D57=1,Grundberechnung!G40,"") ->  | K27: =Grundberechnung!G40 -> 0
B28: angemessene Betriebskosten | D28: ="Betriebskosten "&FIXED(Grundberechnung!C49,2)&" / m²" -> Betriebskosten 0,00 / m² | G28: =FIXED(Grundberechnung!C49,2)&" € x "&IF(G20>0,Grundberechnung!C30,0)&" m² =" -> 0,00 € x 0 m² = | I28: =IF(Grundberechnung!$D57=1,Grundberechnung!G49,"") ->  | K28: =Grundberechnung!G49 -> 0
F30: Richtwert (bruttokalt) | H30: Summe: | I30: =IF(Grundberechnung!D57=1,K30,"") ->  | K30: =Grundberechnung!G53 -> 0 | L30: =IF(SUM(K30)>0,"Richtwert","") -> 
B31: Zuschläge, falls individuell angemessen:
A32: Û | B32: zzgl. 10 % Zuschlag für Wohnungen, die im sozialen Wohnungsbau (1. Förderweg) errichtet wurden (3.2 AV-Wohnen) | K32: =Grundberechnung!G57 -> 0 | L32: =IF(SUM(K32)>0,"10% von Richtwert "&FIXED(K30,2),"") -> 
A33: Û | B33: ="zzgl. "&Grundberechnung!D60&" % bei bestehender/ drohender Wohnungslosigkeit, um hohe Unterbringungskosten" -> zzgl. 20 % bei bestehender/ drohender Wohnungslosigkeit, um hohe Unterbringungskosten | I33: =IF(AND(Grundberechnung!D$57=1,Grundberechnung!J61>0),Grundberechnung!J61,"") ->  | K33: =IF(Grundberechnung!G61>0,Grundberechnung!G61,0) -> 0 | L33: =IF(SUM(K33)>0,"20% von Richtwert "&FIXED(K30,2),"") -> 
B34: zu vermeiden | C34: =IF(Grundberechnung!D63=1,"(hier Bestandsschutz aufgrund einer früheren Bewilligung)","") -> 
A35: Û | B35: zzgl. Klimabonus | I35: =IF(Grundberechnung!$D57=1,Grundberechnung!G65,"") ->  | K35: =Grundberechnung!G167 -> 0 | L35: =IF(SUM(K35)>0,"Pauschalbetrag","") -> 
H36: =IF(SUM(I36,K36)>0,"Zwischensumme:","") ->  | I36: =IF(AND(Grundberechnung!$D57=1,SUM(I37)>0),Grundberechnung!I68,"") ->  | K36: =IF(SUM(K37)>0,SUM(K30,K33,K32,K35),"") -> 
A37: Û | B37: ="zzgl. "&Grundberechnung!D68&" % bei bei Härtefällen (z.B. alleinerziehend, Wohndauer über 10 J. u.a.; 3.5.1 AV-Wohnen)" -> zzgl. 10 % bei bei Härtefällen (z.B. alleinerziehend, Wohndauer über 10 J. u.a.; 3.5.1 AV-Wohnen) | I37: =IF(AND(Grundberechnung!D$57=1,Grundberechnung!J69>0),Grundberechnung!J69,"") ->  | K37: =IF(Grundberechnung!D69=1,Grundberechnung!G69,0) -> 0 | L37: =IF(SUM(K37)>0,"10% von Zwischensumme","") -> 
H38: angemessene Bruttokaltmiete ohne Heizkosten: | I38: =IF(Grundberechnung!D57=1,Grundberechnung!J76,"") ->  | K38: =Grundberechnung!G76 -> 0
A39: Û | B39: Heizkosten
B40: =IF('EF1'!AE30>0,"Grenzwert für angemessene Heizkosten"&IF(SUM('EF1'!K34)>0,", (geänderter m²-Preis !)",""),"") ->  | D40: =IF('EF1'!F65=5,"","Heizkosten "&FIXED(Grundberechnung!C103,2)&" / m²") -> Heizkosten 0,00 / m² | G40: =IF('EF1'!F65=5,"Grenzwert für Nachtspeicherheizung","") ->  | K40: Heizkosten
E41: ="nach Auswahl ("&'EF1'!AH48&IF('EF1'!F65<4,", "&'EF1'!AH28,"")&")" -> nach Auswahl (Heizart: ?, Gebäudefläche: ?) | G41: =IF('EF1'!F65=5,"pauschal",FIXED(Grundberechnung!C103,2)&" € x "&Grundberechnung!E103&" m² =") -> 0,00 € x 0 m² = | H41: =IF(SUM(G41)>0,"=","") ->  | K41: =Grundberechnung!G105 -> 0
B42: =Grundberechnung!B115&" für "&G19&" "&H19 -> Abzug b. dezentraler Warmwassererwärmung (pauschal) für 0 Personen | H42: =IF(K42<0,"abzüglich:","") ->  | K42: =Grundberechnung!G115 -> 0
B43: Abzug (vom Heizkostengrenzwert) des in Anspruch genommenen Klimabonus: | H43: =IF(K43<0,"abzüglich:","") ->  | K43: =Grundberechnung!G112*-1 -> 0
B44: (Angemessene Miete incl. Klimabonus abzgl. tatsächl. Miete) | H44: Heizkostengrenzwert: | K44: =Grundberechnung!C116 -> 0
E45: =IF(SUM(G45)>0,"tatsächliche Heizkosten:","") ->  | G45: =IF(Grundberechnung!C140>0,Grundberechnung!C140,"") -> 
H46: =IF(AND(G45>0,K44>G45),"(Begrenzung auf tatsächliche Heizkosten)","") -> 
H47: =IF(K47>0,"anerkannte Heizkosten:","Heizkosten:") -> Heizkosten: | I47: =IF(Grundberechnung!$D57=1,Grundberechnung!G145,"") ->  | K47: =Grundberechnung!G145 -> 0
B48: =IF(K41>0,IF(K44=K47,"Es wird mit dem Heizkostengrenzwert und nicht mit den tatsächl. Heizkosten gerechnet.",IF(H46=K47,"Es liegen individuelle Gründe vor, um mit den tatsächlichen Heizkosten und nicht mit dem Heizkostengrenzwert zu rechnen.","")),"") -> 
H50: =IF(SUM(K47)>0,"angemessene (Gesamt-) Miete mit Heizkosten","angemessene Wohnungsmiete ohne Heizkosten")&":" -> angemessene Wohnungsmiete ohne Heizkosten: | I50: =IF(Grundberechnung!D57=1,Grundberechnung!J150,"") ->  | K50: =Grundberechnung!G149 -> 0
B53: ="zzgl. "&Grundberechnung!D78&" % zur Umzugsvermeidung (6.1.1 AV-Wohnen)" -> zzgl. 15 % zur Umzugsvermeidung (6.1.1 AV-Wohnen) | I53: =IF(AND(Grundberechnung!D$57=1,Grundberechnung!J80>0),Grundberechnung!J80,"") ->  | K53: =IF(Grundberechnung!F79=1,Grundberechnung!C80,"") ->  | L53: =IF(SUM(K53)>0,"10% v. Richtwert"&IF(SUM(K32)>0," (+ soz. WB","")&")","") -> 
H54: =IF(SUM(I53,K53)>0,"Prüfgrenze für Kostensenkungsverfahren (gerundet):","") ->  | I54: =IF(SUM(I53)>0,Grundberechnung!J171,"") ->  | K54: =IF(SUM(I53,K53)>0,Grundberechnung!G171,"") ->  | L54: =IF(SUM(I54,K54)>0,"gerundet","") -> 
B57: Personen in Bedarfsgemeinschaft | C57: Wohnfläche | E57: angem. Miet- | G57: Betriebskosten | I57: Bruttokaltmiete | K57: zuzüglich der ange-
C58: in m² | E58: preis pro m² | G58: pro m² | I58: gesamt | K58: messenen Heizkosten
B59: 1 Person | C59: =Werte!CC3 -> 50 | D59: x | E59: =Werte!J3 -> 7.21 | F59: + | G59: ='BK Kosten'!D$26 -> 1.66 | H59: =IF(G19=1,"Ø","") ->  | I59: =SUM(C59*(E59+G59)) -> 443.5 | K59: =IF(AND(G$19=1,SUM(G$45)>0),K$47,"?") -> ? | L59: =IF(G$19=1,"ß","") -> 
B60: 2 Personen | C60: =Werte!CD3 -> 65 | D60: x | E60: =Werte!K3 -> 7.21 | F60: + | G60: ='BK Kosten'!D$26 -> 1.66 | H60: =IF(AND(P19=0,G19=2),"Ø","") ->  | I60: 576.55 | K60: =IF(AND(P19=0,G$19=2,SUM(G$45)>0),K$47,"?") -> ? | L60: =IF(AND(P19=0,G$19=2),"ß","") -> 
B61: Alleinerziehend mit 1 Kd. | C61: =Werte!CE3 -> 65 | D61: x | E61: =Werte!L3 -> 6.59 | F61: + | G61: ='BK Kosten'!D$26 -> 1.66 | H61: =IF(AND(P19=1,G19=2),"Ø","") ->  | I61: =SUM(C61*(E61+G61)) -> 536.25 | K61: =IF(AND(P19=1,G$19=2,SUM(G$45)>0),K$47,"?") -> ?
B62: 3 Personen | C62: =Werte!CF3 -> 80 | D62: x | E62: =Werte!L3 -> 6.59 | F62: + | G62: ='BK Kosten'!D$26 -> 1.66 | H62: =IF(G19=3,"Ø","") ->  | I62: 660 | K62: =IF(AND(G$19=3,SUM(G$45)>0),K$47,"?") -> ? | L62: =IF(G$19=3,"ß","") -> 
B63: 4 Personen | C63: =Werte!CG3 -> 90 | D63: x | E63: =Werte!L3 -> 6.59 | F63: + | G63: ='BK Kosten'!D$26 -> 1.66 | H63: =IF(G19=4,"Ø","") ->  | I63: 742.5 | K63: =IF(AND(G$19=4,SUM(G$45)>0),K$47,"?") -> ? | L63: =IF(G$19=4,"ß","") -> 
B64: 5 Personen | C64: =Werte!CH3 -> 102 | D64: x | E64: =Werte!$M$3 -> 7.09 | F64: + | G64: ='BK Kosten'!D$26 -> 1.66 | H64: =IF(G19>=5,"Ø","") ->  | I64: 892.5 | K64: =IF(AND(G$19=5,SUM(G$45)>0),K$47,"?") -> ? | L64: =IF(G$19>=5,"ß","") -> 
B65: jede weitere Person | C65: =Werte!CI3 -> 12 | D65: x | E65: =Werte!$M$3 -> 7.09 | F65: + | G65: ='BK Kosten'!D$26 -> 1.66 | H65: =IF(G19>5,"Ø","") ->  | I65: 105 | J65: =IF(G19>5,G19-5,"") ->  | K65: ? | L65: =IF(G$19>5,"ß","") -> 
I66: =IF(SUM(K33:K38)>0,"ohne Zuschläge","") -> 
B68: Heizungsarten im bundesweiten Heizkostenspiegel | C68: Gebäudefläche | G68: Heizkosten | I68: Grenzwert Heizkosten | K68: Gesamtaufwendungen: Bruttokaltmiete + Heizkosten (Grenzwert) (AV-Wohnen Anlage 3) | L68: =IF(SUM(K33:K38)>0,"ohne Zuschläge","") ->  | O68: Heizmaterial-auswahl | P68: Gebäudeflächen-auswahl
C69: in m² | G69: pro m² | I69: =IF(K42<0,"abzgl. WW-Pausch.","") ->  | O69: ='EF1'!F65 -> 0 | P69: ='EF1'!F67 -> 0
B70: ="Datengrundlage: "&Grundeinstellungen!AG8 -> Datengrundlage: | G70: zu hoch / Grenzwert | I70: =IF(SUM(K47)>0,"","ê") -> ê | K70: Bruttokaltm. + Grenzwert
B71: Heizöl | C71: 100 - 250 | E71: > | H71: =IF(OR(AND(O$69=1,P$69=1),AND(O$69=6,O$71=F71)),"Ø","") ->  | I71: =F71*G$22+K42 -> 0 | J71: =IF(OR(AND(O$69=1,P$69=1),AND(O$69=6,O$71=F71)),"Ø","") ->  | K71: =IF(P$4=1,ROUNDUP(SUM(K$30,I71),0),SUM(K$30,I71)) -> 0 | L71: =IF(OR(AND(O$69=1,P$69=1),AND(O$69=6,O$71=F71)),"ß","") ->  | O71: =Einstellungen!D49 -> 0 | P71: höchster Heizkostengrenzwert
C72: 251 - 500 | E72: > | H72: =IF(OR(AND(O$69=1,P$69=2),AND(O$69=6,O$71=F72)),"Ø","") ->  | I72: =F72*G$22+K42 -> 0 | J72: =IF(OR(AND(O$69=1,P$69=2),AND(O$69=6,O$71=F72)),"Ø","") ->  | K72: =IF(P$4=1,ROUNDUP(SUM(K$30,I72),0),SUM(K$30,I72)) -> 0 | L72: =IF(OR(AND(O$69=1,P$69=2),AND(O$69=6,O$71=F72)),"ß","") -> 
C73: 501 - 1000 | E73: > | H73: =IF(OR(AND(O$69=1,P$69=3),AND(O$69=6,O$71=F73)),"Ø","") ->  | I73: =F73*G$22+K42 -> 0 | J73: =IF(OR(AND(O$69=1,P$69=3),AND(O$69=6,O$71=F73)),"Ø","") ->  | K73: =IF(P$4=1,ROUNDUP(SUM(K$30,I73),0),SUM(K$30,I73)) -> 0 | L73: =IF(OR(AND(O$69=1,P$69=2),AND(O$69=6,O$71=F73)),"ß","") -> 
C74: > 1000 | E74: > | H74: =IF(OR(AND(O$69=1,P$69=4),AND(O$69=6,O$71=F74)),"Ø","") ->  | I74: =F74*G$22+K42 -> 0 | J74: =IF(OR(AND(O$69=1,P$69=4),AND(O$69=6,O$71=F74)),"Ø","") ->  | K74: =IF(P$4=1,ROUNDUP(SUM(K$30,I74),0),SUM(K$30,I74)) -> 0 | L74: =IF(OR(AND(O$69=1,P$69=2),AND(O$69=6,O$71=F74)),"ß","") -> 
B76: Erdgas | C76: 100 - 250 | E76: > | H76: =IF(OR(AND(O$69=2,P$69=1),AND(O$69=6,O$71=F76)),"Ø","") ->  | I76: =F76*G$22+K42 -> 0 | J76: =IF(OR(AND(O$69=2,P$69=1),AND(O$69=6,O$71=F76)),"Ø","") ->  | K76: =IF(P$4=1,ROUNDUP(SUM(K$30,I76),0),SUM(K$30,I76)) -> 0 | L76: =IF(OR(AND(O$69=2,P$69=1),AND(O$69=6,O$71=F76)),"ß","") -> 
C77: 251 - 500 | E77: > | H77: =IF(OR(AND(O$69=2,P$69=2),AND(O$69=6,O$71=F77)),"Ø","") ->  | I77: =F77*G$22+K42 -> 0 | J77: =IF(OR(AND(O$69=2,P$69=2),AND(O$69=6,O$71=F77)),"Ø","") ->  | K77: =IF(P$4=1,ROUNDUP(SUM(K$30,I77),0),SUM(K$30,I77)) -> 0 | L77: =IF(OR(AND(O$69=2,P$69=2),AND(O$69=6,O$71=F77)),"ß","") -> 
C78: 501 - 1000 | E78: > | H78: =IF(OR(AND(O$69=2,P$69=3),AND(O$69=6,O$71=F78)),"Ø","") ->  | I78: =F78*G$22+K42 -> 0 | J78: =IF(OR(AND(O$69=2,P$69=3),AND(O$69=6,O$71=F78)),"Ø","") ->  | K78: =IF(P$4=1,ROUNDUP(SUM(K$30,I78),0),SUM(K$30,I78)) -> 0 | L78: =IF(OR(AND(O$69=2,P$69=3),AND(O$69=6,O$71=F78)),"ß","") -> 
C79: > 1000 | E79: > | H79: =IF(OR(AND(O$69=2,P$69=4),AND(O$69=6,O$71=F79)),"Ø","") ->  | I79: =F79*G$22+K42 -> 0 | J79: =IF(OR(AND(O$69=2,P$69=3),AND(O$69=6,O$71=F79)),"Ø","") ->  | K79: =IF(P$4=1,ROUNDUP(SUM(K$30,I79),0),SUM(K$30,I79)) -> 0 | L79: =IF(OR(AND(O$69=2,P$69=4),AND(O$69=6,O$71=F79)),"ß","") -> 
B81: Fernwärme | C81: 100 - 250 | E81: > | H81: =IF(OR(AND(O$69=3,P$69=1),AND(O$69=6,O$71=F81)),"Ø","") ->  | I81: =F81*G$22+K42 -> 0 | J81: =IF(OR(AND(O$69=3,P$69=1),AND(O$69=6,O$71=F81)),"Ø","") ->  | K81: =IF(P$4=1,ROUNDUP(SUM(K$30,I81),0),SUM(K$30,I81)) -> 0 | L81: =IF(OR(AND(O$69=3,P$69=1),AND(O$69=6,O$71=F81)),"ß","") -> 
C82: 251 - 500 | E82: > | H82: =IF(OR(AND(O$69=3,P$69=2),AND(O$69=6,O$71=F82)),"Ø","") ->  | I82: =F82*G$22+K42 -> 0 | J82: =IF(OR(AND(O$69=3,P$69=2),AND(O$69=6,O$71=F82)),"Ø","") ->  | K82: =IF(P$4=1,ROUNDUP(SUM(K$30,I82),0),SUM(K$30,I82)) -> 0 | L82: =IF(OR(AND(O$69=3,P$69=2),AND(O$69=6,O$71=F82)),"ß","") -> 
C83: 501 - 1000 | E83: > | H83: =IF(OR(AND(O$69=3,P$69=3),AND(O$69=6,O$71=F83)),"Ø","") ->  | I83: =F83*G$22+K42 -> 0 | J83: =IF(OR(AND(O$69=3,P$69=3),AND(O$69=6,O$71=F83)),"Ø","") ->  | K83: =IF(P$4=1,ROUNDUP(SUM(K$30,I83),0),SUM(K$30,I83)) -> 0 | L83: =IF(OR(AND(O$69=3,P$69=3),AND(O$69=6,O$71=F83)),"ß","") -> 
C84: > 1000 | E84: > | H84: =IF(OR(AND(O$69=3,P$69=4),AND(O$69=6,O$71=F84)),"Ø","") ->  | I84: =F84*G$22+K42 -> 0 | J84: =IF(OR(AND(O$69=3,P$69=4),AND(O$69=6,O$71=F84)),"Ø","") ->  | K84: =IF(P$4=1,ROUNDUP(SUM(K$30,I84),0),SUM(K$30,I84)) -> 0 | L84: =IF(OR(AND(O$69=3,P$69=4),AND(O$69=6,O$71=F84)),"ß","") -> 
B86: Wärmepumpe | C86: 100 - 250 | E86: > | H86: =IF(OR(AND(O$69=4,P$69=1),AND(O$69=6,O$71=F86)),"Ø","") ->  | I86: =IF(F86>0,F86*G$22+K42,0) -> 0 | J86: =IF(OR(AND(O$69=4,P$69=1),AND(O$69=6,O$71=F86)),"Ø","") ->  | K86: =IF(P$4=1,ROUNDUP(SUM(K$30,I86),0),SUM(K$30,I86)) -> 0 | L86: =IF(OR(AND(O$69=4,P$69=1),AND(O$69=6,O$71=F85)),"ß","") ->  | M86: =IF(F86=0,"Wärmepumpe","") -> Wärmepumpe
C87: 251 - 500 | E87: > | H87: =IF(OR(AND(O$69=4,P$69=2),AND(O$69=6,O$71=F87)),"Ø","") ->  | I87: =IF(F87>0,F87*G$22+K42,0) -> 0 | J87: =IF(OR(AND(O$69=4,P$69=2),AND(O$69=6,O$71=F87)),"Ø","") ->  | K87: =IF(P$4=1,ROUNDUP(SUM(K$30,I87),0),SUM(K$30,I87)) -> 0 | L87: =IF(OR(AND(O$69=4,P$69=2),AND(O$69=6,O$71=F87)),"ß","") ->  | M87: =IF(F86=0,"erst ab","") -> erst ab
C88: 501 - 1000 | E88: > | H88: =IF(OR(AND(O$69=4,P$69=3),AND(O$69=6,O$71=F88)),"Ø","") ->  | I88: =IF(F88>0,F88*G$22+K42,0) -> 0 | J88: =IF(OR(AND(O$69=4,P$69=3),AND(O$69=6,O$71=F88)),"Ø","") ->  | K88: =IF(P$4=1,ROUNDUP(SUM(K$30,I88),0),SUM(K$30,I88)) -> 0 | L88: =IF(OR(AND(O$69=4,P$69=3),AND(O$69=6,O$71=F88)),"ß","") ->  | M88: =IF(F86=0,"Dez. 2019","") -> Dez. 2019
C89: > 1000 | E89: > | H89: =IF(OR(AND(O$69=4,P$69=4),AND(O$69=6,O$71=F89)),"Ø","") ->  | I89: =IF(F89>0,F89*G$22+K42,0) -> 0 | J89: =IF(OR(AND(O$69=4,P$69=4),AND(O$69=6,O$71=F89)),"Ø","") ->  | K89: =IF(P$4=1,ROUNDUP(SUM(K$30,I89),0),SUM(K$30,I89)) -> 0 | L89: =IF(OR(AND(O$69=4,P$69=4),AND(O$69=6,O$71=F89)),"ß","") -> 
B91: Nachtspeicherheizung | C91: (Nachtstrom) | E91: =IF(G19>0,"für "&G19&IF(G19=1," Person"," Personen"),"") ->  | H91: =IF(O$69=5,"Ø","") ->  | I91: =Einstellungen!L94 -> 0 | J91: =IF(O$69=5,"Ø","") ->  | K91: =IF(P$4=1,ROUNDUP(SUM(K$30,I91),0),SUM(K$30,I91)) -> 0 | L91: =IF(O$69=5,"ß","") -> 
B94: Für Wohnungen mit anderen Heizarten nimmt Berlin als Grenzwert den Bezug auf den höchsten Grenzwert der erstgenannten 4 Heizungsarten
B95: unter Berücksichtigung der Gebäudefläche.
B98: SoLei-B hilft in der Beratung | L98: =IF(OR(AND(O$69=3,P$69=4),AND(O$69=4,O$71=F98)),"ß","") -> 
B99: ALG II, Kinderzuschlag, Wohngeld, Pfändungsgrenzen, BAföG: Rechnen Sie mit SoLei-B

Sheet ErgebnisDruck-Hk
A2: Start | B2: Angemessene Unterkunftskosten | G2: Ergebnis & Druck
P4: EF2 | Q4: Steuerung für Rücksprung
B5: Berechnung der angemessenen Miete | D5: für Berlin
B7: nach Produktmethode | K7: ="gem. AV-Wohnen vom "&TEXT(Werte!E3,"TT.MM.JJJJ")&" (gültig ab "&TEXT(Werte!G3,"TT.MM.JJJJ")&")" -> gem. AV-Wohnen vom 13.12.2022 (gültig ab 01.10.2023)
B9: 1. In einem ersten Schritt wird die abstrakt angemessene Wohnungsgröße und der Wohnungsstandard bestimmt.
B10: 2. In einem zweiten Schritt wird festgelegt, auf welchen räumlichen Vergleichsmaßstab die weiteren Prüfungsschritte abzustellen sind.
B12: ="zu 1.: 1 Pers.: "&Werte!CC3&" m², 2 Pers. "&Werte!CD3&" m², 3 Pers. "&Werte!CF3&" m², 4 Pers. "&Werte!CG3&" m², 5 Pers. "&Werte!CH3&" m², je weitere Pers.: "&Werte!CI3&" m²; einfache + mittlere Wohnlage" -> zu 1.: 1 Pers.: 50 m², 2 Pers. 65 m², 3 Pers. 80 m², 4 Pers. 90 m², 5 Pers. 102 m², je weitere Pers.: 12 m²; einfache + mittlere Wohnlage
B13: zu 2.: dieser Vergleichsmaßstab ist ganz Berlin
B15: Es wird das Produkt aus angemessener Wohnfläche x Nettokaltmiete/ m² ermittelt. Hinzu kommen die Betriebskosten/ m² x Wohnfläche.
B16: Zur Bruttokaltmiete kommen die tatsächlichen Heizkosten, die mit dem angem. Heizkostengrenzwert verglichen und ggf. darauf begrenzt werden.
B17: =IF('Grundberechnung-Hk'!H99=0,"Es erfolgt ein Abzug für Warmwasser entsprechend der Personenzahl der BG, sobald dieser Wert errechnet ist.","Ist in den Heizkosten Warmwasser enthalten, wird davon abgezogen für "&G19&" Pers.: "&'Grundberechnung-Hk'!C135&" €") -> Es erfolgt ein Abzug für Warmwasser entsprechend der Personenzahl der BG, sobald dieser Wert errechnet ist.
A19: Û | B19: Personen der Bedarfsgemeinschaft (zzgl. Vollzeitpflegekinder) | G19: =SUM('EF1'!K8) -> 0 | H19: =IF(G19=1," Person"," Personen") -> Personen
B20: daraus ergibt sich eine maximale Wohnfläche von | G20: ='Grundberechnung-Hk'!C28 -> 0 | H20: m²
B21: Karenzzeit/ weiterer Raumbedarf (z.B. d. Behinderung/ Umgangsrecht) | G21: ='Grundberechnung-Hk'!C29 -> 0 | H21: m²
G22: ='Grundberechnung-Hk'!C30 -> 0 | H22: m²
I23: =IF('Grundberechnung-Hk'!$D57=1,"kein sozialer","") ->  | K23: =IF('Grundberechnung-Hk'!$D57=1,"im sozialen","") -> 
A24: Û | B24: Bruttokaltmiete | I24: =IF('Grundberechnung-Hk'!$D57=1,"Wohnungsbau","") ->  | K24: =IF('Grundberechnung-Hk'!$D57=1,"Wohnungsbau","") -> 
B26: ="(Datengrundlage: Mietspiegel "&Werte!N3&") aus gewichtetem arithm. Mittelwert aller berliner Wohnungen einfachen + mittl. Standards" -> (Datengrundlage: Mietspiegel 2023) aus gewichtetem arithm. Mittelwert aller berliner Wohnungen einfachen + mittl. Standards
B27: angemessene Nettokaltmiete | D27: ="Nettokaltmiete "&FIXED('Grundberechnung-Hk'!C40,2)&" / m²" -> Nettokaltmiete 0,00 / m² | G27: =FIXED('Grundberechnung-Hk'!C40,2)&" € x "&IF(G20>0,'Grundberechnung-Hk'!C30,0)&" m² =" -> 0,00 € x 0 m² = | I27: =IF('Grundberechnung-Hk'!$D57=1,'Grundberechnung-Hk'!G40,"") ->  | K27: ='Grundberechnung-Hk'!G40 -> 0
B28: angemessene Betriebskosten | D28: ="Betriebskosten "&FIXED('Grundberechnung-Hk'!C49,2)&" / m²" -> Betriebskosten 0,00 / m² | G28: =FIXED('Grundberechnung-Hk'!C49,2)&" € x "&IF(G20>0,'Grundberechnung-Hk'!C30,0)&" m² =" -> 0,00 € x 0 m² = | I28: =IF('Grundberechnung-Hk'!$D57=1,'Grundberechnung-Hk'!G49,"") ->  | K28: ='Grundberechnung-Hk'!G49 -> 0
F30: Richtwert (bruttokalt) | H30: Summe: | I30: =IF('Grundberechnung-Hk'!D57=1,K30,"") ->  | K30: ='Grundberechnung-Hk'!G53 -> 0 | L30: =IF(SUM(K30)>0,"Richtwert","") -> 
B31: Zuschläge, falls individuell angemessen:
A32: Û | B32: zzgl. 10 % Zuschlag für Wohnungen, die im sozialen Wohnungsbau (1. Förderweg) errichtet wurden (3.2 AV-Wohnen) | K32: ='Grundberechnung-Hk'!G57 -> 0 | L32: =IF(SUM(K32)>0,"10% von Richtwert "&FIXED(K30,2),"") -> 
A33: Û | B33: ="zzgl. "&'Grundberechnung-Hk'!D60&" % bei bestehender/ drohender Wohnungslosigkeit, um hohe Unterbringungskosten" -> zzgl. 20 % bei bestehender/ drohender Wohnungslosigkeit, um hohe Unterbringungskosten | I33: =IF(AND('Grundberechnung-Hk'!D$57=1,'Grundberechnung-Hk'!J61>0),'Grundberechnung-Hk'!J61,"") ->  | K33: =IF('Grundberechnung-Hk'!G61>0,'Grundberechnung-Hk'!G61,0) -> 0 | L33: =IF(SUM(K33)>0,"20% von Richtwert "&FIXED(K30,2),"") -> 
B34: zu vermeiden | C34: =IF('Grundberechnung-Hk'!D63=1,"(hier Bestandsschutz aufgrund einer früheren Bewilligung)","") -> 
A35: Û | B35: zzgl. Klimabonus | I35: =IF('Grundberechnung-Hk'!$D57=1,'Grundberechnung-Hk'!G65,"") ->  | K35: ='Grundberechnung-Hk'!G171 -> 0 | L35: =IF(SUM(K35)>0,"Pauschalbetrag","") -> 
H36: =IF(SUM(I36,K36)>0,"Zwischensumme:","") ->  | I36: =IF(AND('Grundberechnung-Hk'!$D57=1,SUM(I37)>0),'Grundberechnung-Hk'!I68,"") ->  | K36: =IF(SUM(K37)>0,SUM(K30,K33,K32,K35),"") -> 
A37: Û | B37: ="zzgl. "&'Grundberechnung-Hk'!D68&" % bei bei Härtefällen (z.B. alleinerziehend, Wohndauer über 10 J. u.a.; 3.5.1 AV-Wohnen)" -> zzgl. 10 % bei bei Härtefällen (z.B. alleinerziehend, Wohndauer über 10 J. u.a.; 3.5.1 AV-Wohnen) | I37: =IF(AND('Grundberechnung-Hk'!D$57=1,Grundberechnung!J69>0),'Grundberechnung-Hk'!J69,"") ->  | K37: =IF('Grundberechnung-Hk'!D69=1,'Grundberechnung-Hk'!G69,0) -> 0 | L37: =IF(SUM(K37)>0,"10% von Zwischensumme","") -> 
H38: angemessene Bruttokaltmiete ohne Heizkosten: | I38: =IF('Grundberechnung-Hk'!D57=1,'Grundberechnung-Hk'!J76,"") ->  | K38: ='Grundberechnung-Hk'!G76 -> 0
A39: Û | B39: Heizkosten
D40: =IF('EF1'!F65=5,"","Heizkosten /kWh "&FIXED('Grundberechnung-Hk'!C131,2)&" € / kWh") -> Heizkosten /kWh 0,00 € / kWh | G40: =IF('EF1'!F65=5,"Grenzwert für Nachtspeicherheizung","") ->  | K40: Heizkosten
B41: ="nach Auswahl ("&'EF1'!AH48&")" -> nach Auswahl (Heizart: ?) | I41: =IF('EF1'!F65=5,"pauschal",FIXED('Grundberechnung-Hk'!H114,2)&" kWh x "&Grundberechnung!E103&" m² Jahr x 1 kWh in €/ Abrechnungszeitraum") -> 0,00 kWh x 0 m² Jahr x 1 kWh in €/ Abrechnungszeitraum | K41: ='Grundberechnung-Hk'!C125 -> 0
B42: ='Grundberechnung-Hk'!H135&" für "&G19&" "&H19 -> Abzug Warmwasser für 0 Personen | H42: =IF(K42<0,"abzüglich:","") ->  | K42: ='Grundberechnung-Hk'!C135 -> 0
B43: Abzug (vom Heizkostengrenzwert) des Klimabonus: | H43: =IF(K43<0,"abzüglich:","") ->  | K43: ='Grundberechnung-Hk'!C126 -> 0
B44: (Angemessene Miete incl. Klimabonus abzgl. tatsächl. Miete) | H44: Heizkostengrenzwert: | K44: ='Grundberechnung-Hk'!G149 -> 0
E45: =IF(SUM(G45)>0,"tatsächliche Heizkosten:","") ->  | G45: =IF('Grundberechnung-Hk'!C144>0,'Grundberechnung-Hk'!C144,"") -> 
H46: =IF(AND(G45>0,K44>G45),"(Begrenzung auf tatsächliche Heizkosten)","") -> 
H47: =IF(K47>0,"anerkannte Heizkosten:","Heizkosten:") -> Heizkosten: | I47: =IF('Grundberechnung-Hk'!$D57=1,'Grundberechnung-Hk'!G149,"") ->  | K47: ='Grundberechnung-Hk'!G149 -> 0
B48: =IF(K41>0,IF(K44=K47,"Es wird mit dem Heizkostengrenzwert und nicht mit den tatsächl. Heizkosten gerechnet.",IF(H46=K47,"Es liegen individuelle Gründe vor, um mit den tatsächlichen Heizkosten und nicht mit dem Heizkostengrenzwert zu rechnen.","")),"") -> 
B49: ='Grundberechnung-Hk'!B134 -> 0 kWh x 0 m² = 0 kWh / Jahr x 0,00 €
H50: =IF(SUM(K47)>0,"angemessene (Gesamt-) Miete mit Heizkosten","angemessene Wohnungsmiete ohne Heizkosten")&":" -> angemessene Wohnungsmiete ohne Heizkosten: | I50: =IF('Grundberechnung-Hk'!D57=1,'Grundberechnung-Hk'!J154,"") ->  | K50: ='Grundberechnung-Hk'!G153 -> 0
B53: ="zzgl. "&'Grundberechnung-Hk'!D78&" % zur Umzugsvermeidung (6.1.1 AV-Wohnen)" -> zzgl. 15 % zur Umzugsvermeidung (6.1.1 AV-Wohnen) | I53: =IF(AND('Grundberechnung-Hk'!D$57=1,'Grundberechnung-Hk'!J80>0),'Grundberechnung-Hk'!J80,"") ->  | K53: =IF('Grundberechnung-Hk'!F79=1,'Grundberechnung-Hk'!C80,"") ->  | L53: =IF(SUM(K53)>0,"15% v. Richtwert"&IF(SUM(K32)>0," (+ soz. WB","")&")","") -> 
H54: =IF(SUM(I53,K53)>0,"Prüfgrenze für Kostensenkungsverfahren (gerundet):","") ->  | I54: =IF(SUM(I53)>0,'Grundberechnung-Hk'!J176,"") ->  | K54: =IF(SUM(I53,K53)>0,'Grundberechnung-Hk'!G176,"") ->  | L54: =IF(SUM(I54,K54)>0,"gerundet","") -> 
B56: Heizkosten- Ausgangswerte: | G56: pro Monat
D57: tatsächlicher Verbrauch kwh/ Abrechnungszeitraum: | E57: ='Grundberechnung-Hk'!C106 -> 0 | G57: =E57/12 -> 0
D58: indiv. / angemessene kWh / Jahr: | E58: ='Grundberechnung-Hk'!C117 -> 0 | G58: =E58/12 -> 0 | I58: angem. ... m² x …. max. Grenzwert d. Brennstoffart
D59: kwH Abzug für Warmwasser/ Jahr: | E59: ='Grundberechnung-Hk'!C128 -> 0 | G59: =E59/12 -> 0 | I59: angem. ... m² x …. max. Grenzwert d. Brennstoffart WW
D60: ggf. Abzug der Energiepauschale: | G60: ='Grundberechnung-Hk'!C126 -> 0 | I60: pauschal n. Personenzahl d. Bedarfsgemeinschaft
D61: Kosten einer kWh incl. Heiznebenkosten: | E61: ='Grundberechnung-Hk'!C131 -> 0 | I61: ='Grundberechnung-Hk'!I119 -> 0,00 € / 0 kWh = 0,00 €/kWh (gerundet)
B63: Personen in Bedarfsgemeinschaft | C63: Wohnfläche | E63: angem. Miet- | G63: Betriebskosten | I63: Bruttokaltmiete | K63: zuzüglich der ange-
C64: in m² | E64: preis pro m² | G64: pro m² | I64: gesamt | K64: messenen Heizkosten
B65: 1 Person | C65: =Werte!CC3 -> 50 | D65: x | E65: =Werte!J3 -> 7.21 | F65: + | G65: =Werte!P$3 -> 1.77 | H65: =IF(G19=1,"Ø","") ->  | I65: =SUM(C65*(E65+G65)) -> 449 | K65: =IF(AND(G$19=1,SUM(G$45)>0),K$47,"~") -> ~ | L65: =IF(G$19=1,"ß","") -> 
B66: 2 Personen | C66: =Werte!CD3 -> 65 | D66: x | E66: =Werte!K3 -> 7.21 | F66: + | G66: =Werte!P$3 -> 1.77 | H66: =IF(G19=2,"Ø","") ->  | I66: 583.7 | K66: =IF(AND(G$19=2,SUM(G$45)>0),K$47,"?") -> ? | L66: =IF(G$19=2,"ß","") -> 
B67: 3 Personen | C67: =Werte!CF3 -> 80 | D67: x | E67: =Werte!L3 -> 6.59 | F67: + | G67: =Werte!P$3 -> 1.77 | H67: =IF(G19=3,"Ø","") ->  | I67: 668.8 | K67: =IF(AND(G$19=3,SUM(G$45)>0),K$47,"~") -> ~ | L67: =IF(G$19=3,"ß","") -> 
B68: 4 Personen | C68: =Werte!CG3 -> 90 | D68: x | E68: =Werte!L3 -> 6.59 | F68: + | G68: =Werte!P$3 -> 1.77 | H68: =IF(G19=4,"Ø","") ->  | I68: 752.4 | K68: =IF(AND(G$19=4,SUM(G$45)>0),K$47,"~") -> ~ | L68: =IF(G$19=4,"ß","") -> 
B69: 5 Personen | C69: =Werte!CH3 -> 102 | D69: x | E69: =Werte!$M$3 -> 7.09 | F69: + | G69: =Werte!P$3 -> 1.77 | H69: =IF(G19>=5,"Ø","") ->  | I69: 903.72 | K69: =IF(AND(G$19=5,SUM(G$45)>0),K$47,"~") -> ~ | L69: =IF(G$19>=5,"ß","") -> 
B70: jede weitere Person | C70: =Werte!CI3 -> 12 | D70: x | E70: =Werte!$M$3 -> 7.09 | F70: + | G70: =Werte!P$3 -> 1.77 | H70: =IF(G19>5,"Ø","") ->  | I70: 106.32 | J70: =IF(G19>5,G19-5,"") ->  | K70: ? | L70: =IF(G$19>5,"ß","") -> 
I71: =IF(SUM(K33:K38)>0,"ohne Zuschläge","") ->  | O71: Heizmaterial-
B73: Brennstoffe | C73: Personenanzahl | E73: kWh | G73: pro Jahr in kWh | I73: pro Monat | K73: Abschlag f. Warmwasser | O73: auswahl | P73: Personenzahl
C74: der Bedarfsgemeinschaft | E74: m² / Jahr | G74: m.WW | I74: m.WW | K74: pro Jahr | O74: ='EF1'!F65 -> 0 | P74: ='EF1'!K8 -> 0
C75: 1 Person, 50 m² | D75: > | E75: =Werte!EY3 -> 238 | G75: =Werte!EZ$3 -> 11900 | H75: =IF(OR(AND(O$74>0,O74<4,P$74=1),AND(O$74=6,P74=1)),"Ø","") ->  | I75: =G75/12 -> 991.6666667 | J75: =IF(OR(AND(O$74>0,O74<4,P$74=1),AND(O$74=6,P74=1)),"Ø","") ->  | K75: =Werte!FG$3 -> 1200 | L75: =IF(OR(AND(O$74>0,O$74<4,P$74=1),AND(O$74=6,P74=1)),"ß","") ->  | O75: =Einstellungen!D49 -> 0 | P75: höchster Heizkostengrenzwert | R75: < löschen?
C76: 2 Personen, 65 m² | D76: > | E76: =Werte!EY3 -> 238 | G76: =Werte!FA$3 -> 15500 | H76: =IF(OR(AND(O$74>0,O74<4,P$74=2),AND(O$74=6,P74=2)),"Ø","") ->  | I76: =G76/12 -> 1291.666667 | J76: =IF(OR(AND(O$74>0,O74<4,P$74=2),AND(O$74=6,P74=2)),"Ø","") ->  | K76: =Werte!FH$3 -> 1560 | L76: =IF(OR(AND(O$74>0,O$74<4,P$74=2),AND(O$74=6,P74=2)),"ß","") -> 
B77: Heizöl | C77: 3 Personen, 80 m² | D77: > | E77: =Werte!EY3 -> 238 | G77: =Werte!FB$3 -> 19000 | H77: =IF(OR(AND(O$74>0,O74<4,P$74=3),AND(O$74=6,P74=3)),"Ø","") ->  | I77: 1583.333333 | J77: =IF(OR(AND(O$74>0,O74<4,P$74=3),AND(O$74=6,P74=3)),"Ø","") ->  | K77: =Werte!FI$3 -> 1920 | L77: =IF(OR(AND(O$74>0,O$74<4,P$74=3),AND(O$74=6,P74=3)),"ß","") -> 
B78: Erdgas | C78: 4 Personen, 90 m² | D78: > | E78: =Werte!EY3 -> 238 | G78: =Werte!FC$3 -> 21400 | H78: =IF(OR(AND(O$74>0,O74<4,P$74=4),AND(O$74=6,P74=4)),"Ø","") ->  | I78: 1783.333333 | J78: =IF(OR(AND(O$74>0,O74<4,P$74=4),AND(O$74=6,P74=4)),"Ø","") ->  | K78: =Werte!FJ$3 -> 2160 | L78: =IF(OR(AND(O$74>0,O$74<4,P$74=4),AND(O$74=6,P74=4)),"ß","") -> 
B79: Fernwärme | C79: 5 Personen, 102 m² | D79: > | E79: =Werte!EY3 -> 238 | G79: =Werte!FD$3 -> 24300 | H79: =IF(OR(AND(O$74>0,O74<4,P$74>=5),AND(O$74=6,P74>=5)),"Ø","") ->  | I79: 2025 | J79: =IF(OR(AND(O$74>0,O74<4,P$74>=5),AND(O$74=6,P74>=5)),"Ø","") ->  | K79: =Werte!FK$3 -> 2448 | L79: =IF(OR(AND(O$74>0,O$74<4,P$74>=5),AND(O$74=6,P74>=5)),"ß","") ->  | P79: Grenzwerte für "andere Heizart"
C80: jede weitere Person 12 m² | D80: > | E80: =Werte!EY3 -> 238 | G80: =Werte!FE$3 -> 2900 | H80: =IF(OR(AND(O$74>0,O74<4,P$74>5),AND(O$74=6,P74>5)),"Ø","") ->  | I80: 241.6666667 | J80: =IF(OR(AND(O$74>0,O74<4,P$74>5),AND(O$74=6,P74>5)),"Ø","") ->  | K80: =Werte!FL$3 -> 288 | L80: =IF(OR(AND(O$74>0,O$74<4,P$74>5),AND(O$74=6,P74>5)),"ß","") ->  | O80: kWh/m²/Jahr | P80: max-Wert/Jahr | Q80: max-Wert/Monat | R80: Abschlag WW/ Jahr
C82: 1 Person, 50 m² | D82: > | E82: =Werte!FN3 -> 94 | G82: =Werte!FO$3 -> 4700 | H82: =IF(OR(AND(O$74=4,P$74=1),AND(O$74=6,P74=1)),"Ø","") ->  | I82: =G82/12 -> 391.6666667 | J82: =IF(OR(AND(O$74=4,P$74=1),AND(O$74=6,P74=1)),"Ø","") ->  | K82: =Werte!FV$3 -> 480 | L82: =IF(OR(AND(O$74=4,P$74=1),AND(O$74=6,P74=1)),"ß","") ->  | O82: =IF(AND(P$74=1,O$74=6),MAX(E75,E82,E89),0) -> 0 | P82: =IF(AND(P$74=1,O$74=6),MAX(G75,G82,G89),0) -> 0 | Q82: =IF(AND(P$74=1,O$74=6),MAX(I75,I82,I89),0) -> 0 | R82: =IF(AND(P$74=1,O$74=6),MAX(K75,K82,K89),0) -> 0
C83: 2 Personen, 65 m² | D83: > | E83: =Werte!FN3 -> 94 | G83: =Werte!FP$3 -> 6100 | H83: =IF(OR(AND(O$74=4,P$74=2),AND(O$74=6,P74=2)),"Ø","") ->  | I83: 508.3333333 | J83: =IF(OR(AND(O$74=4,P$74=2),AND(O$74=6,P74=2)),"Ø","") ->  | K83: =Werte!FW$3 -> 624 | L83: =IF(OR(AND(O$74=4,P$74=2),AND(O$74=6,P74=2)),"ß","") ->  | O83: =IF(AND(P$74=2,O$74=6),MAX(E76,E83,E90),0) -> 0 | P83: =IF(AND(P$74=2,O$74=6),MAX(G76,G83,G90),0) -> 0 | Q83: =IF(AND(P$74=2,O$74=6),MAX(I76,I83,I90),0) -> 0 | R83: =IF(AND(P$74=2,O$74=6),MAX(K76,K83,K90),0) -> 0
B84: Wärmepumpe | C84: 3 Personen, 80 m² | D84: > | E84: =Werte!FN3 -> 94 | G84: =Werte!FQ$3 -> 7500 | H84: =IF(OR(AND(O$74=4,P$74=3),AND(O$74=6,P74=3)),"Ø","") ->  | I84: 625 | J84: =IF(OR(AND(O$74=4,P$74=3),AND(O$74=6,P74=3)),"Ø","") ->  | K84: =Werte!FX$3 -> 768 | L84: =IF(OR(AND(O$74=4,P$74=3),AND(O$74=6,P74=3)),"ß","") ->  | O84: =IF(AND(P$74=3,O$74=6),MAX(E77,E84,E91),0) -> 0 | P84: =IF(AND(P$74=3,O$74=6),MAX(G77,G84,G91),0) -> 0 | Q84: =IF(AND(P$74=3,O$74=6),MAX(I77,I84,I91),0) -> 0 | R84: =IF(AND(P$74=3,O$74=6),MAX(K77,K84,K91),0) -> 0
C85: 4 Personen, 90 m² | D85: > | E85: =Werte!FN3 -> 94 | G85: =Werte!FR$3 -> 8500 | H85: =IF(OR(AND(O$74=4,P$74=4),AND(O$74=6,P74=4)),"Ø","") ->  | I85: 708.3333333 | J85: =IF(OR(AND(O$74=4,P$74=4),AND(O$74=6,P74=4)),"Ø","") ->  | K85: =Werte!FY$3 -> 864 | L85: =IF(OR(AND(O$74=4,P$74=4),AND(O$74=6,P74=4)),"ß","") ->  | O85: =IF(AND(P$74=4,O$74=6),MAX(E78,E85,E92),0) -> 0 | P85: =IF(AND(P$74=4,O$74=6),MAX(G78,G85,G92),0) -> 0 | Q85: =IF(AND(P$74=4,O$74=6),MAX(I78,I85,I92),0) -> 0 | R85: =IF(AND(P$74=4,O$74=6),MAX(K78,K85,K92),0) -> 0
C86: 5 Personen, 102 m² | D86: > | E86: =Werte!FN3 -> 94 | G86: =Werte!FS$3 -> 9600 | H86: =IF(OR(AND(O$74=4,P$74>=5),AND(O$74=6,P74>=5)),"Ø","") ->  | I86: 800 | J86: =IF(OR(AND(O$74=4,P$74>=5),AND(O$74=6,P74>=5)),"Ø","") ->  | K86: =Werte!FZ$3 -> 979 | L86: =IF(OR(AND(O$74=4,P$74>=5),AND(O$74=6,P74>5)),"ß","") ->  | O86: =IF(AND(P$74=5,O$74=6),MAX(E79,E86,E93),0) -> 0 | P86: =IF(AND(P$74=5,O$74=6),MAX(G79,G86,G93),0) -> 0 | Q86: =IF(AND(P$74=5,O$74=6),MAX(I79,I86,I93),0) -> 0 | R86: =IF(AND(P$74=5,O$74=6),MAX(K79,K86,K93),0) -> 0
C87: jede weitere Person 12 m² | D87: > | E87: =Werte!FN3 -> 94 | G87: =Werte!FT$3 -> 1100 | H87: =IF(OR(AND(O$74=4,P$74>5),AND(O$74=6,P74>5)),"Ø","") ->  | I87: 91.66666667 | J87: =IF(OR(AND(O$74=4,P$74>5),AND(O$74=6,P74>5)),"Ø","") ->  | K87: =Werte!GA$3 -> 115 | L87: =IF(OR(AND(O$74=4,P$74>5),AND(O$74=6,P74>5)),"ß","") ->  | O87: =SUM(O82:O86) -> 0 | P87: =SUM(P82:P86) -> 0 | Q87: =SUM(Q82:Q86) -> 0 | R87: =SUM(R82:R86) -> 0
C89: 1 Person, 50 m² | D89: > | E89: =Werte!GC3 -> 120 | G89: =Werte!GD$3 -> 6000 | H89: =IF(OR(AND(O$74=5,P$74=1),AND(O$74=6,P74=1)),"Ø","") ->  | I89: 500 | L89: =IF(OR(AND(O$74=5,P$74=1),AND(O$74=6,P74=1)),"ß","") ->  | P89: Grenzwertanzeige bis 5 Personen
C90: 2 Personen, 65 m² | D90: > | E90: =Werte!GC3 -> 120 | G90: =Werte!GE$3 -> 7800 | H90: =IF(OR(AND(O$74=5,P$74=2),AND(O$74=6,P74=2)),"Ø","") ->  | I90: 650 | K90: Keine | L90: =IF(OR(AND(O$74=5,P$74=2),AND(O$74=6,P74=2)),"ß","") -> 
B91: Nachtspeicherheizung | C91: 3 Personen, 80 m² | D91: > | E91: =Werte!GC3 -> 120 | G91: =Werte!GF$3 -> 9600 | H91: =IF(OR(AND(O$74=5,P$74=3),AND(O$74=6,P74=3)),"Ø","") ->  | I91: 800 | K91: dezentrale | L91: =IF(OR(AND(O$74=5,P$74=3),AND(O$74=6,P74=3)),"ß","") -> 
B92: =IF(AND('EF1'!AE6=1,'EF1'!F65=5)," Kein Abzug der WW-Pau-","") ->  | C92: 4 Personen, 90 m² | D92: > | E92: =Werte!GC3 -> 120 | G92: =Werte!GG$3 -> 10800 | H92: =IF(OR(AND(O$74=5,P$74=4),AND(O$74=6,P74=4)),"Ø","") ->  | I92: 900 | K92: Warmwasser- | L92: =IF(OR(AND(O$74=5,P$74=4),AND(O$74=6,P74=4)),"ß","") -> 
B93: =IF(AND('EF1'!AE6=1,'EF1'!F65=5)," schale bei Nacht-","") ->  | C93: 5 Personen, 102 m² | D93: > | E93: =Werte!GC3 -> 120 | G93: =Werte!GH$3 -> 12240 | H93: =IF(OR(AND(O$74=5,P$74>=5),AND(O$74=6,P74>=5)),"Ø","") ->  | I93: 1020 | K93: versorgung | L93: =IF(OR(AND(O$74=5,P$74>=5),AND(O$74=6,P74>=5)),"ß","") -> 
B94: =IF(AND('EF1'!AE6=1,'EF1'!F65=5)," speicherheizung !","") ->  | C94: jede weitere Person 12 m² | D94: > | E94: =Werte!GC3 -> 120 | G94: =Werte!GI$3 -> 1440 | H94: =IF(OR(AND(O$74=5,P$74>5),AND(O$74=6,P74>5)),"Ø","") ->  | I94: 120 | L94: =IF(OR(AND(O$74=5,P$74>5),AND(O$74=6,P74>5)),"ß","") -> 
B97: Für Wohnungen mit anderen Heizarten nimmt Berlin als Grenzwert den Bezug auf den höchsten Grenzwert der erstgenannten 3 Heizungsarten.
B98: =IF(SUM(E98:I98)>0,"Andere Heizart","") ->  | E98: =IF(O74=6,O87,"") ->  | G98: =IF(O74=6,P87,"") ->  | I98: =IF(O74=6,Q87,"") ->  | K98: =IF(AND(R87>0,O74=6),R87,"") -> 
B101: SoLei-B hilft in der Beratung | L101: =IF(OR(AND(O$74=3,P$74=4),AND(O$74=4,O$75=F101)),"ß","") -> 
B102: Bürgergeld, Kinderzuschlag, Wohngeld, Pfändungsgrenzen, BAföG: Rechnen Sie mit SoLei-B
B105: Sonderregel | E105: Mietgrenze nach Wohngeldtabelle
B107: zur Berechnung der angem. Miete ist möglicherweise anzuwenden, wenn nach d. Rechtsprechung des Bundessozialgerichtes in seinen Urteilen vom
B108: vom 30.1.2019 - B14 AS 24/18 R | D108: vom 03.09.2020 - B14 AS 37/19 R | I108: vom 17.09.2020 - B4 AS 22/20 R
B109: festgestellt wird, dass d. notwenige kommunale schlüssige Konzept nicht den Vorgaben des BSG dazu entspricht. Dieses muss:
B111: gewährleisten, dass die aktuellen Verhältnisse des Mietwohnungsmarkts im Vergleichsraum dem Angemessenheitswert zugrunde liegen
B112: sowie eine realitätsgerechte Ermittlung stattgefunden hat. | G112: Trotz Methodenvielfalt, muss es Angaben enthalten zu:
B114: l Größe und Standard (Ausstattung, Lage, Bausubstanz entspricht einfachen und grundlegenden Bedürfnissen)
B115: l Angaben über Art und Weise der Datenerhebung
B116: l Angaben über Vergleichszeitraum der Datenerhebung (keine gesetzl. Vorgaben, i.d.R. 12 Monate)
B117: l Repräsentativität und Validität der Datenauswertung
B118: l Vermeidung von sozialen Brennpunkten durch soziale Segregation
B119: l Bergründung zur Ermittlung der Angemessenheitswerte aus den Daten
B121: Ist das Konzept nicht schlüssig, muss der Kommune eine Nachbesserungsmöglichkeit eingeräumt werden.
B122: Die Summe aus Kaltmiete und Betriebskosten kann nur dann einen zutreffend gebildeten abstrakten Angemessenheitswert darstellen, wenn
B123: in Betracht kommender Wohnraum zu diesem Preis auch tatsächlich in nennenswerter Zahl auf dem Markt allgemein zugänglich angeboten wird
C124: (Verfügbarkeitsmerkmal)
B125: Die Beweislast dafür liegt nicht beim Leistungsberechtigten, sondern beim Jobcenter oder dem Gericht (Umkehr der Beweislast).
B126: Prüfungsmaßstab für die generelle Verfügbarkeit von Wohnungen ist die Summe aus Nettokaltmiete + Betriebskosten
B128: Nur soweit es kein schlüssiges Konzept gibt, ist es Sache der Gerichte, selbst Angemessenheitswerte zu bestimmen.
B129: Sieht das Gericht selber aber keine Möglichkeit im Rahmen der einzelfallbezogenen Amtsermittlung abstrakte Angemessenheitswerte festzulegen,
B130: bleibt d. Rückgriff auf die Beträge aus § 12 WoGG zzgl. eines Zuschlages von 10%.
B132: Dann sieht die Berechnung der angemessenen Miete wie folgt aus: | P132: ='EF1'!AE58 -> 0 | Q132: Berechnung mit Mietgrenze nach WoGG
C134: Personenzahl der BG: | E134: =G19 -> 0 | G134: Mietniveaustufe: | I134: =Einstellungen!D85 -> 4
A135: EF1 < | C135: Bruttokaltmietenwert nach Wohngeldtabelle: | E135: =IF('EF1'!AE58=1,'Mietgrenze WoGG'!O1,0) -> 0 | G135: für Berlin (WoGG) | K135: =IF('Mietgrenze WoGG'!AD83=0,"incl. Klimakomponente","") -> incl. Klimakomponente
C136: Zuschlag bis zu 10%: | E136: =IF('EF1'!AE60=1,'ErgebnisDruck-Hk'!E135/100*Werte!EB3,0) -> 0 | G136: ='EF1'!D36 -> 
C137: anerkannte Heizkosten: | E137: =IF(E135>0,K47,0) -> 0
C138: Gesamtwert der angemessenen Miete: | E138: =SUM(E135:E137) -> 0 | G138: ='EF1'!$D$34 -> 
B141: Aus einem Artikel von Richter Dr. Stefan Schifferdecker am Sozialgericht Berlin in "info also 6/21" zum Thema 'Wohnraumverfügbarkeit' ergibt sich,
B142: dass dieser (er hatte das vom BSG in seinen Urteilen von 2010 für richtig gehaltene schlüssige Konzept zur Produktmethode entwickelt), das aktuelle
B143: schlüssige Konzept d. Landes Berlin hinsichtlich der Verfügbarkeit von Wohnungen als dafür ungeeignet ansieht.
B145: Da es somit kein schlüssiges Konzept gibt, dass das neue Verfügbarkeitsmerkmal richtig umsetzt, müssen die Richter am Sozialgericht Berlin
B146: selber im Rahmen Ihrer Amtsermittlung entscheiden.
B147: Kann im Rahmen der notwendigen individuellen Prüfung und auch aufgrund fehlender Nachbesserungen des Landes Berlin keine angemessene
B148: Miete ermittelt werden, die eine Anmietung von Wohnungen des unteren Marktsegments ermöglicht, kann nach einem gestuften Verfahren im
B149: Einzelfall auf die Werte der Wohngeldtabelle n. § 12 WGG zzgl. eines Zuschlages bis zu 10% zurückgegriffen werden.
B151: Genau das berechnet SoLei-B an dieser Stelle.

Sheet Darstellung
A2: Start | B2: Leistungskürzung bei Wohnkosten?
Q4: ='EF1'!$AE$52 -> 0 | R4: [1] Wirtschaftlichkeitsvergleich aktiviert | V4: ErgebnisDruck-Hk | W4: Steuerung für Rücksprung
F5: =IF('Grundberechnung-Hk'!G57>0,'Grundberechnung-Hk'!G57,"") ->  | G5: =IF('Grundberechnung-Hk'!G61>0,'Grundberechnung-Hk'!G61,"") ->  | H5: =IF('Grundberechnung-Hk'!G65>0,'Grundberechnung-Hk'!G65,"") ->  | I5: =IF('Grundberechnung-Hk'!G69>0,'Grundberechnung-Hk'!G69,"") -> 
A6: Û | C6: =IF('Grundberechnung-Hk'!D6>0,'Grundberechnung-Hk'!D27&" "&'Grundberechnung-Hk'!E27,"") ->  | D6: tatsächliche | E6: Vergleichswerte | G6: Bestandsschutz | H6: Klimabonus | I6: individuelle bzw. | J6: Umzugs- | K6: Mietkosten | L6: Anmerkungen
D7: Kosten | E7: ("abstrakte Angemessenheit") | G7: + 20% wohnungslos | H7: Pauschale | I7: konkrete | J7: vermeidungs- | K7: angemessen | L7: zum Verfahren
G8: von Neuvermietung | I8: Angemessenheit | J8: zuschlag | K8: nach AV-Wohnen
E9: Tabellenwerte | F9: Sozialer Wohnungsbau | I9: Härtefall
E10: Nr. 3.3: Richtwert nach | F10: Nr. 3.3 Abs. 3: Aufschlag | I10: - Nr. 3.5.1: Anhebung | J10: Nr. 6.4.1: Zuschlag zur
E11: Tabelle aus Anlage 1 | F11: bei sozialem Wohnungs- | G11: =IF(AND(AND('Grundberechnung-Hk'!D61=1,'Grundberechnung-Hk'!D79=1),'Grundberechnung-Hk'!D63=0),"Bestandsschutz?","") ->  | I11: Richtwert bei Härtefall | J11: Umzugsvermeidung | L11: näheres s. Nr. 7.1 -
A12: Û | B12: =IF(AND(Checkliste!E4>0,Q4=1,D14=0),"?","") ->  | C12: Bruttokaltmiete | F12: bau | H12: =IF('Grundberechnung-Hk'!G65>0,'Grundberechnung-Hk'!C126,"") ->  | I12: - ggf. greift 3.5.2 oder 3.5.3 | K12: =IF(K14>0,"max. tatsächliche Kosten","") ->  | L12: ggf. Absenkung, | Q12: Obergrenze
C13: ("Kosten der | L13: i.d.R. nach
C14: Unterkunft") | D14: ='Grundberechnung-Hk'!G185 -> 0 | E14: =SUM('Grundberechnung-Hk'!G53) -> 0 | F14: =IF('Grundberechnung-Hk'!D57=1,'Grundberechnung-Hk'!C58,"") ->  | G14: =IF(OR('Grundberechnung-Hk'!D61=1,'Grundberechnung-Hk'!D63=1),'Grundberechnung-Hk'!C62,"") ->  | H14: =IF('Grundberechnung-Hk'!D65=1,'Grundberechnung-Hk'!C66,"") ->  | I14: =IF('Grundberechnung-Hk'!D69=1,'Grundberechnung-Hk'!C70,"") ->  | J14: =IF('Grundberechnung-Hk'!F79=1,'Grundberechnung-Hk'!C81,"") ->  | K14: =IF(D14<Q14,D14,Q14) -> 0 | L14: 6 Monaten | Q14: =MAX(E14:I14) -> 0
F15: =IF(SUM(F14)>0,"( + "&Werte!GR3&" % )","") ->  | G15: =IF(SUM(G14)>0,"( + "&Werte!GS3&" % )","") ->  | I15: =IF(SUM(I14)>0,"( + "&Werte!GT3&" % )","") ->  | J15: =IF(SUM(J14)>0,"( + "&Werte!GU3&" % )","") ->  | K15: =IF(AND(Checkliste!E4>0,Q4=1,D14=0),"Bruttokaltmiete?","") -> 
E17: Nr. 5.2 Abs. 3: Grenzwert | F17: Nr. 5.2 Abs. 3: Grenzwert | H17: =IF('Grundberechnung-Hk'!E126=1,"In Anspruch","") ->  | I17: ggf. mit Anhebung aus
E18: ggf. m. Abschlag wegen | F18: ggf. m. Abschlag wegen | H18: =IF('Grundberechnung-Hk'!E126=1,"genommen","") ->  | I18: individuellen Gründen nach | L18: näheres s. Nr. 7.1.2 -
E19: dezentraler Warmwasser- | F19: dezentraler Warmwasser- | H19: =IF('Grundberechnung-Hk'!G65>0,'Grundberechnung-Hk'!C126*-1,"") ->  | I19: Nr. 5.2.1 | K19: =IF(K21>0,"max. tatsächliche Kosten","") ->  | L19: ggf. auch zum
A20: Û | B20: =IF(AND(Checkliste!E4>0,Q4=1,D21=0),"?","") ->  | C20: Heizkosten | E20: versorgung (Anlage 2) | F20: versorgung (Anlage 2) | L20: Zeitpunkt einer Ab-
C21: =IF('Grundberechnung-Hk'!G187>0,"(incl. WW)","") ->  | D21: =SUM('Grundberechnung-Hk'!C144) -> 0 | E21: ='Grundberechnung-Hk'!C125-'Grundberechnung-Hk'!C135 -> 0 | F21: =IF(SUM(F14)>0,E21,"") ->  | G21: =IF(SUM(G14)>0,E21,"") ->  | H21: =IF('Grundberechnung-Hk'!D65=1,'Grundberechnung-Hk'!C146,"") ->  | I21: =IF('Grundberechnung-Hk'!D65=1,'Grundberechnung-Hk'!G149,"") ->  | J21: =IF(SUM(J14)>0,'Grundberechnung-Hk'!G149,"") ->  | K21: =IF('Grundberechnung-Hk'!D147=1,D21,Q21) -> 0 | L21: senkung | Q21: =MIN(E21:J21) -> 0
E22: Grenzwert nach Nr. 5 / | K22: =IF(AND(Checkliste!E4>0,Q4=1,D21=0),"Heizkosten?","") -> 
E23: Anlage 2
D24: Bruttowarmmiete | E24: Gesamtaufwendungen 1: | F24: Gesamtaufwendungen 2 | I24: Gesamtaufwendungen 3 | J24: Gesamtaufwendungen 4 | K24: Summe angemessener | L24: Vergleich der Brutto-
E25: Wert in Tabelle der | F25: incl. Auf- und Abschläge | I25: incl. individueller | J25: incl. Umzugsvermeidungs- | K25: Werte im Falle einer | L25: warmmiete mit Ge-
E26: Anlage 3 | I26: Bestandteile | J26: zuschlag | K26: Kürzung | L26: samtaufwendungen
K27: ='Grundberechnung-Hk'!C194 ->  | L27: gemäß Nr. 6.4.1 und
C28: Summen | D28: =IF(SUM(D14,D21)>0,SUM(D14,D21),"") ->  | E28: =IF(SUM(E14,E21)>0,ROUNDUP(SUM(E14,E21),0),"") ->  | F28: =IF(SUM(F14,F21)>0,SUM(F14,F21),"") ->  | J28: =IF(SUM(J14,J21)>0,ROUND(SUM(J14,J21),0),"") ->  | K28: =IF(SUM(K14,K21)>0,ROUND(SUM(K14,K21),2),"") ->  | L28: Nr. 6.4.2 - ggf. | Q28: =MAX(E28:J28) -> 0
D29: ='Grundberechnung-Hk'!C193 ->  | E29: =IF(SUM(E28)>0,"(aufgerundet)","") ->  | J29: =IF(SUM(J28)>0,"(gerundet)","") ->  | L29: Bestandsschutz
C31: Gesamtaufwendungen | D31: =IF('Grundberechnung-Hk'!D8=1,ROUND(Q28,0),Q28) -> 0 | E31: ="(Grenzwert "&IF('Grundberechnung-Hk'!D8=1,"gerundet)","")&"" -> (Grenzwert gerundet) | I31: =IF(SUM(J14)>0,"incl. Umzugsvermeidungszuschlag","") -> 
D32: ='Grundberechnung-Hk'!C192 ->  | J32: =IF(SUM(K32)>0,"aus eigenen Mitteln selbst zu tragender Mietanteil:","") ->  | K32: =IF('Grundberechnung-Hk'!C191=1,D28-K28,"") -> 
C34: Neuanmietung: kein Vergleich der Bruttowarmmiete mit Gesamtaufwendungen; bei (erforderlichem) Umzug dürfen weder Bruttokaltmiete noch Heizkosten die jeweilige
C35: Angemessenheitsgrenze überschreiten, aber: Erhöhung des Richtwertes für Bruttokaltmiete um 10 % bei Härtefall und/oder bei Sozialem Wohnungsbau (1. Förderweg)
C36: auch hier! - weitere Sonderregelungen s. 3.5.2
C38: Wenn Kostensenkungsmaßnahmen trotz Umzugsvermeidungszuschlag nicht zu vermeiden sind, führt der Umzugsvermeidungszuschlag nicht zur Erhöhung der Angemessenheitsgrenze.
C41: Ggf. Einzelfallprüfung oder keine Leistungskürzung bei Anwendung von AV-Wohnen Nr. 7.1 Abs. 3:
C42: Alleinerziehende mit mind. 2 Kindern; schwer erkrankte, die nicht umziehen können; über 60-jährige mit Wohndauer über 10 Jahre (voraussichtlich keine Grundsicherung);
C43: einmalige oder kurzfristige Hilfen
L45: Tabelle mit freundl. Genehmigung von Thomas Rosumek-Mathes

Sheet EF Muster 1
D1: Kosten der Unterkunft | T1: Eingabefeld 3
A2: Start
A4: 1 | B4: Personen | E4: Wirtschaftlichkeitsvergleich | AE4: =IF(SUM(AE6:AE8)>0,1,0) -> 0 | AF4: Aufrufen-Prüffeld
A6: 2 | B6: HeizKost | AE6: ='EF1'!AE52 -> 0 | AF6: Option Wirtschaftlichkeitsbetrachtung
A8: 3 | B8: WirtschV | AE8: =Checkliste!D37 -> 0 | AF8: Daten in EF 2 eingetragen
A10: 4 | B10: BSG RS
A12: 5 | B12: MietS Bln
A14: 6 | B14: WhgBest
A16: 7 | B16: Konzept
A18: 8 | B18: BetriebsK
A20: 9 | B20: HeizK
A22: 10 | B22: WarmwA
A26: 11 | B26: Ergebnis
A28: D | B28: Druck aM
A30: D | B30: Wi-Vergl
A32: T | B32: Tabelle

Sheet EF Muster 2
D1: Kosten der Unterkunft | T1: Eingabefeld 2
A2: Start
A4: 1 | B4: Personen | E4: Wirtschaftlichkeitsvergleich | AE4: =IF(SUM(AE6:AE8)>0,1,0) -> 0 | AF4: Aufrufen-Prüffeld
A6: 2 | B6: HeizKost | AE6: ='EF1'!AE52 -> 0 | AF6: Option Wirtschaftlichkeitsbetrachtung
A8: 3 | B8: WirtschV | AE8: =Checkliste!D37 -> 0 | AF8: Daten in EF 2 eingetragen
A10: 4 | B10: BSG RS
A12: 5 | B12: MietS Bln
A14: 6 | B14: WhgBest
A16: 7 | B16: Konzept
A18: 8 | B18: BetriebsK
A20: 9 | B20: HeizK
A22: 10 | B22: WarmwA
A26: 11 | B26: Ergebnis
A28: D | B28: Druck aM
A30: D | B30: Wi-Vergl
A32: T | B32: Tabelle

Sheet FF Muster 3
A1: <--
A2: Start | D2: Thema
D4: Beschreibung
